{"text_format":"1","workbook":"xlsx","n_sheets":9,"sheets":["Lotto2_R7425-1","Lotto2_R7425-2","Lotto2_R7425-3","Lotto3_R7425(GPU)","Rack e Accessori","Riepilogo","Foglio1","Regole di configurazione","Codici&PrezzixRiepilogo"],"not_rendered":{"charts":0,"images":30,"macros":1,"external_links":0,"defined_names":34,"comments":0,"pivot_tables":0},"unopened":[],"bounds":{"document_bytes":16777216,"sheet_cells":100000,"rows_first":2000,"rows_last":500,"rows_between":2000,"halvings":0,"cell_chars":16384,"cell_head_chars":4096},"cells_cut":0,"cells_raw":0,"read":"whole","date_system":"1900"}

{"sheet":"Lotto2_R7425-1","index":0,"n_rows":147,"n_cols":9,"rows_kept":147,"cut":false,"hidden":false,"merged":[[76,1,76,2],[55,0,61,0],[4,0,4,4],[0,5,1,5],[36,0,40,0],[63,0,71,0]]}
[null,"TOTALE PRODOTTI CONVENZIONE",{"$f":"SUM(G13:G156)*$C$10","v":0},null,null,{"$f":"IF(I1+I2=0,(C1+C2),\"ERRORE VERIFICARE LA CONFIGURAZIONE\")","v":0},null,null,{"$f":"IF(A37=\"\",0,1)","v":0}]
[null,"TOTALE ARTICOLI 20%",{"$f":"SUM(H13:H156)*$C$10","v":0},null,null,null,null,null,{"$f":"IF(A77=\"\",0,1)","v":0}]
[null,"Indicare qui la quantità Server ----->",0,null,null,{"$f":"Riepilogo!T6","v":"ver. 3.0"}]
[]
["          POWEREDGE R7425"]
[]
[]
[]
[]
[null,"Quantità:",{"$f":"C3","v":0}]
[]
[null,"Modello Server"]
[null,"PowerEdge R7425 Server",1,"[210-APFK]",null,"TS2L2-SRV",1849]
[]
[null,"Configurazione dello chassis"]
[null,"Chassis with up to 24 x 2.5\" SAS/SATA Hard Drives for 1&2CPU Configuration, Risers 1, 3, 5, 7",1,"[321-BDGE]"]
[]
[null,"Trusted Platform Module"]
[null,"No Trusted Platform Module",1,"[461-AADZ]"]
[]
[null,"Processore"]
[null,"AMD EPYC 7281 2.1GHz/2.7GHz, 16C/32T, 32M Cache (155W/170W) DDR4-2400/2666",1,"[338-BNBZ]"]
[]
[null,"Processore aggiuntivo"]
[null,"No Additional Processor",{"$f":"VLOOKUP($B$25,TS2L2CPU,2,FALSE)","v":0},{"$f":"VLOOKUP($B$25,TS2L2CPU,3,FALSE)","v":"[374-BBBX]"},{"$f":"VLOOKUP($B$25,TS2L2CPU,4,FALSE)","v":""},{"$f":"VLOOKUP($B$25,TS2L2CPU,5,FALSE)","v":""},{"$f":"VLOOKUP($B$25,TS2L2CPU,6,FALSE)","v":0},{"$f":"VLOOKUP($B$25,TS2L2CPU,7,FALSE)","v":""}]
[]
[]
[null,"Memoria Totale in GB","64     (DIMM 32GB)"]
[]
[null,"Capacità di memoria"]
[null,{"$f":"IF($C$25=0,VLOOKUP($C$28,TS2L2MEM1CPU,2,FALSE),VLOOKUP($C$28,TS2L2MEM2CPU,2,FALSE))","v":"32GB RDIMM, 2666MT/s, Dual Rank"},{"$f":"IF($C$25=0,VLOOKUP($C$28,TS2L2MEM1CPU,3,FALSE),VLOOKUP($C$28,TS2L2MEM2CPU,3,FALSE))","v":2},{"$f":"IF($C$25=0,VLOOKUP($C$28,TS2L2MEM1CPU,4,FALSE),VLOOKUP($C$28,TS2L2MEM2CPU,4,FALSE))","v":"[370-ADNF]"},{"$f":"IF($C$25=0,VLOOKUP($C$28,TS2L2MEM1CPU,5,FALSE),VLOOKUP($C$28,TS2L2MEM2CPU,5,FALSE))","v":"A9781929"},{"$f":"IF($C$25=0,VLOOKUP($C$28,TS2L2MEM1CPU,6,FALSE),VLOOKUP($C$28,TS2L2MEM2CPU,6,FALSE))","v":""},{"$f":"IF($C$25=0,VLOOKUP($C$28,TS2L2MEM1CPU,7,FALSE),VLOOKUP($C$28,TS2L2MEM2CPU,7,FALSE))","v":0}]
[]
[null,"Sistema operativo preinstallato"]
[null,"None",{"$f":"VLOOKUP($B$34,TS2L2OS,2,FALSE)","v":""},{"$f":"VLOOKUP($B$34,TS2L2OS,3,FALSE)","v":"[619-ABVR]"},{"$f":"VLOOKUP($B$34,TS2L2OS,4,FALSE)","v":0},{"$f":"VLOOKUP($B$34,TS2L2OS,5,FALSE)","v":""},{"$f":"VLOOKUP($B$34,TS2L2OS,6,FALSE)","v":0},{"$f":"VLOOKUP($B$34,TS2L2OS,7,FALSE)","v":0},{"$f":"IF(E34=0,1,0)","v":1}]
[null,{"$f":"IF($C$25=1,(VLOOKUP($B$34,TS2L2OS,8,FALSE)),\"\")","v":""},{"$f":"IF($C$25=1,(VLOOKUP($B$34,TS2L2OS,9,FALSE)),\"\")","v":""},{"$f":"IF($C$25=1,(VLOOKUP($B$34,TS2L2OS,10,FALSE)),\"\")","v":""},{"$f":"IF($C$25=1,(VLOOKUP($B$34,TS2L2OS,11,FALSE)),\"\")","v":""},{"$f":"IF($C$25=1,(VLOOKUP($B$34,TS2L2OS,12,FALSE)),\"\")","v":""},{"$f":"IF($C$25=1,(VLOOKUP($B$34,TS2L2OS,13,FALSE)),\"\")","v":""},{"$f":"IF($C$25=1,(VLOOKUP($B$34,TS2L2OS,14,FALSE)),0)","v":0}]
[]
[{"$f":"IF((I34*I38)=0,\"\",\"ERRORE: \nLa selezione di licenze CAL senza il Sistema Operativo Microsoft Windows non è consentita.\")","v":""},"Client Access Licenses"]
[null,{"$f":"IF($E$34>0,'Regole di configurazione'!A83,\"\")","v":""},0,{"$f":"IF($E$34>0,'Regole di configurazione'!C83,\"\")","v":""},{"$f":"IF($E$34>0,'Regole di configurazione'!D83,\"\")","v":""},{"$f":"IF($E$34>0,'Regole di configurazione'!E83,\"\")","v":""},{"$f":"IF($E$34>0,'Regole di configurazione'!F83,0)*C38","v":0},{"$f":"IF($E$34>0,'Regole di configurazione'!G83,\"\")","v":""},{"$f":"C38+C40","v":0}]
[]
[null,{"$f":"IF($E$34>0,'Regole di configurazione'!A84,\"\")","v":""},0,{"$f":"IF($E$34>0,'Regole di configurazione'!C84,\"\")","v":""},{"$f":"IF($E$34>0,'Regole di configurazione'!D84,\"\")","v":""},{"$f":"IF($E$34>0,'Regole di configurazione'!E84,\"\")","v":""},{"$f":"IF($E$34>0,'Regole di configurazione'!F84,0)*C40","v":0},{"$f":"IF($E$34>0,'Regole di configurazione'!G84,\"\")","v":""}]
[]
[null,"Sistema operativo VMware"]
[null,"Vmware vSphere Essentials Plus Kit"]
[null,"None",{"$f":"VLOOKUP($B$44,TS2L2VMWARE1,2,FALSE)","v":1},{"$f":"VLOOKUP($B$44,TS2L2VMWARE1,3,FALSE)","v":""},{"$f":"VLOOKUP($B$44,TS2L2VMWARE1,4,FALSE)","v":""},{"$f":"VLOOKUP($B$44,TS2L2VMWARE1,5,FALSE)","v":""},{"$f":"VLOOKUP($B$44,TS2L2VMWARE1,6,FALSE)","v":0},{"$f":"VLOOKUP($B$44,TS2L2VMWARE1,7,FALSE)*C44","v":0}]
[null,"VMware vCenter Server Standard"]
[null,"None",{"$f":"VLOOKUP($B$46,TS2L2VMWARE2,2,FALSE)","v":1},{"$f":"VLOOKUP($B$46,TS2L2VMWARE2,3,FALSE)","v":""},{"$f":"VLOOKUP($B$46,TS2L2VMWARE2,4,FALSE)","v":""},{"$f":"VLOOKUP($B$46,TS2L2VMWARE2,5,FALSE)","v":""},{"$f":"VLOOKUP($B$46,TS2L2VMWARE2,6,FALSE)","v":0},{"$f":"VLOOKUP($B$46,TS2L2VMWARE2,7,FALSE)*C46","v":0}]
[null,"Vmware vSphere Standard/Enterprise"]
[null,"None",{"$f":"(VLOOKUP($B$48,TS2L2VMWARE3,2,FALSE))+C25","v":0},{"$f":"VLOOKUP($B$48,TS2L2VMWARE3,3,FALSE)","v":""},{"$f":"VLOOKUP($B$48,TS2L2VMWARE3,4,FALSE)","v":""},{"$f":"VLOOKUP($B$48,TS2L2VMWARE3,5,FALSE)","v":""},{"$f":"VLOOKUP($B$48,TS2L2VMWARE3,6,FALSE)","v":0},{"$f":"VLOOKUP($B$48,TS2L2VMWARE3,7,FALSE)*C48","v":0}]
[null,"VMware vSAN"]
[null,"None",{"$f":"(VLOOKUP($B$50,TS2L2VMWARE4,2,FALSE))+C25","v":0},{"$f":"VLOOKUP($B$50,TS2L2VMWARE4,3,FALSE)","v":""},{"$f":"VLOOKUP($B$50,TS2L2VMWARE4,4,FALSE)","v":""},{"$f":"VLOOKUP($B$50,TS2L2VMWARE4,5,FALSE)","v":""},{"$f":"VLOOKUP($B$50,TS2L2VMWARE4,6,FALSE)","v":0},{"$f":"VLOOKUP($B$50,TS2L2VMWARE4,7,FALSE)*C50","v":0}]
[]
[null,"Controller Dischi"]
[null,{"$f":"B110","v":"PERC H730P RAID Controller, 2Gb NV Cache, Adapter, Full Height"},{"$f":"C110","v":1},{"$f":"D110","v":"[405-AAMR]"},{"$f":"E110","v":"405-AAMY"}]
[]
[null,"Dischi rigidi (numero massimo totale 24)"]
["\n\nSAS 10K","600GB 10K RPM SAS 12Gbps 512n 2.5in Hot-plug Hard Drive",2,"[400-ASGS]","400-AUNQ",{"$f":"IF(C56<=2,\"\",\"TS2L2-10K600\")","v":""},{"$f":"IF(C56<=2,0,(C56-2)*'Regole di configurazione'!F13)","v":0}]
[]
[null,"1.2TB 10K RPM SAS 12Gbps 512n 2.5in Hot-plug Hard Drive",0,"[400-ASHI]","400-ATJL",{"$f":"IF(C58=0,\"\",\"TS2L2-10K1200\")","v":""},{"$f":"C58*'Regole di configurazione'!F14","v":0}]
[]
[null,"1.8TB 10K RPM SAS 12Gbps 512e 2.5in Hot-plug Hard Drive ",0,"[400-ARXC]","400-ATJR",{"$f":"IF(C60=0,\"\",\"TS2L2-10K1800\")","v":""},null,{"$f":"C60*162","v":0}]
[]
[null,"2.4TB 10K RPM SAS 12Gbps 512e 2.5in Hot-plug Hard Drive NO VMWARE A20",0,null,"400-AVBX",{"$f":"IF(C62=0,\"\",\"TS2L2-10K2400\")","v":""},null,{"$f":"C62*389","v":0}]
[]
["\n\nSSD SAS RI","480GB SSD SAS Mixed Use 12Gbps 2.5in Hot-Plug A20",0,null,"400-BCOD",{"$f":"IF(C64=0,\"\",\"TS2L2-SSDM480\")","v":""},{"$f":"C64*'Regole di configurazione'!F15","v":0}]
[]
[null,"SSD 400GB SAS WI 12Gbps 2.5in Hot-plug Drive, 10 DWPD A20",0,null,"400-ATGH",{"$f":"IF(C66=0,\"\",\"TS2L2-SSDW400\")","v":""},null,{"$f":"C66*1155","v":0}]
[]
[null,"SSD 1600GB SAS WI 12Gb 2.5in Hot-plug Drive, 10 DWPD A20",0,null,null,{"$f":"IF(C68=0,\"\",\"TS2L2-SSDW1600\")","v":""},null,{"$f":"C68*1475","v":0}]
[]
[null,"960GB SSD SAS Read Intensive 12Gbps 512e 2.5in Hot-plug Drive, PM5-R, 1 DWPD, 1752 TBW",0,"[400-BBPL]","400-ATLL",{"$f":"IF(C70=0,\"\",\"TS2L2-SSDR960\")","v":""},{"$f":"C70*'Regole di configurazione'!F16","v":0}]
[]
[null,"1.92TB SSD SAS Read Intensive 12Gbps 512e 2.5in Hot-plug Drive, PM1633a",0,"[400-ASFX]","400-ATND",{"$f":"IF(C72=0,\"\",\"TS2L2-SSDR1920\")","v":""},null,{"$f":"C72*'Regole di configurazione'!F17","v":0}]
[]
[null,"DISCHI TOTALI",{"$f":"SUM(C56:C73)","v":2}]
[]
[null,"NOTE sulla configurazione (CAMPO OBBLIGATORIO)"]
[{"$f":"IF(C74<=24,\"\",\"ERRORE:   Totale n° di dischi superiore al consentito\")","v":""},"Specificare la configurazione RAID per l'installazione del Sistema Operativo, se richiesto.\ne/o\ninserire eventuali note.",null,null,"Specificare la configurazione RAID per l'installazione del Sistema Operativo, se richiesto.\ne/o\ninserire eventuali note.",{"$f":"IF(B77=E77,\"ERRORE:   Compilare il campo NOTE\",\"\")","v":"ERRORE:   Compilare il campo NOTE"}]
[]
[null,"Ventole"]
[null,"6 Standard Fans",1,"[384-BBSU]"]
[]
[null,"Alimentatore"]
[null,"Dual, Hot-plug, Redundant Power Supply (1+1), 1100W",1,"[450-ADWM]"]
[]
[null,"Cavi di alimentazione"]
[null,"Rack Power Cord 2M (C13/C14 10A)",2,"[450-AADY]"]
[]
[null,"PCIe Riser"]
[null,"Riser Config 1, 2 x8, 1 x16 slots",{"$f":"VLOOKUP($B$89,TS2L2RISER,2,FALSE)","v":0},{"$f":"VLOOKUP($B$89,TS2L2RISER,3,FALSE)","v":"[330-BBIY]"},{"$f":"VLOOKUP($B$89,TS2L2RISER,4,FALSE)","v":""},{"$f":"VLOOKUP($B$89,TS2L2RISER,5,FALSE)","v":""},{"$f":"VLOOKUP($B$89,TS2L2RISER,6,FALSE)","v":0},{"$f":"VLOOKUP($B$89,TS2L2RISER,7,FALSE)","v":0},{"$f":"VLOOKUP($B$89,TS2L2RISER,8,FALSE)","v":"_NORISER"}]
[]
[null,"Modulo Doppia SD - Internal Dual SD Module (IDSDM)"]
[null,"None",{"$f":"VLOOKUP(B92,TS2L2IDSDM,2,FALSE)","v":0},{"$f":"VLOOKUP(B92,TS2L2IDSDM,3,FALSE)","v":0},{"$f":"VLOOKUP(B92,TS2L2IDSDM,4,FALSE)","v":0},{"$f":"VLOOKUP(B92,TS2L2IDSDM,5,FALSE)","v":""},{"$f":"VLOOKUP(B92,TS2L2IDSDM,6,FALSE)","v":0},{"$f":"VLOOKUP(B92,TS2L2IDSDM,7,FALSE)","v":0}]
[]
[null,"Embedded Systems Management"]
[null,"iDRAC9,Enterprise",1,"[385-BBKT]"]
[]
[]
[]
[]
[null,"Network Daughter Card"]
[null,"Broadcom 5720 QP 1Gb Network Daughter Card",1,"[540-BBBW]"]
[]
[null,"Additional Card for PCIe Slot 1 (Full height) (CPU 1)"]
[null,"None",{"$f":"VLOOKUP(B104,TS2L2PCI1,2,FALSE)","v":""},{"$f":"VLOOKUP(B104,TS2L2PCI1,3,FALSE)","v":""},{"$f":"VLOOKUP(B104,TS2L2PCI1,4,FALSE)","v":""},{"$f":"VLOOKUP(B104,TS2L2PCI1,5,FALSE)","v":""},{"$f":"VLOOKUP(B104,TS2L2PCI1,6,FALSE)","v":0},{"$f":"VLOOKUP(B104,TS2L2PCI1,7,FALSE)","v":0}]
[]
[null,"Additional Card for PCIe Slot 2 (Full height) (CPU 1)"]
[null,"None",{"$f":"VLOOKUP(B107,TS2L2PCI2,2,FALSE)","v":""},{"$f":"VLOOKUP(B107,TS2L2PCI2,3,FALSE)","v":""},{"$f":"VLOOKUP(B107,TS2L2PCI2,4,FALSE)","v":""},{"$f":"VLOOKUP(B107,TS2L2PCI2,5,FALSE)","v":""},{"$f":"VLOOKUP(B107,TS2L2PCI2,6,FALSE)","v":0},{"$f":"VLOOKUP(B107,TS2L2PCI2,7,FALSE)","v":0}]
[]
[null,"Additional Card for PCIe Slot 3 (Full height) (CPU 1)"]
[null,"PERC H730P RAID Controller, 2Gb NV Cache, Adapter, Full Height",{"$f":"VLOOKUP(B110,TS2L2PCI3,2,FALSE)","v":1},{"$f":"VLOOKUP(B110,TS2L2PCI3,3,FALSE)","v":"[405-AAMR]"},{"$f":"VLOOKUP(B110,TS2L2PCI3,4,FALSE)","v":"405-AAMY"},{"$f":"VLOOKUP(B110,TS2L2PCI3,5,FALSE)","v":""},{"$f":"VLOOKUP(B110,TS2L2PCI3,6,FALSE)","v":0},{"$f":"VLOOKUP(B110,TS2L2PCI3,7,FALSE)","v":0}]
[]
[null,"Additional Card for PCIe Slot 4 (Full height) (CPU 2)"]
[null,"None",{"$f":"IF(B113=TS2L2ASP,\"\",VLOOKUP(B113,TS2L2PCI4,2,FALSE))","v":""},{"$f":"IF(B113=TS2L2ASP,\"\",VLOOKUP(B113,TS2L2PCI4,3,FALSE))","v":""},{"$f":"IF(B113=TS2L2ASP,\"\",VLOOKUP(B113,TS2L2PCI4,4,FALSE))","v":""},{"$f":"IF(B113=TS2L2ASP,\"\",VLOOKUP(B113,TS2L2PCI4,5,FALSE))","v":""},{"$f":"IF(B113=TS2L2ASP,0,VLOOKUP(B113,TS2L2PCI4,6,FALSE))","v":0},{"$f":"IF(B113=TS2L2ASP,0,VLOOKUP(B113,TS2L2PCI4,7,FALSE))","v":0}]
[]
[null,"Additional Card for PCIe Slot 5 (Full height) (CPU 2)"]
[null,"None"]
[]
[null,"Additional Card for PCIe Slot 6 (Low height) (CPU 2)"]
[null,"None",{"$f":"IF(B119=TS2L2ASP,\"\",VLOOKUP(B119,TS2L2PCI6,2,FALSE))","v":""},{"$f":"IF(B119=TS2L2ASP,\"\",VLOOKUP(B119,TS2L2PCI6,3,FALSE))","v":""},{"$f":"IF(B119=TS2L2ASP,\"\",VLOOKUP(B119,TS2L2PCI6,4,FALSE))","v":""},{"$f":"IF(B119=TS2L2ASP,\"\",VLOOKUP(B119,TS2L2PCI6,5,FALSE))","v":""},{"$f":"IF(B119=TS2L2ASP,0,VLOOKUP(B119,TS2L2PCI6,6,FALSE))","v":0},{"$f":"IF(B119=TS2L2ASP,0,VLOOKUP(B119,TS2L2PCI6,7,FALSE))","v":0}]
[]
[null,"Additional Card for PCIe Slot 7 (Full height) (CPU 2) (BOSS controller card Slot)"]
[null,"None",{"$f":"IF(B122=TS2L2ASP,\"\",VLOOKUP(B122,TS2L2PCI7,2,FALSE))","v":""},{"$f":"IF(B122=TS2L2ASP,\"\",VLOOKUP(B122,TS2L2PCI7,3,FALSE))","v":""},{"$f":"IF(B122=TS2L2ASP,\"\",VLOOKUP(B122,TS2L2PCI7,4,FALSE))","v":""},{"$f":"IF(B122=TS2L2ASP,\"\",VLOOKUP(B122,TS2L2PCI7,5,FALSE))","v":""},{"$f":"IF(B122=TS2L2ASP,0,VLOOKUP(B122,TS2L2PCI7,6,FALSE))","v":0},{"$f":"IF(B122=TS2L2ASP,0,VLOOKUP(B122,TS2L2PCI7,7,FALSE))","v":0}]
[]
[null,"Additional Card for PCIe Slot 8 (Full height) (CPU 2)"]
[null,"None",{"$f":"IF(B125=TS2L2ASP,\"\",VLOOKUP(B125,TS2L2PCI8,2,FALSE))","v":""},{"$f":"IF(B125=TS2L2ASP,\"\",VLOOKUP(B125,TS2L2PCI8,3,FALSE))","v":""},{"$f":"IF(B125=TS2L2ASP,\"\",VLOOKUP(B125,TS2L2PCI8,4,FALSE))","v":""},{"$f":"IF(B125=TS2L2ASP,\"\",VLOOKUP(B125,TS2L2PCI8,5,FALSE))","v":""},{"$f":"IF(B125=TS2L2ASP,0,VLOOKUP(B125,TS2L2PCI8,6,FALSE))","v":0},{"$f":"IF(B125=TS2L2ASP,0,VLOOKUP(B125,TS2L2PCI8,7,FALSE))","v":0}]
[]
[null,"Bezel"]
[null,"No Bezel",{"$f":"VLOOKUP($B$128,TS2L2BEZEL,2,FALSE)","v":0},{"$f":"VLOOKUP($B$128,TS2L2BEZEL,3,FALSE)","v":"[350-BBBW]"},{"$f":"VLOOKUP($B$128,TS2L2BEZEL,4,FALSE)","v":0},{"$f":"VLOOKUP($B$128,TS2L2BEZEL,5,FALSE)","v":""},{"$f":"VLOOKUP($B$128,TS2L2BEZEL,6,FALSE)","v":0},{"$f":"VLOOKUP($B$128,TS2L2BEZEL,7,FALSE)","v":0}]
[]
[null,"Rack Rails"]
[null,{"$f":"VLOOKUP($B$128,TS2L2BEZEL,8,FALSE)","v":"ReadyRails™ Sliding Rails Without Cable Management Arm"},{"$f":"VLOOKUP($B$128,TS2L2BEZEL,9,FALSE)","v":1},{"$f":"VLOOKUP($B$128,TS2L2BEZEL,10,FALSE)","v":"[770-BBBQ]"},{"$f":"VLOOKUP($B$128,TS2L2BEZEL,11,FALSE)","v":0}]
[]
[null,"Internal Optical Drive"]
[null,"No Internal Optical Drive for 12/24 HD Chassis",1,"[429-AAIQ]"]
[]
[null,"Direct Attach Cable"]
[null,"5 x Dell Networking, Cable, SFP+ to SFP+, 10GbE, Copper Twinax DAC, 3 Meter A20",0,null,"470-AAVJ",{"$f":"IF(C137=0,\"\",\"TS2L2-5XDAC10M3\")","v":""},null,{"$f":"125*C137","v":0}]
[]
[null,"5 x Dell Networking Cable, 100GbE QSFP28 to QSFP28,Passive Copper DAC, 2 Meter A20",0,null,"470-ABQG",{"$f":"IF(C139=0,\"\",\"TS2L2-5XDAC100M2\")","v":""},null,{"$f":"940*C139","v":0}]
[]
[null,"5 x Dell Networking Cable,100GbE QSFP28 to QSFP28, Passive Copper DAC, 3 Meter A20",0,null,"470-ABQE",{"$f":"IF(C141=0,\"\",\"TS2L2-5XDAC100M3\")","v":""},null,{"$f":"1125*C141","v":0}]
[]
[null,"Cavi rj45"]
[null,"Cavo Rete UTP cat. 5e 3 metri",5,null,"ROS1403/G",{"$f":"IF(C144=0,\"\",\"TS2L2-3MRJ45\")","v":"TS2L2-3MRJ45"},null,{"$f":"2*C144","v":10}]
[]
[null,"Estenzione di Garanzia"]
[null,"None",{"$f":"VLOOKUP(B147,TS2L2WARRANTY,2,FALSE)","v":""},{"$f":"VLOOKUP(B147,TS2L2WARRANTY,3,FALSE)","v":""},{"$f":"VLOOKUP(B147,TS2L2WARRANTY,4,FALSE)","v":""},{"$f":"VLOOKUP(B147,TS2L2WARRANTY,5,FALSE)","v":""},{"$f":"VLOOKUP(B147,TS2L2WARRANTY,6,FALSE)","v":0}]

{"sheet":"Lotto2_R7425-2","index":1,"n_rows":147,"n_cols":9,"rows_kept":147,"cut":false,"hidden":false,"merged":[[76,1,76,2],[36,0,40,0],[0,5,1,5],[4,0,4,4],[55,0,61,0],[63,0,71,0]]}
[null,"TOTALE PRODOTTI CONVENZIONE",{"$f":"SUM(G13:G153)*$C$10","v":0},null,null,{"$f":"IF(I1+I2=0,(C1+C2),\"ERRORE VERIFICARE LA CONFIGURAZIONE\")","v":0},null,null,{"$f":"IF(A37=\"\",0,1)","v":0}]
[null,"TOTALE ARTICOLI 20%",{"$f":"SUM(H13:H153)*$C$10","v":0},null,null,null,null,null,{"$f":"IF(A77=\"\",0,1)","v":0}]
[null,"Indicare qui la quantità Server ----->",0,null,null,{"$f":"Riepilogo!T6","v":"ver. 3.0"}]
[]
["          POWEREDGE R7425"]
[]
[]
[]
[]
[null,"Quantità:",{"$f":"C3","v":0}]
[]
[null,"Modello Server"]
[null,"PowerEdge R7425 Server",1,"[210-APFK]",null,"TS2L2-SRV",1849]
[]
[null,"Configurazione dello chassis"]
[null,"Chassis with up to 24 x 2.5\" SAS/SATA Hard Drives for 1&2CPU Configuration, Risers 1, 3, 5, 7",1,"[321-BDGE]"]
[]
[null,"Trusted Platform Module"]
[null,"No Trusted Platform Module",1,"[461-AADZ]"]
[]
[null,"Processore"]
[null,"AMD EPYC 7281 2.1GHz/2.7GHz, 16C/32T, 32M Cache (155W/170W) DDR4-2400/2666",1,"[338-BNBZ]"]
[]
[null,"Processore aggiuntivo"]
[null,"No Additional Processor",{"$f":"VLOOKUP($B$25,TS2L2CPU,2,FALSE)","v":0},{"$f":"VLOOKUP($B$25,TS2L2CPU,3,FALSE)","v":"[374-BBBX]"},{"$f":"VLOOKUP($B$25,TS2L2CPU,4,FALSE)","v":""},{"$f":"VLOOKUP($B$25,TS2L2CPU,5,FALSE)","v":""},{"$f":"VLOOKUP($B$25,TS2L2CPU,6,FALSE)","v":0},{"$f":"VLOOKUP($B$25,TS2L2CPU,7,FALSE)","v":""}]
[]
[]
[null,"Memoria Totale in GB","64     (DIMM 32GB)"]
[]
[null,"Capacità di memoria"]
[null,{"$f":"IF($C$25=0,VLOOKUP($C$28,TS2L2MEM1CPU,2,FALSE),VLOOKUP($C$28,TS2L2MEM2CPU,2,FALSE))","v":"32GB RDIMM, 2666MT/s, Dual Rank"},{"$f":"IF($C$25=0,VLOOKUP($C$28,TS2L2MEM1CPU,3,FALSE),VLOOKUP($C$28,TS2L2MEM2CPU,3,FALSE))","v":2},{"$f":"IF($C$25=0,VLOOKUP($C$28,TS2L2MEM1CPU,4,FALSE),VLOOKUP($C$28,TS2L2MEM2CPU,4,FALSE))","v":"[370-ADNF]"},{"$f":"IF($C$25=0,VLOOKUP($C$28,TS2L2MEM1CPU,5,FALSE),VLOOKUP($C$28,TS2L2MEM2CPU,5,FALSE))","v":"A9781929"},{"$f":"IF($C$25=0,VLOOKUP($C$28,TS2L2MEM1CPU,6,FALSE),VLOOKUP($C$28,TS2L2MEM2CPU,6,FALSE))","v":""},{"$f":"IF($C$25=0,VLOOKUP($C$28,TS2L2MEM1CPU,7,FALSE),VLOOKUP($C$28,TS2L2MEM2CPU,7,FALSE))","v":0}]
[]
[null,"Sistema operativo preinstallato"]
[null,"None",{"$f":"VLOOKUP($B$34,TS2L2OS,2,FALSE)","v":""},{"$f":"VLOOKUP($B$34,TS2L2OS,3,FALSE)","v":"[619-ABVR]"},{"$f":"VLOOKUP($B$34,TS2L2OS,4,FALSE)","v":0},{"$f":"VLOOKUP($B$34,TS2L2OS,5,FALSE)","v":""},{"$f":"VLOOKUP($B$34,TS2L2OS,6,FALSE)","v":0},{"$f":"VLOOKUP($B$34,TS2L2OS,7,FALSE)","v":0},{"$f":"IF(E34=0,1,0)","v":1}]
[null,{"$f":"IF($C$25=1,(VLOOKUP($B$34,TS2L2OS,8,FALSE)),\"\")","v":""},{"$f":"IF($C$25=1,(VLOOKUP($B$34,TS2L2OS,9,FALSE)),\"\")","v":""},{"$f":"IF($C$25=1,(VLOOKUP($B$34,TS2L2OS,10,FALSE)),\"\")","v":""},{"$f":"IF($C$25=1,(VLOOKUP($B$34,TS2L2OS,11,FALSE)),\"\")","v":""},{"$f":"IF($C$25=1,(VLOOKUP($B$34,TS2L2OS,12,FALSE)),\"\")","v":""},{"$f":"IF($C$25=1,(VLOOKUP($B$34,TS2L2OS,13,FALSE)),\"\")","v":""},{"$f":"IF($C$25=1,(VLOOKUP($B$34,TS2L2OS,14,FALSE)),0)","v":0}]
[]
[{"$f":"IF((I34*I38)=0,\"\",\"ERRORE: \nLa selezione di licenze CAL senza il Sistema Operativo Microsoft Windows non è consentita.\")","v":""},"Client Access Licenses"]
[null,{"$f":"IF($E$34>0,'Regole di configurazione'!A83,\"\")","v":""},0,{"$f":"IF($E$34>0,'Regole di configurazione'!C83,\"\")","v":""},{"$f":"IF($E$34>0,'Regole di configurazione'!D83,\"\")","v":""},{"$f":"IF($E$34>0,'Regole di configurazione'!E83,\"\")","v":""},{"$f":"IF($E$34>0,'Regole di configurazione'!F83,0)*C38","v":0},{"$f":"IF($E$34>0,'Regole di configurazione'!G83,\"\")","v":""},{"$f":"C38+C40","v":0}]
[]
[null,{"$f":"IF($E$34>0,'Regole di configurazione'!A84,\"\")","v":""},0,{"$f":"IF($E$34>0,'Regole di configurazione'!C84,\"\")","v":""},{"$f":"IF($E$34>0,'Regole di configurazione'!D84,\"\")","v":""},{"$f":"IF($E$34>0,'Regole di configurazione'!E84,\"\")","v":""},{"$f":"IF($E$34>0,'Regole di configurazione'!F84,0)*C40","v":0},{"$f":"IF($E$34>0,'Regole di configurazione'!G84,\"\")","v":""}]
[]
[null,"Sistema operativo VMware"]
[null,"Vmware vSphere Essentials Plus Kit"]
[null,"None",{"$f":"VLOOKUP($B$44,TS2L2VMWARE1,2,FALSE)","v":1},{"$f":"VLOOKUP($B$44,TS2L2VMWARE1,3,FALSE)","v":""},{"$f":"VLOOKUP($B$44,TS2L2VMWARE1,4,FALSE)","v":""},{"$f":"VLOOKUP($B$44,TS2L2VMWARE1,5,FALSE)","v":""},{"$f":"VLOOKUP($B$44,TS2L2VMWARE1,6,FALSE)","v":0},{"$f":"VLOOKUP($B$44,TS2L2VMWARE1,7,FALSE)*C44","v":0}]
[null,"VMware vCenter Server Standard"]
[null,"None",{"$f":"VLOOKUP($B$46,TS2L2VMWARE2,2,FALSE)","v":1},{"$f":"VLOOKUP($B$46,TS2L2VMWARE2,3,FALSE)","v":""},{"$f":"VLOOKUP($B$46,TS2L2VMWARE2,4,FALSE)","v":""},{"$f":"VLOOKUP($B$46,TS2L2VMWARE2,5,FALSE)","v":""},{"$f":"VLOOKUP($B$46,TS2L2VMWARE2,6,FALSE)","v":0},{"$f":"VLOOKUP($B$46,TS2L2VMWARE2,7,FALSE)*C46","v":0}]
[null,"Vmware vSphere Standard/Enterprise"]
[null,"None",{"$f":"(VLOOKUP($B$48,TS2L2VMWARE3,2,FALSE))+C25","v":0},{"$f":"VLOOKUP($B$48,TS2L2VMWARE3,3,FALSE)","v":""},{"$f":"VLOOKUP($B$48,TS2L2VMWARE3,4,FALSE)","v":""},{"$f":"VLOOKUP($B$48,TS2L2VMWARE3,5,FALSE)","v":""},{"$f":"VLOOKUP($B$48,TS2L2VMWARE3,6,FALSE)","v":0},{"$f":"VLOOKUP($B$48,TS2L2VMWARE3,7,FALSE)*C48","v":0}]
[null,"VMware vSAN"]
[null,"None",{"$f":"(VLOOKUP($B$50,TS2L2VMWARE4,2,FALSE))+C25","v":0},{"$f":"VLOOKUP($B$50,TS2L2VMWARE4,3,FALSE)","v":""},{"$f":"VLOOKUP($B$50,TS2L2VMWARE4,4,FALSE)","v":""},{"$f":"VLOOKUP($B$50,TS2L2VMWARE4,5,FALSE)","v":""},{"$f":"VLOOKUP($B$50,TS2L2VMWARE4,6,FALSE)","v":0},{"$f":"VLOOKUP($B$50,TS2L2VMWARE4,7,FALSE)*C50","v":0}]
[]
[null,"Controller Dischi"]
[null,{"$f":"B110","v":"PERC H730P RAID Controller, 2Gb NV Cache, Adapter, Full Height"},{"$f":"C110","v":1},{"$f":"D110","v":"[405-AAMR]"},{"$f":"E110","v":"405-AAMY"}]
[]
[null,"Dischi rigidi (numero massimo totale 24)"]
["\n\nSAS 10K","600GB 10K RPM SAS 12Gbps 512n 2.5in Hot-plug Hard Drive",2,"[400-ASGS]","400-AUNQ",{"$f":"IF(C56<=2,\"\",\"TS2L2-10K600\")","v":""},{"$f":"IF(C56<=2,0,(C56-2)*'Regole di configurazione'!F13)","v":0}]
[]
[null,"1.2TB 10K RPM SAS 12Gbps 512n 2.5in Hot-plug Hard Drive",0,"[400-ASHI]","400-ATJL",{"$f":"IF(C58=0,\"\",\"TS2L2-10K1200\")","v":""},{"$f":"C58*'Regole di configurazione'!F14","v":0}]
[]
[null,"1.8TB 10K RPM SAS 12Gbps 512e 2.5in Hot-plug Hard Drive ",0,"[400-ARXC]","400-ATJR",{"$f":"IF(C60=0,\"\",\"TS2L2-10K1800\")","v":""},null,{"$f":"C60*162","v":0}]
[]
[null,"2.4TB 10K RPM SAS 12Gbps 512e 2.5in Hot-plug Hard Drive NO VMWARE A20",0,null,"400-AVBX",{"$f":"IF(C62=0,\"\",\"TS2L2-10K2400\")","v":""},null,{"$f":"C62*389","v":0}]
[]
["\n\nSSD SAS RI","480GB SSD SAS Mixed Use 12Gbps 2.5in Hot-Plug A20",0,null,"400-BCOD",{"$f":"IF(C64=0,\"\",\"TS2L2-SSDM480\")","v":""},{"$f":"C64*'Regole di configurazione'!F15","v":0}]
[]
[null,"SSD 400GB SAS WI 12Gbps 2.5in Hot-plug Drive, 10 DWPD A20",0,null,"400-ATGH",{"$f":"IF(C66=0,\"\",\"TS2L2-SSDW400\")","v":""},null,{"$f":"C66*1155","v":0}]
[]
[null,"SSD 1600GB SAS WI 12Gb 2.5in Hot-plug Drive, 10 DWPD A20",0,null,null,{"$f":"IF(C68=0,\"\",\"TS2L2-SSDW1600\")","v":""},null,{"$f":"C68*1475","v":0}]
[]
[null,"960GB SSD SAS Read Intensive 12Gbps 512e 2.5in Hot-plug Drive, PM5-R, 1 DWPD, 1752 TBW",0,"[400-BBPL]","400-ATLL",{"$f":"IF(C70=0,\"\",\"TS2L2-SSDR960\")","v":""},{"$f":"C70*'Regole di configurazione'!F16","v":0}]
[]
[null,"1.92TB SSD SAS Read Intensive 12Gbps 512e 2.5in Hot-plug Drive, PM1633a",0,"[400-ASFX]","400-ATND",{"$f":"IF(C72=0,\"\",\"TS2L2-SSDR1920\")","v":""},null,{"$f":"C72*'Regole di configurazione'!F17","v":0}]
[]
[null,"DISCHI TOTALI",{"$f":"SUM(C56:C73)","v":2}]
[]
[null,"NOTE sulla configurazione (CAMPO OBBLIGATORIO)"]
[{"$f":"IF(C74<=24,\"\",\"ERRORE:   Totale n° di dischi superiore al consentito\")","v":""},"Specificare la configurazione RAID per l'installazione del Sistema Operativo, se richiesto.\ne/o\ninserire eventuali note.",null,null,"Specificare la configurazione RAID per l'installazione del Sistema Operativo, se richiesto.\ne/o\ninserire eventuali note.",{"$f":"IF(B77=E77,\"ERRORE:   Compilare il campo NOTE\",\"\")","v":"ERRORE:   Compilare il campo NOTE"}]
[]
[null,"Ventole"]
[null,"6 Standard Fans",1,"[384-BBSU]"]
[]
[null,"Alimentatore"]
[null,"Dual, Hot-plug, Redundant Power Supply (1+1), 1100W",1,"[450-ADWM]"]
[]
[null,"Cavi di alimentazione"]
[null,"Rack Power Cord 2M (C13/C14 10A)",2,"[450-AADY]"]
[]
[null,"PCIe Riser"]
[null,"Riser Config 1, 2 x8, 1 x16 slots",{"$f":"VLOOKUP($B$89,TS2L2RISER,2,FALSE)","v":0},{"$f":"VLOOKUP($B$89,TS2L2RISER,3,FALSE)","v":"[330-BBIY]"},{"$f":"VLOOKUP($B$89,TS2L2RISER,4,FALSE)","v":""},{"$f":"VLOOKUP($B$89,TS2L2RISER,5,FALSE)","v":""},{"$f":"VLOOKUP($B$89,TS2L2RISER,6,FALSE)","v":0},{"$f":"VLOOKUP($B$89,TS2L2RISER,7,FALSE)","v":0},{"$f":"VLOOKUP($B$89,TS2L2RISER,8,FALSE)","v":"_NORISER"}]
[]
[null,"Modulo Doppia SD - Internal Dual SD Module (IDSDM)"]
[null,"None",{"$f":"VLOOKUP(B92,TS2L2IDSDM,2,FALSE)","v":0},{"$f":"VLOOKUP(B92,TS2L2IDSDM,3,FALSE)","v":0},{"$f":"VLOOKUP(B92,TS2L2IDSDM,4,FALSE)","v":0},{"$f":"VLOOKUP(B92,TS2L2IDSDM,5,FALSE)","v":""},{"$f":"VLOOKUP(B92,TS2L2IDSDM,6,FALSE)","v":0},{"$f":"VLOOKUP(B92,TS2L2IDSDM,7,FALSE)","v":0}]
[]
[null,"Embedded Systems Management"]
[null,"iDRAC9,Enterprise",1,"[385-BBKT]"]
[]
[]
[]
[]
[null,"Network Daughter Card"]
[null,"Broadcom 5720 QP 1Gb Network Daughter Card",1,"[540-BBBW]"]
[]
[null,"Additional Card for PCIe Slot 1 (Full height) (CPU 1)"]
[null,"None",{"$f":"VLOOKUP(B104,TS2L2PCI1,2,FALSE)","v":""},{"$f":"VLOOKUP(B104,TS2L2PCI1,3,FALSE)","v":""},{"$f":"VLOOKUP(B104,TS2L2PCI1,4,FALSE)","v":""},{"$f":"VLOOKUP(B104,TS2L2PCI1,5,FALSE)","v":""},{"$f":"VLOOKUP(B104,TS2L2PCI1,6,FALSE)","v":0},{"$f":"VLOOKUP(B104,TS2L2PCI1,7,FALSE)","v":0}]
[]
[null,"Additional Card for PCIe Slot 2 (Full height) (CPU 1)"]
[null,"None",{"$f":"VLOOKUP(B107,TS2L2PCI2,2,FALSE)","v":""},{"$f":"VLOOKUP(B107,TS2L2PCI2,3,FALSE)","v":""},{"$f":"VLOOKUP(B107,TS2L2PCI2,4,FALSE)","v":""},{"$f":"VLOOKUP(B107,TS2L2PCI2,5,FALSE)","v":""},{"$f":"VLOOKUP(B107,TS2L2PCI2,6,FALSE)","v":0},{"$f":"VLOOKUP(B107,TS2L2PCI2,7,FALSE)","v":0}]
[]
[null,"Additional Card for PCIe Slot 3 (Full height) (CPU 1)"]
[null,"PERC H730P RAID Controller, 2Gb NV Cache, Adapter, Full Height",{"$f":"VLOOKUP(B110,TS2L2PCI3,2,FALSE)","v":1},{"$f":"VLOOKUP(B110,TS2L2PCI3,3,FALSE)","v":"[405-AAMR]"},{"$f":"VLOOKUP(B110,TS2L2PCI3,4,FALSE)","v":"405-AAMY"},{"$f":"VLOOKUP(B110,TS2L2PCI3,5,FALSE)","v":""},{"$f":"VLOOKUP(B110,TS2L2PCI3,6,FALSE)","v":0},{"$f":"VLOOKUP(B110,TS2L2PCI3,7,FALSE)","v":0}]
[]
[null,"Additional Card for PCIe Slot 4 (Full height) (CPU 2)"]
[null,"None",{"$f":"IF(B113=TS2L2ASP,\"\",VLOOKUP(B113,TS2L2PCI4,2,FALSE))","v":""},{"$f":"IF(B113=TS2L2ASP,\"\",VLOOKUP(B113,TS2L2PCI4,3,FALSE))","v":""},{"$f":"IF(B113=TS2L2ASP,\"\",VLOOKUP(B113,TS2L2PCI4,4,FALSE))","v":""},{"$f":"IF(B113=TS2L2ASP,\"\",VLOOKUP(B113,TS2L2PCI4,5,FALSE))","v":""},{"$f":"IF(B113=TS2L2ASP,0,VLOOKUP(B113,TS2L2PCI4,6,FALSE))","v":0},{"$f":"IF(B113=TS2L2ASP,0,VLOOKUP(B113,TS2L2PCI4,7,FALSE))","v":0}]
[]
[null,"Additional Card for PCIe Slot 5 (Full height) (CPU 2)"]
[null,"None"]
[]
[null,"Additional Card for PCIe Slot 6 (Low height) (CPU 2)"]
[null,"None",{"$f":"IF(B119=TS2L2ASP,\"\",VLOOKUP(B119,TS2L2PCI6,2,FALSE))","v":""},{"$f":"IF(B119=TS2L2ASP,\"\",VLOOKUP(B119,TS2L2PCI6,3,FALSE))","v":""},{"$f":"IF(B119=TS2L2ASP,\"\",VLOOKUP(B119,TS2L2PCI6,4,FALSE))","v":""},{"$f":"IF(B119=TS2L2ASP,\"\",VLOOKUP(B119,TS2L2PCI6,5,FALSE))","v":""},{"$f":"IF(B119=TS2L2ASP,0,VLOOKUP(B119,TS2L2PCI6,6,FALSE))","v":0},{"$f":"IF(B119=TS2L2ASP,0,VLOOKUP(B119,TS2L2PCI6,7,FALSE))","v":0}]
[]
[null,"Additional Card for PCIe Slot 7 (Full height) (CPU 2) (BOSS controller card Slot)"]
[null,"None",{"$f":"IF(B122=TS2L2ASP,\"\",VLOOKUP(B122,TS2L2PCI7,2,FALSE))","v":""},{"$f":"IF(B122=TS2L2ASP,\"\",VLOOKUP(B122,TS2L2PCI7,3,FALSE))","v":""},{"$f":"IF(B122=TS2L2ASP,\"\",VLOOKUP(B122,TS2L2PCI7,4,FALSE))","v":""},{"$f":"IF(B122=TS2L2ASP,\"\",VLOOKUP(B122,TS2L2PCI7,5,FALSE))","v":""},{"$f":"IF(B122=TS2L2ASP,0,VLOOKUP(B122,TS2L2PCI7,6,FALSE))","v":0},{"$f":"IF(B122=TS2L2ASP,0,VLOOKUP(B122,TS2L2PCI7,7,FALSE))","v":0}]
[]
[null,"Additional Card for PCIe Slot 8 (Full height) (CPU 2)"]
[null,"None",{"$f":"IF(B125=TS2L2ASP,\"\",VLOOKUP(B125,TS2L2PCI8,2,FALSE))","v":""},{"$f":"IF(B125=TS2L2ASP,\"\",VLOOKUP(B125,TS2L2PCI8,3,FALSE))","v":""},{"$f":"IF(B125=TS2L2ASP,\"\",VLOOKUP(B125,TS2L2PCI8,4,FALSE))","v":""},{"$f":"IF(B125=TS2L2ASP,\"\",VLOOKUP(B125,TS2L2PCI8,5,FALSE))","v":""},{"$f":"IF(B125=TS2L2ASP,0,VLOOKUP(B125,TS2L2PCI8,6,FALSE))","v":0},{"$f":"IF(B125=TS2L2ASP,0,VLOOKUP(B125,TS2L2PCI8,7,FALSE))","v":0}]
[]
[null,"Bezel"]
[null,"No Bezel",{"$f":"VLOOKUP($B$128,TS2L2BEZEL,2,FALSE)","v":0},{"$f":"VLOOKUP($B$128,TS2L2BEZEL,3,FALSE)","v":"[350-BBBW]"},{"$f":"VLOOKUP($B$128,TS2L2BEZEL,4,FALSE)","v":0},{"$f":"VLOOKUP($B$128,TS2L2BEZEL,5,FALSE)","v":""},{"$f":"VLOOKUP($B$128,TS2L2BEZEL,6,FALSE)","v":0},{"$f":"VLOOKUP($B$128,TS2L2BEZEL,7,FALSE)","v":0}]
[]
[null,"Rack Rails"]
[null,{"$f":"VLOOKUP($B$128,TS2L2BEZEL,8,FALSE)","v":"ReadyRails™ Sliding Rails Without Cable Management Arm"},{"$f":"VLOOKUP($B$128,TS2L2BEZEL,9,FALSE)","v":1},{"$f":"VLOOKUP($B$128,TS2L2BEZEL,10,FALSE)","v":"[770-BBBQ]"},{"$f":"VLOOKUP($B$128,TS2L2BEZEL,11,FALSE)","v":0}]
[]
[null,"Internal Optical Drive"]
[null,"No Internal Optical Drive for 12/24 HD Chassis",1,"[429-AAIQ]"]
[]
[null,"Direct Attach Cable"]
[null,"5 x Dell Networking, Cable, SFP+ to SFP+, 10GbE, Copper Twinax DAC, 3 Meter A20",0,null,"470-AAVJ",{"$f":"IF(C137=0,\"\",\"TS2L2-5XDAC10M3\")","v":""},null,{"$f":"125*C137","v":0}]
[]
[null,"5 x Dell Networking Cable, 100GbE QSFP28 to QSFP28,Passive Copper DAC, 2 Meter A20",0,null,"470-ABQG",{"$f":"IF(C139=0,\"\",\"TS2L2-5XDAC100M2\")","v":""},null,{"$f":"940*C139","v":0}]
[]
[null,"5 x Dell Networking Cable,100GbE QSFP28 to QSFP28, Passive Copper DAC, 3 Meter A20",0,null,"470-ABQE",{"$f":"IF(C141=0,\"\",\"TS2L2-5XDAC100M3\")","v":""},null,{"$f":"1125*C141","v":0}]
[]
[null,"Cavi rj45"]
[null,"Cavo Rete UTP cat. 5e 3 metri",5,null,"ROS1403/G",{"$f":"IF(C144=0,\"\",\"TS2L2-3MRJ45\")","v":"TS2L2-3MRJ45"},null,{"$f":"2*C144","v":10}]
[]
[null,"Estenzione di Garanzia"]
[null,"None",{"$f":"VLOOKUP(B147,TS2L2WARRANTY,2,FALSE)","v":""},{"$f":"VLOOKUP(B147,TS2L2WARRANTY,3,FALSE)","v":""},{"$f":"VLOOKUP(B147,TS2L2WARRANTY,4,FALSE)","v":""},{"$f":"VLOOKUP(B147,TS2L2WARRANTY,5,FALSE)","v":""},{"$f":"VLOOKUP(B147,TS2L2WARRANTY,6,FALSE)","v":0}]

{"sheet":"Lotto2_R7425-3","index":2,"n_rows":147,"n_cols":9,"rows_kept":147,"cut":false,"hidden":false,"merged":[[76,1,76,2],[36,0,40,0],[0,5,1,5],[4,0,4,4],[55,0,61,0],[63,0,71,0]]}
[null,"TOTALE PRODOTTI CONVENZIONE",{"$f":"SUM(G13:G148)*$C$10","v":0},null,null,{"$f":"IF(I1+I2=0,(C1+C2),\"ERRORE VERIFICARE LA CONFIGURAZIONE\")","v":0},null,null,{"$f":"IF(A37=\"\",0,1)","v":0}]
[null,"TOTALE ARTICOLI 20%",{"$f":"SUM(H13:H148)*$C$10","v":0},null,null,null,null,null,{"$f":"IF(A77=\"\",0,1)","v":0}]
[null,"Indicare qui la quantità Server ----->",0,null,null,{"$f":"Riepilogo!T6","v":"ver. 3.0"}]
[]
["          POWEREDGE R7425"]
[]
[]
[]
[]
[null,"Quantità:",{"$f":"C3","v":0}]
[]
[null,"Modello Server"]
[null,"PowerEdge R7425 Server",1,"[210-APFK]",null,"TS2L2-SRV",1849]
[]
[null,"Configurazione dello chassis"]
[null,"Chassis with up to 24 x 2.5\" SAS/SATA Hard Drives for 1&2CPU Configuration, Risers 1, 3, 5, 7",1,"[321-BDGE]"]
[]
[null,"Trusted Platform Module"]
[null,"No Trusted Platform Module",1,"[461-AADZ]"]
[]
[null,"Processore"]
[null,"AMD EPYC 7281 2.1GHz/2.7GHz, 16C/32T, 32M Cache (155W/170W) DDR4-2400/2666",1,"[338-BNBZ]"]
[]
[null,"Processore aggiuntivo"]
[null,"No Additional Processor",{"$f":"VLOOKUP($B$25,TS2L2CPU,2,FALSE)","v":0},{"$f":"VLOOKUP($B$25,TS2L2CPU,3,FALSE)","v":"[374-BBBX]"},{"$f":"VLOOKUP($B$25,TS2L2CPU,4,FALSE)","v":""},{"$f":"VLOOKUP($B$25,TS2L2CPU,5,FALSE)","v":""},{"$f":"VLOOKUP($B$25,TS2L2CPU,6,FALSE)","v":0},{"$f":"VLOOKUP($B$25,TS2L2CPU,7,FALSE)","v":""}]
[]
[]
[null,"Memoria Totale in GB","64     (DIMM 32GB)"]
[]
[null,"Capacità di memoria"]
[null,{"$f":"IF($C$25=0,VLOOKUP($C$28,TS2L2MEM1CPU,2,FALSE),VLOOKUP($C$28,TS2L2MEM2CPU,2,FALSE))","v":"32GB RDIMM, 2666MT/s, Dual Rank"},{"$f":"IF($C$25=0,VLOOKUP($C$28,TS2L2MEM1CPU,3,FALSE),VLOOKUP($C$28,TS2L2MEM2CPU,3,FALSE))","v":2},{"$f":"IF($C$25=0,VLOOKUP($C$28,TS2L2MEM1CPU,4,FALSE),VLOOKUP($C$28,TS2L2MEM2CPU,4,FALSE))","v":"[370-ADNF]"},{"$f":"IF($C$25=0,VLOOKUP($C$28,TS2L2MEM1CPU,5,FALSE),VLOOKUP($C$28,TS2L2MEM2CPU,5,FALSE))","v":"A9781929"},{"$f":"IF($C$25=0,VLOOKUP($C$28,TS2L2MEM1CPU,6,FALSE),VLOOKUP($C$28,TS2L2MEM2CPU,6,FALSE))","v":""},{"$f":"IF($C$25=0,VLOOKUP($C$28,TS2L2MEM1CPU,7,FALSE),VLOOKUP($C$28,TS2L2MEM2CPU,7,FALSE))","v":0}]
[]
[null,"Sistema operativo preinstallato"]
[null,"None",{"$f":"VLOOKUP($B$34,TS2L2OS,2,FALSE)","v":""},{"$f":"VLOOKUP($B$34,TS2L2OS,3,FALSE)","v":"[619-ABVR]"},{"$f":"VLOOKUP($B$34,TS2L2OS,4,FALSE)","v":0},{"$f":"VLOOKUP($B$34,TS2L2OS,5,FALSE)","v":""},{"$f":"VLOOKUP($B$34,TS2L2OS,6,FALSE)","v":0},{"$f":"VLOOKUP($B$34,TS2L2OS,7,FALSE)","v":0},{"$f":"IF(E34=0,1,0)","v":1}]
[null,{"$f":"IF($C$25=1,(VLOOKUP($B$34,TS2L2OS,8,FALSE)),\"\")","v":""},{"$f":"IF($C$25=1,(VLOOKUP($B$34,TS2L2OS,9,FALSE)),\"\")","v":""},{"$f":"IF($C$25=1,(VLOOKUP($B$34,TS2L2OS,10,FALSE)),\"\")","v":""},{"$f":"IF($C$25=1,(VLOOKUP($B$34,TS2L2OS,11,FALSE)),\"\")","v":""},{"$f":"IF($C$25=1,(VLOOKUP($B$34,TS2L2OS,12,FALSE)),\"\")","v":""},{"$f":"IF($C$25=1,(VLOOKUP($B$34,TS2L2OS,13,FALSE)),\"\")","v":""},{"$f":"IF($C$25=1,(VLOOKUP($B$34,TS2L2OS,14,FALSE)),0)","v":0}]
[]
[{"$f":"IF((I34*I38)=0,\"\",\"ERRORE: \nLa selezione di licenze CAL senza il Sistema Operativo Microsoft Windows non è consentita.\")","v":""},"Client Access Licenses"]
[null,{"$f":"IF($E$34>0,'Regole di configurazione'!A83,\"\")","v":""},0,{"$f":"IF($E$34>0,'Regole di configurazione'!C83,\"\")","v":""},{"$f":"IF($E$34>0,'Regole di configurazione'!D83,\"\")","v":""},{"$f":"IF($E$34>0,'Regole di configurazione'!E83,\"\")","v":""},{"$f":"IF($E$34>0,'Regole di configurazione'!F83,0)*C38","v":0},{"$f":"IF($E$34>0,'Regole di configurazione'!G83,\"\")","v":""},{"$f":"C38+C40","v":0}]
[]
[null,{"$f":"IF($E$34>0,'Regole di configurazione'!A84,\"\")","v":""},0,{"$f":"IF($E$34>0,'Regole di configurazione'!C84,\"\")","v":""},{"$f":"IF($E$34>0,'Regole di configurazione'!D84,\"\")","v":""},{"$f":"IF($E$34>0,'Regole di configurazione'!E84,\"\")","v":""},{"$f":"IF($E$34>0,'Regole di configurazione'!F84,0)*C40","v":0},{"$f":"IF($E$34>0,'Regole di configurazione'!G84,\"\")","v":""}]
[]
[null,"Sistema operativo VMware"]
[null,"Vmware vSphere Essentials Plus Kit"]
[null,"None",{"$f":"VLOOKUP($B$44,TS2L2VMWARE1,2,FALSE)","v":1},{"$f":"VLOOKUP($B$44,TS2L2VMWARE1,3,FALSE)","v":""},{"$f":"VLOOKUP($B$44,TS2L2VMWARE1,4,FALSE)","v":""},{"$f":"VLOOKUP($B$44,TS2L2VMWARE1,5,FALSE)","v":""},{"$f":"VLOOKUP($B$44,TS2L2VMWARE1,6,FALSE)","v":0},{"$f":"VLOOKUP($B$44,TS2L2VMWARE1,7,FALSE)*C44","v":0}]
[null,"VMware vCenter Server Standard"]
[null,"None",{"$f":"VLOOKUP($B$46,TS2L2VMWARE2,2,FALSE)","v":1},{"$f":"VLOOKUP($B$46,TS2L2VMWARE2,3,FALSE)","v":""},{"$f":"VLOOKUP($B$46,TS2L2VMWARE2,4,FALSE)","v":""},{"$f":"VLOOKUP($B$46,TS2L2VMWARE2,5,FALSE)","v":""},{"$f":"VLOOKUP($B$46,TS2L2VMWARE2,6,FALSE)","v":0},{"$f":"VLOOKUP($B$46,TS2L2VMWARE2,7,FALSE)*C46","v":0}]
[null,"Vmware vSphere Standard/Enterprise"]
[null,"None",{"$f":"(VLOOKUP($B$48,TS2L2VMWARE3,2,FALSE))+C25","v":0},{"$f":"VLOOKUP($B$48,TS2L2VMWARE3,3,FALSE)","v":""},{"$f":"VLOOKUP($B$48,TS2L2VMWARE3,4,FALSE)","v":""},{"$f":"VLOOKUP($B$48,TS2L2VMWARE3,5,FALSE)","v":""},{"$f":"VLOOKUP($B$48,TS2L2VMWARE3,6,FALSE)","v":0},{"$f":"VLOOKUP($B$48,TS2L2VMWARE3,7,FALSE)*C48","v":0}]
[null,"VMware vSAN"]
[null,"None",{"$f":"(VLOOKUP($B$50,TS2L2VMWARE4,2,FALSE))+C25","v":0},{"$f":"VLOOKUP($B$50,TS2L2VMWARE4,3,FALSE)","v":""},{"$f":"VLOOKUP($B$50,TS2L2VMWARE4,4,FALSE)","v":""},{"$f":"VLOOKUP($B$50,TS2L2VMWARE4,5,FALSE)","v":""},{"$f":"VLOOKUP($B$50,TS2L2VMWARE4,6,FALSE)","v":0},{"$f":"VLOOKUP($B$50,TS2L2VMWARE4,7,FALSE)*C50","v":0}]
[]
[null,"Controller Dischi"]
[null,{"$f":"B110","v":"PERC H730P RAID Controller, 2Gb NV Cache, Adapter, Full Height"},{"$f":"C110","v":1},{"$f":"D110","v":"[405-AAMR]"},{"$f":"E110","v":"405-AAMY"}]
[]
[null,"Dischi rigidi (numero massimo totale 24)"]
["\n\nSAS 10K","600GB 10K RPM SAS 12Gbps 512n 2.5in Hot-plug Hard Drive",2,"[400-ASGS]","400-AUNQ",{"$f":"IF(C56<=2,\"\",\"TS2L2-10K600\")","v":""},{"$f":"IF(C56<=2,0,(C56-2)*'Regole di configurazione'!F13)","v":0}]
[]
[null,"1.2TB 10K RPM SAS 12Gbps 512n 2.5in Hot-plug Hard Drive",0,"[400-ASHI]","400-ATJL",{"$f":"IF(C58=0,\"\",\"TS2L2-10K1200\")","v":""},{"$f":"C58*'Regole di configurazione'!F14","v":0}]
[]
[null,"1.8TB 10K RPM SAS 12Gbps 512e 2.5in Hot-plug Hard Drive ",0,"[400-ARXC]","400-ATJR",{"$f":"IF(C60=0,\"\",\"TS2L2-10K1800\")","v":""},null,{"$f":"C60*162","v":0}]
[]
[null,"2.4TB 10K RPM SAS 12Gbps 512e 2.5in Hot-plug Hard Drive NO VMWARE A20",0,null,"400-AVBX",{"$f":"IF(C62=0,\"\",\"TS2L2-10K2400\")","v":""},null,{"$f":"C62*389","v":0}]
[]
["\n\nSSD SAS RI","480GB SSD SAS Mixed Use 12Gbps 2.5in Hot-Plug A20",0,null,"400-BCOD",{"$f":"IF(C64=0,\"\",\"TS2L2-SSDM480\")","v":""},{"$f":"C64*'Regole di configurazione'!F15","v":0}]
[]
[null,"SSD 400GB SAS WI 12Gbps 2.5in Hot-plug Drive, 10 DWPD A20",0,null,"400-ATGH",{"$f":"IF(C66=0,\"\",\"TS2L2-SSDW400\")","v":""},null,{"$f":"C66*1155","v":0}]
[]
[null,"SSD 1600GB SAS WI 12Gb 2.5in Hot-plug Drive, 10 DWPD A20",0,null,null,{"$f":"IF(C68=0,\"\",\"TS2L2-SSDW1600\")","v":""},null,{"$f":"C68*1475","v":0}]
[]
[null,"960GB SSD SAS Read Intensive 12Gbps 512e 2.5in Hot-plug Drive, PM5-R, 1 DWPD, 1752 TBW",0,"[400-BBPL]","400-ATLL",{"$f":"IF(C70=0,\"\",\"TS2L2-SSDR960\")","v":""},{"$f":"C70*'Regole di configurazione'!F16","v":0}]
[]
[null,"1.92TB SSD SAS Read Intensive 12Gbps 512e 2.5in Hot-plug Drive, PM1633a",0,"[400-ASFX]","400-ATND",{"$f":"IF(C72=0,\"\",\"TS2L2-SSDR1920\")","v":""},null,{"$f":"C72*'Regole di configurazione'!F17","v":0}]
[]
[null,"DISCHI TOTALI",{"$f":"SUM(C56:C73)","v":2}]
[]
[null,"NOTE sulla configurazione (CAMPO OBBLIGATORIO)"]
[{"$f":"IF(C74<=24,\"\",\"ERRORE:   Totale n° di dischi superiore al consentito\")","v":""},"Specificare la configurazione RAID per l'installazione del Sistema Operativo, se richiesto.\ne/o\ninserire eventuali note.",null,null,"Specificare la configurazione RAID per l'installazione del Sistema Operativo, se richiesto.\ne/o\ninserire eventuali note.",{"$f":"IF(B77=E77,\"ERRORE:   Compilare il campo NOTE\",\"\")","v":"ERRORE:   Compilare il campo NOTE"}]
[]
[null,"Ventole"]
[null,"6 Standard Fans",1,"[384-BBSU]"]
[]
[null,"Alimentatore"]
[null,"Dual, Hot-plug, Redundant Power Supply (1+1), 1100W",1,"[450-ADWM]"]
[]
[null,"Cavi di alimentazione"]
[null,"Rack Power Cord 2M (C13/C14 10A)",2,"[450-AADY]"]
[]
[null,"PCIe Riser"]
[null,"Riser Config 1, 2 x8, 1 x16 slots",{"$f":"VLOOKUP($B$89,TS2L2RISER,2,FALSE)","v":0},{"$f":"VLOOKUP($B$89,TS2L2RISER,3,FALSE)","v":"[330-BBIY]"},{"$f":"VLOOKUP($B$89,TS2L2RISER,4,FALSE)","v":""},{"$f":"VLOOKUP($B$89,TS2L2RISER,5,FALSE)","v":""},{"$f":"VLOOKUP($B$89,TS2L2RISER,6,FALSE)","v":0},{"$f":"VLOOKUP($B$89,TS2L2RISER,7,FALSE)","v":0},{"$f":"VLOOKUP($B$89,TS2L2RISER,8,FALSE)","v":"_NORISER"}]
[]
[null,"Modulo Doppia SD - Internal Dual SD Module (IDSDM)"]
[null,"None",{"$f":"VLOOKUP(B92,TS2L2IDSDM,2,FALSE)","v":0},{"$f":"VLOOKUP(B92,TS2L2IDSDM,3,FALSE)","v":0},{"$f":"VLOOKUP(B92,TS2L2IDSDM,4,FALSE)","v":0},{"$f":"VLOOKUP(B92,TS2L2IDSDM,5,FALSE)","v":""},{"$f":"VLOOKUP(B92,TS2L2IDSDM,6,FALSE)","v":0},{"$f":"VLOOKUP(B92,TS2L2IDSDM,7,FALSE)","v":0}]
[]
[null,"Embedded Systems Management"]
[null,"iDRAC9,Enterprise",1,"[385-BBKT]"]
[]
[]
[]
[]
[null,"Network Daughter Card"]
[null,"Broadcom 5720 QP 1Gb Network Daughter Card",1,"[540-BBBW]"]
[]
[null,"Additional Card for PCIe Slot 1 (Full height) (CPU 1)"]
[null,"None",{"$f":"VLOOKUP(B104,TS2L2PCI1,2,FALSE)","v":""},{"$f":"VLOOKUP(B104,TS2L2PCI1,3,FALSE)","v":""},{"$f":"VLOOKUP(B104,TS2L2PCI1,4,FALSE)","v":""},{"$f":"VLOOKUP(B104,TS2L2PCI1,5,FALSE)","v":""},{"$f":"VLOOKUP(B104,TS2L2PCI1,6,FALSE)","v":0},{"$f":"VLOOKUP(B104,TS2L2PCI1,7,FALSE)","v":0}]
[]
[null,"Additional Card for PCIe Slot 2 (Full height) (CPU 1)"]
[null,"None",{"$f":"VLOOKUP(B107,TS2L2PCI2,2,FALSE)","v":""},{"$f":"VLOOKUP(B107,TS2L2PCI2,3,FALSE)","v":""},{"$f":"VLOOKUP(B107,TS2L2PCI2,4,FALSE)","v":""},{"$f":"VLOOKUP(B107,TS2L2PCI2,5,FALSE)","v":""},{"$f":"VLOOKUP(B107,TS2L2PCI2,6,FALSE)","v":0},{"$f":"VLOOKUP(B107,TS2L2PCI2,7,FALSE)","v":0}]
[]
[null,"Additional Card for PCIe Slot 3 (Full height) (CPU 1)"]
[null,"PERC H730P RAID Controller, 2Gb NV Cache, Adapter, Full Height",{"$f":"VLOOKUP(B110,TS2L2PCI3,2,FALSE)","v":1},{"$f":"VLOOKUP(B110,TS2L2PCI3,3,FALSE)","v":"[405-AAMR]"},{"$f":"VLOOKUP(B110,TS2L2PCI3,4,FALSE)","v":"405-AAMY"},{"$f":"VLOOKUP(B110,TS2L2PCI3,5,FALSE)","v":""},{"$f":"VLOOKUP(B110,TS2L2PCI3,6,FALSE)","v":0},{"$f":"VLOOKUP(B110,TS2L2PCI3,7,FALSE)","v":0}]
[]
[null,"Additional Card for PCIe Slot 4 (Full height) (CPU 2)"]
[null,"None",{"$f":"IF(B113=TS2L2ASP,\"\",VLOOKUP(B113,TS2L2PCI4,2,FALSE))","v":""},{"$f":"IF(B113=TS2L2ASP,\"\",VLOOKUP(B113,TS2L2PCI4,3,FALSE))","v":""},{"$f":"IF(B113=TS2L2ASP,\"\",VLOOKUP(B113,TS2L2PCI4,4,FALSE))","v":""},{"$f":"IF(B113=TS2L2ASP,\"\",VLOOKUP(B113,TS2L2PCI4,5,FALSE))","v":""},{"$f":"IF(B113=TS2L2ASP,0,VLOOKUP(B113,TS2L2PCI4,6,FALSE))","v":0},{"$f":"IF(B113=TS2L2ASP,0,VLOOKUP(B113,TS2L2PCI4,7,FALSE))","v":0}]
[]
[null,"Additional Card for PCIe Slot 5 (Full height) (CPU 2)"]
[null,"None"]
[]
[null,"Additional Card for PCIe Slot 6 (Low height) (CPU 2)"]
[null,"None",{"$f":"IF(B119=TS2L2ASP,\"\",VLOOKUP(B119,TS2L2PCI6,2,FALSE))","v":""},{"$f":"IF(B119=TS2L2ASP,\"\",VLOOKUP(B119,TS2L2PCI6,3,FALSE))","v":""},{"$f":"IF(B119=TS2L2ASP,\"\",VLOOKUP(B119,TS2L2PCI6,4,FALSE))","v":""},{"$f":"IF(B119=TS2L2ASP,\"\",VLOOKUP(B119,TS2L2PCI6,5,FALSE))","v":""},{"$f":"IF(B119=TS2L2ASP,0,VLOOKUP(B119,TS2L2PCI6,6,FALSE))","v":0},{"$f":"IF(B119=TS2L2ASP,0,VLOOKUP(B119,TS2L2PCI6,7,FALSE))","v":0}]
[]
[null,"Additional Card for PCIe Slot 7 (Full height) (CPU 2) (BOSS controller card Slot)"]
[null,"None",{"$f":"IF(B122=TS2L2ASP,\"\",VLOOKUP(B122,TS2L2PCI7,2,FALSE))","v":""},{"$f":"IF(B122=TS2L2ASP,\"\",VLOOKUP(B122,TS2L2PCI7,3,FALSE))","v":""},{"$f":"IF(B122=TS2L2ASP,\"\",VLOOKUP(B122,TS2L2PCI7,4,FALSE))","v":""},{"$f":"IF(B122=TS2L2ASP,\"\",VLOOKUP(B122,TS2L2PCI7,5,FALSE))","v":""},{"$f":"IF(B122=TS2L2ASP,0,VLOOKUP(B122,TS2L2PCI7,6,FALSE))","v":0},{"$f":"IF(B122=TS2L2ASP,0,VLOOKUP(B122,TS2L2PCI7,7,FALSE))","v":0}]
[]
[null,"Additional Card for PCIe Slot 8 (Full height) (CPU 2)"]
[null,"None",{"$f":"IF(B125=TS2L2ASP,\"\",VLOOKUP(B125,TS2L2PCI8,2,FALSE))","v":""},{"$f":"IF(B125=TS2L2ASP,\"\",VLOOKUP(B125,TS2L2PCI8,3,FALSE))","v":""},{"$f":"IF(B125=TS2L2ASP,\"\",VLOOKUP(B125,TS2L2PCI8,4,FALSE))","v":""},{"$f":"IF(B125=TS2L2ASP,\"\",VLOOKUP(B125,TS2L2PCI8,5,FALSE))","v":""},{"$f":"IF(B125=TS2L2ASP,0,VLOOKUP(B125,TS2L2PCI8,6,FALSE))","v":0},{"$f":"IF(B125=TS2L2ASP,0,VLOOKUP(B125,TS2L2PCI8,7,FALSE))","v":0}]
[]
[null,"Bezel"]
[null,"No Bezel",{"$f":"VLOOKUP($B$128,TS2L2BEZEL,2,FALSE)","v":0},{"$f":"VLOOKUP($B$128,TS2L2BEZEL,3,FALSE)","v":"[350-BBBW]"},{"$f":"VLOOKUP($B$128,TS2L2BEZEL,4,FALSE)","v":0},{"$f":"VLOOKUP($B$128,TS2L2BEZEL,5,FALSE)","v":""},{"$f":"VLOOKUP($B$128,TS2L2BEZEL,6,FALSE)","v":0},{"$f":"VLOOKUP($B$128,TS2L2BEZEL,7,FALSE)","v":0}]
[]
[null,"Rack Rails"]
[null,{"$f":"VLOOKUP($B$128,TS2L2BEZEL,8,FALSE)","v":"ReadyRails™ Sliding Rails Without Cable Management Arm"},{"$f":"VLOOKUP($B$128,TS2L2BEZEL,9,FALSE)","v":1},{"$f":"VLOOKUP($B$128,TS2L2BEZEL,10,FALSE)","v":"[770-BBBQ]"},{"$f":"VLOOKUP($B$128,TS2L2BEZEL,11,FALSE)","v":0}]
[]
[null,"Internal Optical Drive"]
[null,"No Internal Optical Drive for 12/24 HD Chassis",1,"[429-AAIQ]"]
[]
[null,"Direct Attach Cable"]
[null,"5 x Dell Networking, Cable, SFP+ to SFP+, 10GbE, Copper Twinax DAC, 3 Meter A20",0,null,"470-AAVJ",{"$f":"IF(C137=0,\"\",\"TS2L2-5XDAC10M3\")","v":""},null,{"$f":"125*C137","v":0}]
[]
[null,"5 x Dell Networking Cable, 100GbE QSFP28 to QSFP28,Passive Copper DAC, 2 Meter A20",0,null,"470-ABQG",{"$f":"IF(C139=0,\"\",\"TS2L2-5XDAC100M2\")","v":""},null,{"$f":"940*C139","v":0}]
[]
[null,"5 x Dell Networking Cable,100GbE QSFP28 to QSFP28, Passive Copper DAC, 3 Meter A20",0,null,"470-ABQE",{"$f":"IF(C141=0,\"\",\"TS2L2-5XDAC100M3\")","v":""},null,{"$f":"1125*C141","v":0}]
[]
[null,"Cavi rj45"]
[null,"Cavo Rete UTP cat. 5e 3 metri",5,null,"ROS1403/G",{"$f":"IF(C144=0,\"\",\"TS2L2-3MRJ45\")","v":"TS2L2-3MRJ45"},null,{"$f":"2*C144","v":10}]
[]
[null,"Estenzione di Garanzia"]
[null,"None",{"$f":"VLOOKUP(B147,TS2L2WARRANTY,2,FALSE)","v":""},{"$f":"VLOOKUP(B147,TS2L2WARRANTY,3,FALSE)","v":""},{"$f":"VLOOKUP(B147,TS2L2WARRANTY,4,FALSE)","v":""},{"$f":"VLOOKUP(B147,TS2L2WARRANTY,5,FALSE)","v":""},{"$f":"VLOOKUP(B147,TS2L2WARRANTY,6,FALSE)","v":0}]

{"sheet":"Lotto3_R7425(GPU)","index":3,"n_rows":175,"n_cols":9,"rows_kept":175,"cut":false,"hidden":true,"merged":[[79,1,79,2],[0,5,1,5],[3,0,3,4],[45,0,49,0],[60,0,64,0],[66,0,68,0]]}
[null,"TOTALE PRODOTTI CONVENZIONE",{"$f":"SUM(G12:G185)*$C$9","v":0},null,null,{"$f":"IF(I1+I2=0,(C1+C2),\"ERRORE VERIFICARE LA CONFIGURAZIONE\")","v":{"$error":"#REF!"}},null,null,{"$f":"IF(A46=\"\",0,1)","v":0}]
[null,"TOTALE ARTICOLI 20%",{"$f":"SUM(H12:H185)*$C$9","v":{"$error":"#REF!"}},null,null,null,null,null,{"$f":"IF(A80=\"\",0,1)","v":0}]
[]
["POWEREDGE R7425 GPU Ready (3GPU max)"]
[]
[]
[]
[]
[null,"Quantità:",0]
[]
[null,"Modello Server"]
[null,"PowerEdge R7425 Server",1,"[210-APFK]",null,"TS2L3-SRV",2087]
[]
[null,"Configurazione dello chassis"]
[null,"Chassis w/ up to 24 x 2.5\" SAS/SATA Hard Drives for 2CPU Configuration with GPU capable, Risers 4,6",1,"[321-BDWP]",null,"TS2L3-KITGPU",null,{"$f":"'Codici&PrezzixRiepilogo'!#REF!","v":{"$error":"#REF!"}}]
[]
[null,"Trusted Platform Module"]
[null,"No Trusted Platform Module",1,"[461-AADZ]"]
[]
[null,"Processore"]
[null,"AMD EPYC 7281 2.1GHz/2.7GHz, 16C/32T, 32M Cache (155W/170W) DDR4-2400/2666",1,"[338-BNBZ]"]
[]
[null,"Processore aggiuntivo"]
[null,"AMD EPYC 7281 2.1GHz/2.7GHz, 16C/32T, 32M Cache (155W/170W) DDR4-2400/2666",{"$f":"VLOOKUP($B$24,TS2L2CPU,2,FALSE)","v":1},{"$f":"VLOOKUP($B$24,TS2L2CPU,3,FALSE)","v":0},{"$f":"VLOOKUP($B$24,TS2L2CPU,4,FALSE)","v":"338-BNKP"},{"$f":"VLOOKUP($B$24,TS2L2CPU,5,FALSE)","v":"TS2L2-CPU"},{"$f":"VLOOKUP($B$24,TS2L2CPU,6,FALSE)","v":491},{"$f":"VLOOKUP($B$24,TS2L2CPU,7,FALSE)","v":""}]
[]
[null,"Configurazione Termica del Processore"]
[null,{"$f":"VLOOKUP($B$24,TS2L2CPU,8,FALSE)","v":"Standard Heatsinks, below 180W CPU"},{"$f":"VLOOKUP($B$24,TS2L2CPU,9,FALSE)","v":2},{"$f":"VLOOKUP($B$24,TS2L2CPU,10,FALSE)","v":"[412-AALN]"},{"$f":"VLOOKUP($B$24,TS2L2CPU,11,FALSE)","v":"412-AALJ"}]
[null,{"$f":"VLOOKUP($B$24,TS2L2CPU,12,FALSE)","v":""},{"$f":"VLOOKUP($B$24,TS2L2CPU,13,FALSE)","v":""},{"$f":"VLOOKUP($B$24,TS2L2CPU,14,FALSE)","v":""}]
[]
[]
[null,"Memoria Totale in GB","64     (DIMM 32GB)"]
[]
[null,"Tipo di configurazione memoria"]
[null,"Performance Optimized",1,"[370-AAIP]"]
[]
[null,"Tipo e velocità della memoria DIMM"]
[null,{"$f":"IF($C$24=0,VLOOKUP($C$31,TS2L2MEM1CPU,9,FALSE),VLOOKUP($C$31,TS2L2MEM2CPU,9,FALSE))","v":"2666MT/s RDIMMs"},{"$f":"IF($C$24=0,VLOOKUP($C$31,TS2L2MEM1CPU,10,FALSE),VLOOKUP($C$31,TS2L2MEM2CPU,10,FALSE))","v":1},{"$f":"IF($C$24=0,VLOOKUP($C$31,TS2L2MEM1CPU,11,FALSE),VLOOKUP($C$31,TS2L2MEM2CPU,11,FALSE))","v":"[370-ADNU]"}]
[]
[null,"Capacità di memoria"]
[null,{"$f":"IF($C$24=0,VLOOKUP($C$31,TS2L2MEM1CPU,2,FALSE),VLOOKUP($C$31,TS2L2MEM2CPU,2,FALSE))","v":"32GB RDIMM, 2666MT/s, Dual Rank"},{"$f":"IF($C$24=0,VLOOKUP($C$31,TS2L2MEM1CPU,3,FALSE),VLOOKUP($C$31,TS2L2MEM2CPU,3,FALSE))","v":2},{"$f":"IF($C$24=0,VLOOKUP($C$31,TS2L2MEM1CPU,4,FALSE),VLOOKUP($C$31,TS2L2MEM2CPU,4,FALSE))","v":"[370-ADNF]"},{"$f":"IF($C$24=0,VLOOKUP($C$31,TS2L2MEM1CPU,5,FALSE),VLOOKUP($C$31,TS2L2MEM2CPU,5,FALSE))","v":"A9781929"},{"$f":"IF($C$24=0,VLOOKUP($C$31,TS2L2MEM1CPU,6,FALSE),VLOOKUP($C$31,TS2L2MEM2CPU,6,FALSE))","v":""},{"$f":"IF($C$24=0,VLOOKUP($C$31,TS2L2MEM1CPU,7,FALSE),VLOOKUP($C$31,TS2L2MEM2CPU,7,FALSE))","v":0}]
[]
[null,"Sistema operativo preinstallato"]
[null,"None",{"$f":"VLOOKUP($B$43,TS2L2OS,2,FALSE)","v":""},{"$f":"VLOOKUP($B$43,TS2L2OS,3,FALSE)","v":"[619-ABVR]"},{"$f":"VLOOKUP($B$43,TS2L2OS,4,FALSE)","v":0},{"$f":"VLOOKUP($B$43,TS2L2OS,5,FALSE)","v":""},{"$f":"VLOOKUP($B$43,TS2L2OS,6,FALSE)","v":0},{"$f":"VLOOKUP($B$43,TS2L2OS,7,FALSE)","v":0},{"$f":"IF(E43=0,1,0)","v":1}]
[null,{"$f":"IF(C24=0,\"\",IF(E43>0,'Regole di configurazione'!A85,\"\"))","v":""},{"$f":"IF(B44=\"\",0,8)","v":0},{"$f":"IF($B$44=\"\",\"\",'Regole di configurazione'!C85)","v":""},{"$f":"IF($B$44=\"\",\"\",'Regole di configurazione'!D85)","v":""},{"$f":"IF($B$44=\"\",\"\",'Regole di configurazione'!E85)","v":""},{"$f":"IF($B$44=\"\",0,'Regole di configurazione'!F85)*C44","v":0},{"$f":"IF($B$44=\"\",\"\",'Regole di configurazione'!G85)","v":""}]
[]
[{"$f":"IF((I43*I47)=0,\"\",\"ERRORE: \nLa selezione di licenze CAL senza il Sistema Operativo Microsoft Windows non è consentita.\")","v":""},"Client Access Licenses"]
[null,{"$f":"IF($E$43>0,'Regole di configurazione'!A83,\"\")","v":""},0,{"$f":"IF($E$43>0,'Regole di configurazione'!C83,\"\")","v":""},{"$f":"IF($E$43>0,'Regole di configurazione'!D83,\"\")","v":""},{"$f":"IF($E$43>0,'Regole di configurazione'!E83,\"\")","v":""},{"$f":"IF($E$43>0,'Regole di configurazione'!F83,0)*C47","v":0},{"$f":"IF($E$43>0,'Regole di configurazione'!G83,\"\")","v":""},{"$f":"C47+C49","v":0}]
[]
[null,{"$f":"IF($E$43>0,'Regole di configurazione'!A84,\"\")","v":""},0,{"$f":"IF($E$43>0,'Regole di configurazione'!C84,\"\")","v":""},{"$f":"IF($E$43>0,'Regole di configurazione'!D84,\"\")","v":""},{"$f":"IF($E$43>0,'Regole di configurazione'!E84,\"\")","v":""},{"$f":"IF($E$43>0,'Regole di configurazione'!F84,0)*C49","v":0},{"$f":"IF($E$43>0,'Regole di configurazione'!G84,\"\")","v":""}]
[]
[null,"OS Media Kits"]
[null,"No Media Required",1,"[605-BBFN]"]
[]
[null,"RAID Configuration"]
[null,"C7, Unconfigured RAID for HDDs or SSDs (Mixed Drive Types Allowed)",1,"[780-BCDS]"]
[]
[null,"Controller Dischi"]
[null,"PERC H730P RAID Controller, 2Gb NV Cache, Adapter, Low Profile",1,"[405-AAOE]"]
[]
[null,"Dischi rigidi (numero massimo totale 24)"]
["\n\nSAS 10K","600GB 10K RPM SAS 12Gbps 512n 2.5in Hot-plug Hard Drive",2,"[400-ASGS]","400-AUNQ",{"$f":"IF(C61<=2,\"\",\"TS2L3-10K600\")","v":""},{"$f":"IF(C61<=2,0,(C61-2)*'Regole di configurazione'!F13)","v":0}]
[]
[null,"1.2TB 10K RPM SAS 12Gbps 512n 2.5in Hot-plug Hard Drive",0,"[400-ASHI]","400-ATJL",{"$f":"IF(C63=0,\"\",\"TS2L3-10K1800\")","v":""},{"$f":"C63*'Regole di configurazione'!F14","v":0}]
[]
[null,"1.8TB 10K RPM SAS 12Gbps 512e 2.5in Hot-plug Hard Drive ",0,"[400-ARXC]","400-ATJR",{"$f":"IF(C65=0,\"\",\"TS2L3-10K1200\")","v":""},{"$f":"C65*'Regole di configurazione'!G44","v":0}]
[]
["\n\nSSD SAS RI","960GB SSD SAS Read Intensive 12Gbps 512e 2.5in Hot-plug Drive, PM5-R, 1 DWPD, 1752 TBW",0,"[400-BBPL]","400-ATLL",{"$f":"IF(C67=0,\"\",\"TS2L3-SSDR960\")","v":""},{"$f":"C67*'Regole di configurazione'!F16","v":0}]
[]
[null,"1.92TB SSD SAS Read Intensive 12Gbps 512e 2.5in Hot-plug Drive, PM1633a",0,"[400-ASFX]","400-ATND",{"$f":"IF(C69=0,\"\",\"TS2L3-SSDR1920\")","v":""},{"$f":"C69*'Regole di configurazione'!F17","v":0}]
[]
[null,"DISCHI TOTALI",{"$f":"SUM(C61:C70)","v":2}]
[]
[null,"Impostazioni del BIOS per la gestione dell'alimentazione"]
[null,"Performance BIOS Setting",1,"[384-BBBL]"]
[]
[null,"Advanced System Configurations"]
[null,"UEFI BIOS Boot Mode with GPT Partition",1,"[800-BBDM]"]
[]
[null,"NOTE sulla configurazione"]
[{"$f":"IF(C71<=24,\"\",\"ERRORE:   Totale n° di dischi superiore al consentito\")","v":""},"Inserire eventuali note sulla configurazione"]
[]
[null,"Ventole"]
[null,"6 Performance Fans",1,"[384-BBST]"]
[]
[null,"Alimentatore"]
[null,"Dual, Hot-plug, Power Supply, 2000W, C19/C20 Power Cord Required ",1,"[450-AENU]"]
[]
[null,"Cavi di alimentazione"]
[null,"C19 to C20, PDU Style, 2.5M Power Cord",2,"[450-AEJI]"]
[]
[null,"PCIe Riser"]
[null,"Riser Config 4, 2 x8, 4 x16 slots ",{"$f":"VLOOKUP($B$24,TS2L2CPU,16,FALSE)","v":1},"[330-BBJC]","330-BBLX 330-BBMK 330-BBLS"]
[]
[null,"Motherboard"]
[null,"PowerEdge R7425 Motherboard",1,"[329-BDSW]"]
[]
[null,"Embedded Systems Management"]
[null,"iDRAC9,Enterprise",1,"[385-BBKT]"]
[]
[]
[]
[]
[null,"Network Daughter Card"]
[null,"Broadcom 5720 QP 1Gb Network Daughter Card",1,"[540-BBBW]"]
[]
[null,"Additional Card for PCIe Slot 1 (Full height) (CPU 1) GPU"]
[null,"None",{"$f":"VLOOKUP(B107,TS2L2PCIGPU,2,FALSE)","v":""},{"$f":"VLOOKUP(B107,TS2L2PCIGPU,3,FALSE)","v":""},{"$f":"VLOOKUP(B107,TS2L2PCIGPU,4,FALSE)","v":""},{"$f":"VLOOKUP(B107,TS2L2PCIGPU,5,FALSE)","v":""},{"$f":"VLOOKUP(B107,TS2L2PCIGPU,6,FALSE)","v":0},{"$f":"VLOOKUP(B107,TS2L2PCIGPU,7,FALSE)","v":0}]
[]
[null,"Additional Card for PCIe Slot 2 (Full height) (CPU 1)"]
[null,"None",null,null,null,null,{"$f":"VLOOKUP(B110,TS2L2PCI2,6,FALSE)","v":0},{"$f":"VLOOKUP(B110,TS2L2PCI2,7,FALSE)","v":0}]
[]
[null,"Additional Card for PCIe Slot 3 (Full height) (CPU 1)"]
[null,"None",{"$f":"VLOOKUP(B113,TS2L2PCI2,2,FALSE)","v":""},{"$f":"VLOOKUP(B113,TS2L2PCI2,3,FALSE)","v":""},{"$f":"VLOOKUP(B113,TS2L2PCI2,4,FALSE)","v":""},{"$f":"VLOOKUP(B113,TS2L2PCI2,5,FALSE)","v":""},{"$f":"VLOOKUP(B113,TS2L2PCI2,6,FALSE)","v":0},{"$f":"VLOOKUP(B113,TS2L2PCI2,7,FALSE)","v":0}]
[]
[null,"Additional Card for PCIe Slot 4 (Full height) (CPU 2) GPU"]
[null,"None",{"$f":"IF(B116=TS2L2ASP,\"\",VLOOKUP(B116,TS2L2PCIGPU,2,FALSE))","v":""},{"$f":"IF(B116=TS2L2ASP,\"\",VLOOKUP(B116,TS2L2PCIGPU,3,FALSE))","v":""},{"$f":"IF(B116=TS2L2ASP,\"\",VLOOKUP(B116,TS2L2PCIGPU,4,FALSE))","v":""},{"$f":"IF(B116=TS2L2ASP,\"\",VLOOKUP(B116,TS2L2PCIGPU,5,FALSE))","v":""},{"$f":"IF(B116=TS2L2ASP,0,VLOOKUP(B116,TS2L2PCIGPU,6,FALSE))","v":0},{"$f":"IF(B116=TS2L2ASP,0,VLOOKUP(B116,TS2L2PCIGPU,7,FALSE))","v":0}]
[]
[null,"Additional Card for PCIe Slot 5 (Full height) (CPU 2)"]
[null,"None"]
[]
[null,"Additional Card for PCIe Slot 6 (Low height) (CPU 2)"]
[null,"PERC H730P RAID Controller, 2Gb NV Cache, Adapter, Low Profile",1,"[405-AAOE]",null,null,0,0]
[]
[null,"Additional Card for PCIe Slot 7 (Full height) (CPU 2) (BOSS controller card Slot)"]
[null,"None",{"$f":"IF(B125=TS2L2ASP,\"\",VLOOKUP(B125,TS2L2PCI7,2,FALSE))","v":""},{"$f":"IF(B125=TS2L2ASP,\"\",VLOOKUP(B125,TS2L2PCI7,3,FALSE))","v":""},{"$f":"IF(B125=TS2L2ASP,\"\",VLOOKUP(B125,TS2L2PCI7,4,FALSE))","v":""},{"$f":"IF(B125=TS2L2ASP,\"\",VLOOKUP(B125,TS2L2PCI7,5,FALSE))","v":""},{"$f":"IF(B125=TS2L2ASP,0,VLOOKUP(B125,TS2L2PCI7,6,FALSE))","v":0},{"$f":"IF(B125=TS2L2ASP,0,VLOOKUP(B125,TS2L2PCI7,7,FALSE))","v":0}]
[]
[null,"Additional Card for PCIe Slot 8 (Full height) (CPU 2) GPU"]
[null,"None",{"$f":"IF(B128=TS2L2ASP,\"\",VLOOKUP(B128,TS2L2PCIGPU,2,FALSE))","v":""},{"$f":"IF(B128=TS2L2ASP,\"\",VLOOKUP(B128,TS2L2PCIGPU,3,FALSE))","v":""},{"$f":"IF(B128=TS2L2ASP,\"\",VLOOKUP(B128,TS2L2PCIGPU,4,FALSE))","v":""},{"$f":"IF(B128=TS2L2ASP,\"\",VLOOKUP(B128,TS2L2PCIGPU,5,FALSE))","v":""},{"$f":"IF(B128=TS2L2ASP,0,VLOOKUP(B128,TS2L2PCIGPU,6,FALSE))","v":0},{"$f":"IF(B128=TS2L2ASP,0,VLOOKUP(B128,TS2L2PCIGPU,7,FALSE))","v":0}]
[]
[null,"Bezel"]
[null,"No Bezel",1,"[350-BBBW]"]
[null,"MOD,TRAY,LGG,R7425",1,"[350-BBMF]"]
[]
[null,"Quick Sync"]
[null,"No Quick Sync",1,"[350-BBJV]"]
[]
[null,"Rack Rails"]
[null,"ReadyRails™ Sliding Rails Without Cable Management Arm",1,"[770-BBBQ]"]
[]
[null,"Password"]
[null,"iDRAC,Factory Generated Password",1,"[379-BCSF]"]
[]
[null,"Group Manager"]
[null,"iDRAC Group Manager, Enabled",1,"[379-BCQV]"]
[]
[null,"Internal Optical Drive"]
[null,"No Internal Optical Drive for 12/24 HD Chassis",1,"[429-AAIQ]"]
[]
[null,"Dell Services: Deployment Services"]
[null,"No Installation Service Selected (Contact Sales rep for more details)",1,"[683-11870]"]
[]
[null,"Channel only - Support Extension"]
[null,"Channel 39M Basic Warranty - Next Business Day",1,"[723-41450]"]
[]
[null,"System Documentation"]
[null,"No Systems Documentation, No OpenManage DVD Kit",1,"[631-AACK]"]
[]
[null,"Shipping Material"]
[null,"PowerEdge R7425 Shipping Material",1,"[343-BBHK]"]
[]
[null,"Shipping"]
[null,"PowerEdge R7425 Shipping EMEA1 (English/French/German/Spanish/Russian/Hebrew)",1,"[340-CBDD]"]
[]
[null,"Base warranty"]
[null,"Base Warranty",1,"[709-13131]"]
[null,"3Yr Basic Warranty - Next Business Day - Minimum Warranty",1,"[709-15813]"]
[]
[null,"Cavi"]
[null,"Cavo Rete UTP cat. 5e 3 metri",5,null,"ROS1403/G",{"$f":"IF(C169=0,\"\",\"TS2L3-ROS1403\")","v":"TS2L3-ROS1403"},null,{"$f":"2*C169","v":10}]
[]
[null,"Estenzione di Garanzia"]
[null,"None",{"$f":"VLOOKUP(B172,TS2L2WARRANTY,2,FALSE)","v":""},{"$f":"VLOOKUP(B172,TS2L2WARRANTY,3,FALSE)","v":""},{"$f":"VLOOKUP(B172,TS2L2WARRANTY,4,FALSE)","v":""},{"$f":"VLOOKUP(B172,TS2L2WARRANTY,5,FALSE)","v":""},{"$f":"VLOOKUP(B172,TS2L2WARRANTY,6,FALSE)","v":0}]
[]
[null,"Warranty Upgrades - Non-Std/Local POS"]
[null,"CSTM CONSIP - 39M Onsite Labor Support for CRU for Servers with Basic Warranty",1,"[681-24467]"]

{"sheet":"Rack e Accessori","index":4,"n_rows":45,"n_cols":11,"rows_kept":45,"cut":false,"hidden":false,"merged":[[0,7,0,8],[1,7,1,8],[0,9,1,10],[44,2,44,7],[14,2,14,7],[5,2,5,7],[8,2,8,7],[11,2,11,7],[38,2,38,7],[41,2,41,7],[17,2,17,7],[20,2,20,7],[23,2,23,7],[26,2,26,7],[32,2,32,7],[35,2,35,7],[29,2,29,7]]}
[null,null,null,null,null,null,"TOTALE PRODOTTI CONVENZIONE",{"$f":"SUM(Riepilogo!T41:U44)","v":0},null,{"$f":"IF(H2=\"\",0,H1+H2)","v":0}]
[null,null,null,null,null,null,"TOTALE ARTICOLI 20%",{"$f":"IF(Riepilogo!$T$103=\"\",\"\",Riepilogo!$T$103)","v":""}]
[]
[]
[null,null,{"$f":"IF(Riepilogo!G6=\"\",\"\",\"Rack (OpzRack)\")","v":""}]
[null,null,{"$f":"IF(Riepilogo!G6=\"\",\"\",\"Tecnosteel: armadio Rack 19'' 42U\")","v":""},null,null,null,null,null,null,null,{"$f":"IF(J6>=1,\"TS2L2-RACK\",\"\")","v":""}]
[]
[null,null,{"$f":"IF(Riepilogo!$G$6=\"\",\"\",\"PDU (OpzPDU32A)\")","v":""}]
[null,null,{"$f":"IF(Riepilogo!$G$6=\"\",\"\",\"Coppia di PDU Vertical  1Ph-32A-18xC13-6xC19 - 0U Base + Kit di montaggio\")","v":""},null,null,null,null,null,null,null,{"$f":"IF(J9>=1,\"TS2L2-PDU32A\",\"\")","v":""}]
[]
[null,null,{"$f":"IF(Riepilogo!$G$6=\"\",\"\",\"PDU (OpzPDU16AMetered)\")","v":""}]
[null,null,{"$f":"IF(Riepilogo!$G$6=\"\",\"\",\"Coppia di PDU Vertical  1Ph-16A-36xC13+6xC19 -0U Metered + Kit di montaggio\")","v":""},null,null,null,null,null,null,null,{"$f":"IF(J12>=1,\"TS2L3-TM1613606\",\"\")","v":""}]
[]
[null,null,{"$f":"IF(Riepilogo!$G$6=\"\",\"\",\"PDU (OpzPDU32AMetered)\")","v":""}]
[null,null,{"$f":"IF(Riepilogo!$G$6=\"\",\"\",\"Coppia di PDU Vertical  1Ph-32A-36xC13+6xC19 -0U Metered + Kit di montaggio\")","v":""},null,null,null,null,null,null,null,{"$f":"IF(J15>=1,\"TS2L3-TM3213606\",\"\")","v":""}]
[]
[null,null,{"$f":"IF(Riepilogo!$G$6=\"\",\"\",\"PDU (OpzPDU32A3PHMetered)\")","v":""}]
[null,null,{"$f":"IF(Riepilogo!$G$6=\"\",\"\",\"Coppia di PDU Vertical  3Ph-32A-36xC13+6xC19 -0U Metered + Kit di montaggio\")","v":""},null,null,null,null,null,null,null,{"$f":"IF(J18>=1,\"TS2L3-TM3233606\",\"\")","v":""}]
[]
[null,null,{"$f":"IF(Riepilogo!$G$6=\"\",\"\",\"PDU (OpzPDU16AControlled)\")","v":""}]
[null,null,{"$f":"IF(Riepilogo!$G$6=\"\",\"\",\"Coppia di PDU Vertical  1Ph-16A-24xC13+6xC19 -0U Controlled + Kit di montaggio\")","v":""},null,null,null,null,null,null,null,{"$f":"IF(J21>=1,\"TS2L3-TK1612406\",\"\")","v":""}]
[]
[null,null,{"$f":"IF(Riepilogo!$G$6=\"\",\"\",\"PDU (OpzPDU32AControlled)\")","v":""}]
[null,null,{"$f":"IF(Riepilogo!$G$6=\"\",\"\",\"Coppia di PDU Vertical  1Ph-32A-24xC13+6xC19 -0U Controlled + Kit di montaggio\")","v":""},null,null,null,null,null,null,null,{"$f":"IF(J24>=1,\"TS2L3-TK3212406\",\"\")","v":""}]
[]
[null,null,{"$f":"IF(Riepilogo!$G$6=\"\",\"\",\"PDU (OpzPDU32A3PHControlled)\")","v":""}]
[null,null,{"$f":"IF(Riepilogo!$G$6=\"\",\"\",\"Coppia di PDU Vertical  3Ph-32A-24xC13+6xC19 -0U Controlled + Kit di montaggio\")","v":""},null,null,null,null,null,null,null,{"$f":"IF(J27>=1,\"TS2L3-TK3232406\",\"\")","v":""}]
[]
[null,null,{"$f":"IF(Riepilogo!$G$6=\"\",\"\",\"PDU (OpzPDU16AFull)\")","v":""}]
[null,null,{"$f":"IF(Riepilogo!$G$6=\"\",\"\",\"Coppia di PDU Vertical  1Ph-16A-24xC13+6xC19 -0U Full + Kit di montaggio\")","v":""},null,null,null,null,null,null,null,{"$f":"IF(J30>=1,\"TS2L3-TF1612406\",\"\")","v":""}]
[]
[null,null,{"$f":"IF(Riepilogo!$G$6=\"\",\"\",\"PDU (OpzPDU32AFull)\")","v":""}]
[null,null,{"$f":"IF(Riepilogo!$G$6=\"\",\"\",\"Coppia di PDU Vertical  1Ph-32A-24xC13+6xC19 -0U Full + Kit di montaggio\")","v":""},null,null,null,null,null,null,null,{"$f":"IF(J33>=1,\"TS2L3-TF3212406\",\"\")","v":""}]
[]
[null,null,{"$f":"IF(Riepilogo!$G$6=\"\",\"\",\"PDU (OpzPDU32A3PHFull)\")","v":""}]
[null,null,{"$f":"IF(Riepilogo!$G$6=\"\",\"\",\"Coppia di PDU Vertical  3Ph-32A-24xC13+6xC19 -0U Full + Kit di montaggio\")","v":""},null,null,null,null,null,null,null,{"$f":"IF(J36>=1,\"TS2L3-TF3232406\",\"\")","v":""}]
[]
[null,null,{"$f":"IF(Riepilogo!G6=\"\",\"\",\"KVM (OpzGUIRack)\")","v":""}]
[null,null,{"$f":"IF(Riepilogo!G6=\"\",\"\",\"Tecnosteel: 1U Rackmount Console 17'' with Italian Keyboard\")","v":""},null,null,null,null,null,null,null,{"$f":"IF(J39>=1,\"TS2L2-GUI\",\"\")","v":""}]
[]
[null,null,{"$f":"IF(Riepilogo!G6=\"\",\"\",\"KVM Option (OpzSWGUIRack)\")","v":""}]
[null,null,{"$f":"IF(Riepilogo!G6=\"\",\"\",\"Tecnosteel: 16-port remote KVM switch with one remote user\")","v":""},null,null,null,null,null,null,null,{"$f":"IF(J42>=1,\"TS2L2-KVMIP\",\"\")","v":""}]
[]
[null,null,{"$f":"IF(Riepilogo!G6=\"\",\"\",\"Uninterrupted Power Supply (OpzUPS 3000VA)\")","v":""}]
[null,null,{"$f":"IF(Riepilogo!G6=\"\",\"\",\"Riello - UPS MSR3000EVO 3000VA 2U Rackmount (SNMP+USB+RS232)\")","v":""},null,null,null,null,null,null,null,{"$f":"IF(J45>=1,\"TS2L2-UPS\",\"\")","v":""}]

{"sheet":"Riepilogo","index":5,"n_rows":282,"n_cols":37,"rows_kept":282,"cut":false,"hidden":false,"merged":[[98,2,98,5],[98,6,98,8],[98,9,98,16],[98,17,98,18],[98,19,98,20],[195,2,195,5],[195,9,195,12],[195,16,195,19],[101,2,101,5],[101,6,101,8],[101,9,101,16],[101,17,101,18],[101,19,101,20],[155,16,155,19],[156,2,156,5],[155,9,155,12],[107,1,107,16],[107,17,107,20],[103,1,103,16],[103,17,103,20],[111,3,112,18],[104,1,104,16],[104,17,104,20],[105,1,105,16],[46,2,46,5],[46,6,46,8],[46,9,46,16],[46,17,46,18],[46,19,46,20],[47,2,47,5],[47,6,47,8],[47,9,47,16],[47,17,47,18],[47,19,47,20],[48,2,48,5],[48,6,48,8],[48,9,48,16],[48,17,48,18],[48,19,48,20],[49,2,49,5],[49,6,49,8],[49,9,49,16],[49,17,49,18],[49,19,49,20],[250,8,250,10],[252,8,268,12],[152,2,152,5],[152,9,152,12],[152,16,152,19],[147,2,147,5],[147,9,147,12],[147,16,147,19],[148,2,148,5],[148,9,148,12],[148,16,148,19],[149,2,149,5],[149,9,149,12],[149,16,149,19],[150,2,150,5],[151,2,151,5],[150,16,150,19],[151,16,151,19],[198,2,198,5],[198,9,198,12],[198,16,198,19],[246,9,246,12],[247,9,247,12],[243,9,243,12],[244,9,244,12],[245,9,245,12],[240,9,240,12],[241,9,241,12],[242,9,242,12],[248,9,248,12],[237,9,237,12],[238,9,238,12],[239,9,239,12],[234,9,234,12],[235,9,235,12],[236,9,236,12],[231,9,231,12],[232,9,232,12],[233,9,233,12],[228,9,228,12],[155,2,155,5],[229,9,229,12],[170,2,170,5],[171,2,171,5],[172,2,172,5],[173,2,173,5],[174,2,174,5],[175,2,175,5],[176,2,176,5],[177,2,177,5],[178,2,178,5],[179,2,179,5],[180,2,180,5],[181,2,181,5],[182,2,182,5],[183,2,183,5],[184,2,184,5],[230,9,230,12],[156,16,156,19],[225,9,225,12],[226,9,226,12],[227,9,227,12],[221,8,221,10],[223,9,223,12],[224,9,224,12],[200,1,200,3],[200,8,200,10],[200,15,200,17],[202,1,218,5],[202,8,218,12],[202,15,218,19],[156,9,156,12],[164,2,164,5],[165,2,165,5],[166,2,166,5],[167,2,167,5],[168,2,168,5],[169,2,169,5],[185,2,185,5],[186,2,186,5],[187,2,187,5],[18,2,18,5],[18,6,18,8],[18,9,18,16],[18,17,18,18],[18,19,18,20],[17,2,17,5],[17,6,17,8],[17,9,17,16],[17,17,17,18],[17,19,17,20],[13,1,13,20],[14,2,14,5],[14,6,14,8],[14,9,14,16],[14,17,14,18],[14,19,14,20],[16,19,16,20],[15,2,15,5],[15,6,15,8],[15,9,15,16],[15,17,15,18],[15,19,15,20],[9,17,9,20],[7,9,7,10],[11,1,11,20],[12,2,12,5],[12,6,12,8],[0,1,0,5],[0,6,0,14],[0,17,1,20],[1,1,1,5],[1,6,1,7],[2,1,2,5],[2,6,2,7],[3,1,3,5],[3,6,3,7],[12,9,12,16],[12,17,12,18],[12,19,12,20],[19,2,19,5],[19,6,19,8],[19,9,19,16],[19,17,19,18],[19,19,19,20],[4,1,4,7],[5,1,5,5],[5,6,5,7],[1,8,3,16],[4,8,4,16],[16,2,16,5],[16,6,16,8],[16,9,16,16],[16,17,16,18],[7,1,7,3],[7,4,7,8],[7,11,7,14],[7,15,7,16],[7,17,7,20],[9,1,9,3],[9,4,9,8],[9,9,9,10],[9,11,9,14],[9,15,9,16],[21,2,21,5],[21,6,21,8],[21,9,21,16],[21,17,21,18],[21,19,21,20],[20,2,20,5],[20,6,20,8],[20,9,20,16],[20,17,20,18],[20,19,20,20],[23,2,23,5],[23,6,23,8],[23,9,23,16],[23,17,23,18],[23,19,23,20],[22,2,22,5],[22,6,22,8],[22,9,22,16],[22,17,22,18],[22,19,22,20],[25,2,25,5],[25,6,25,8],[25,9,25,16],[25,17,25,18],[25,19,25,20],[24,2,24,5],[24,6,24,8],[24,9,24,16],[24,17,24,18],[24,19,24,20],[27,2,27,5],[27,6,27,8],[27,9,27,16],[27,17,27,18],[27,19,27,20],[26,2,26,5],[26,6,26,8],[26,9,26,16],[26,17,26,18],[26,19,26,20],[29,2,29,5],[29,6,29,8],[29,9,29,16],[29,17,29,18],[29,19,29,20],[28,2,28,5],[28,6,28,8],[28,9,28,16],[28,17,28,18],[28,19,28,20],[31,2,31,5],[31,6,31,8],[31,9,31,16],[31,17,31,18],[31,19,31,20],[30,2,30,5],[30,6,30,8],[30,9,30,16],[30,17,30,18],[30,19,30,20],[33,2,33,5],[33,6,33,8],[33,9,33,16],[33,17,33,18],[33,19,33,20],[32,2,32,5],[32,6,32,8],[32,9,32,16],[32,17,32,18],[32,19,32,20],[35,2,35,5],[35,6,35,8],[35,9,35,16],[35,17,35,18],[35,19,35,20],[34,2,34,5],[34,6,34,8],[34,9,34,16],[34,17,34,18],[34,19,34,20],[37,2,37,5],[37,6,37,8],[37,9,37,16],[37,17,37,18],[37,19,37,20],[36,2,36,5],[36,6,36,8],[36,9,36,16],[36,17,36,18],[36,19,36,20],[40,2,40,5],[40,6,40,8],[40,9,40,16],[40,17,40,18],[40,19,40,20],[39,1,39,20],[38,2,38,5],[38,6,38,8],[38,9,38,16],[38,17,38,18],[38,19,38,20],[42,2,42,5],[42,6,42,8],[42,9,42,16],[42,17,42,18],[42,19,42,20],[41,2,41,5],[41,6,41,8],[41,9,41,16],[41,17,41,18],[41,19,41,20],[45,2,45,5],[45,6,45,8],[45,9,45,16],[45,17,45,18],[45,19,45,20],[44,1,44,20],[43,2,43,5],[43,6,43,8],[43,9,43,16],[43,17,43,18],[43,19,43,20],[105,17,105,20],[106,1,106,16],[106,17,106,20],[118,2,118,5],[118,9,118,12],[118,16,118,19],[119,2,119,5],[119,9,119,12],[119,16,119,19],[115,1,115,3],[115,8,115,10],[115,15,115,17],[117,2,117,5],[117,9,117,12],[117,16,117,19],[122,2,122,5],[122,9,122,12],[122,16,122,19],[123,2,123,5],[123,9,123,12],[123,16,123,19],[120,2,120,5],[120,9,120,12],[120,16,120,19],[121,2,121,5],[121,9,121,12],[121,16,121,19],[126,2,126,5],[126,9,126,12],[126,16,126,19],[127,2,127,5],[127,9,127,12],[127,16,127,19],[124,2,124,5],[124,9,124,12],[124,16,124,19],[125,2,125,5],[125,9,125,12],[125,16,125,19],[130,2,130,5],[130,9,130,12],[130,16,130,19],[131,2,131,5],[131,9,131,12],[131,16,131,19],[128,2,128,5],[128,9,128,12],[128,16,128,19],[129,2,129,5],[129,9,129,12],[129,16,129,19],[134,2,134,5],[134,9,134,12],[134,16,134,19],[135,2,135,5],[135,9,135,12],[135,16,135,19],[132,2,132,5],[132,9,132,12],[132,16,132,19],[133,2,133,5],[133,9,133,12],[133,16,133,19],[138,2,138,5],[138,9,138,12],[138,16,138,19],[139,2,139,5],[139,9,139,12],[139,16,139,19],[136,2,136,5],[136,9,136,12],[136,16,136,19],[137,2,137,5],[137,9,137,12],[137,16,137,19],[154,2,154,5],[154,9,154,12],[154,16,154,19],[140,2,140,5],[140,9,140,12],[140,16,140,19],[141,2,141,5],[141,9,141,12],[141,16,141,19],[145,2,145,5],[145,9,145,12],[145,16,145,19],[146,2,146,5],[146,9,146,12],[146,16,146,19],[153,2,153,5],[153,9,153,12],[153,16,153,19],[142,2,142,5],[142,9,142,12],[142,16,142,19],[143,2,143,5],[143,9,143,12],[143,16,143,19],[144,2,144,5],[144,9,144,12],[144,16,144,19],[276,2,276,7],[276,14,276,19],[277,2,280,7],[277,14,280,19],[270,12,270,13],[270,14,270,15],[270,16,270,17],[270,18,270,19],[273,3,274,18],[270,2,270,3],[270,4,270,5],[270,6,270,7],[270,8,270,9],[270,10,270,11],[157,2,157,5],[158,2,158,5],[159,2,159,5],[160,2,160,5],[161,2,161,5],[162,2,162,5],[163,2,163,5],[50,2,50,5],[50,6,50,8],[50,9,50,16],[50,17,50,18],[50,19,50,20],[51,2,51,5],[51,6,51,8],[51,9,51,16],[51,17,51,18],[51,19,51,20],[52,2,52,5],[52,6,52,8],[52,9,52,16],[52,17,52,18],[52,19,52,20],[53,2,53,5],[53,6,53,8],[53,9,53,16],[53,17,53,18],[53,19,53,20],[54,2,54,5],[54,6,54,8],[54,9,54,16],[54,17,54,18],[54,19,54,20],[55,2,55,5],[55,6,55,8],[55,9,55,16],[55,17,55,18],[55,19,55,20],[56,2,56,5],[56,6,56,8],[56,9,56,16],[56,17,56,18],[56,19,56,20],[57,2,57,5],[57,6,57,8],[57,9,57,16],[57,17,57,18],[57,19,57,20],[58,2,58,5],[58,6,58,8],[58,9,58,16],[58,17,58,18],[58,19,58,20],[59,2,59,5],[59,6,59,8],[59,9,59,16],[59,17,59,18],[59,19,59,20],[60,2,60,5],[60,6,60,8],[60,9,60,16],[60,17,60,18],[60,19,60,20],[61,2,61,5],[61,6,61,8],[61,9,61,16],[61,17,61,18],[61,19,61,20],[62,2,62,5],[62,6,62,8],[62,9,62,16],[62,17,62,18],[62,19,62,20],[63,2,63,5],[63,6,63,8],[63,9,63,16],[63,17,63,18],[63,19,63,20],[64,2,64,5],[64,6,64,8],[64,9,64,16],[64,17,64,18],[64,19,64,20],[65,2,65,5],[65,6,65,8],[65,9,65,16],[65,17,65,18],[65,19,65,20],[66,2,66,5],[66,6,66,8],[66,9,66,16],[66,17,66,18],[66,19,66,20],[67,2,67,5],[67,6,67,8],[67,9,67,16],[67,17,67,18],[67,19,67,20],[68,2,68,5],[68,6,68,8],[68,9,68,16],[68,17,68,18],[68,19,68,20],[69,2,69,5],[69,6,69,8],[69,9,69,16],[69,17,69,18],[69,19,69,20],[70,2,70,5],[70,6,70,8],[70,9,70,16],[70,17,70,18],[70,19,70,20],[71,2,71,5],[71,6,71,8],[71,9,71,16],[71,17,71,18],[71,19,71,20],[72,2,72,5],[72,6,72,8],[72,9,72,16],[72,17,72,18],[72,19,72,20],[73,2,73,5],[73,6,73,8],[73,9,73,16],[73,17,73,18],[73,19,73,20],[74,2,74,5],[74,6,74,8],[74,9,74,16],[74,17,74,18],[74,19,74,20],[75,2,75,5],[75,6,75,8],[75,9,75,16],[75,17,75,18],[75,19,75,20],[76,2,76,5],[76,6,76,8],[76,9,76,16],[76,17,76,18],[76,19,76,20],[77,2,77,5],[77,6,77,8],[77,9,77,16],[77,17,77,18],[77,19,77,20],[78,2,78,5],[78,6,78,8],[78,9,78,16],[78,17,78,18],[78,19,78,20],[79,2,79,5],[79,6,79,8],[79,9,79,16],[79,17,79,18],[79,19,79,20],[80,2,80,5],[80,6,80,8],[80,9,80,16],[80,17,80,18],[80,19,80,20],[81,2,81,5],[81,6,81,8],[81,9,81,16],[81,17,81,18],[81,19,81,20],[82,2,82,5],[82,6,82,8],[82,9,82,16],[82,17,82,18],[82,19,82,20],[83,2,83,5],[83,6,83,8],[83,9,83,16],[83,17,83,18],[83,19,83,20],[84,2,84,5],[84,6,84,8],[84,9,84,16],[84,17,84,18],[84,19,84,20],[85,2,85,5],[85,6,85,8],[85,9,85,16],[85,17,85,18],[85,19,85,20],[86,2,86,5],[86,6,86,8],[86,9,86,16],[86,17,86,18],[86,19,86,20],[87,2,87,5],[87,6,87,8],[87,9,87,16],[87,17,87,18],[87,19,87,20],[88,2,88,5],[88,6,88,8],[88,9,88,16],[88,17,88,18],[88,19,88,20],[89,2,89,5],[89,6,89,8],[89,9,89,16],[89,17,89,18],[89,19,89,20],[90,2,90,5],[90,6,90,8],[90,9,90,16],[90,17,90,18],[90,19,90,20],[91,2,91,5],[91,6,91,8],[91,9,91,16],[91,17,91,18],[91,19,91,20],[92,2,92,5],[92,6,92,8],[92,9,92,16],[92,17,92,18],[92,19,92,20],[93,2,93,5],[93,6,93,8],[93,9,93,16],[93,17,93,18],[93,19,93,20],[94,2,94,5],[94,6,94,8],[94,9,94,16],[94,17,94,18],[94,19,94,20],[95,2,95,5],[95,6,95,8],[95,9,95,16],[95,17,95,18],[95,19,95,20],[96,2,96,5],[96,6,96,8],[96,9,96,16],[96,17,96,18],[96,19,96,20],[97,2,97,5],[97,6,97,8],[97,9,97,16],[97,17,97,18],[97,19,97,20],[188,2,188,5],[189,2,189,5],[190,2,190,5],[191,2,191,5],[192,2,192,5],[193,2,193,5],[194,2,194,5],[150,9,150,12],[151,9,151,12],[157,9,157,12],[158,9,158,12],[159,9,159,12],[160,9,160,12],[161,9,161,12],[162,9,162,12],[163,9,163,12],[164,9,164,12],[165,9,165,12],[166,9,166,12],[167,9,167,12],[168,9,168,12],[169,9,169,12],[170,9,170,12],[171,9,171,12],[172,9,172,12],[173,9,173,12],[174,9,174,12],[175,9,175,12],[176,9,176,12],[177,9,177,12],[178,9,178,12],[179,9,179,12],[180,9,180,12],[194,9,194,12],[157,16,157,19],[158,16,158,19],[159,16,159,19],[160,16,160,19],[161,16,161,19],[162,16,162,19],[163,16,163,19],[164,16,164,19],[165,16,165,19],[166,16,166,19],[167,16,167,19],[168,16,168,19],[169,16,169,19],[170,16,170,19],[171,16,171,19],[172,16,172,19],[173,16,173,19],[174,16,174,19],[175,16,175,19],[181,9,181,12],[182,9,182,12],[183,9,183,12],[184,9,184,12],[179,16,179,19],[180,16,180,19],[181,16,181,19],[182,16,182,19],[183,16,183,19],[193,16,193,19],[190,9,190,12],[191,9,191,12],[192,9,192,12],[193,9,193,12],[185,9,185,12],[186,9,186,12],[187,9,187,12],[188,9,188,12],[189,9,189,12],[99,2,99,5],[99,6,99,8],[99,9,99,16],[99,17,99,18],[99,19,99,20],[100,2,100,5],[100,6,100,8],[100,9,100,16],[100,17,100,18],[100,19,100,20],[102,2,102,5],[102,6,102,8],[102,9,102,16],[102,17,102,18],[102,19,102,20],[196,2,196,5],[197,2,197,5],[196,9,196,12],[197,9,197,12],[196,16,196,19],[197,16,197,19],[194,16,194,19],[184,16,184,19],[185,16,185,19],[186,16,186,19],[187,16,187,19],[188,16,188,19],[189,16,189,19],[190,16,190,19],[191,16,191,19],[192,16,192,19],[176,16,176,19],[177,16,177,19],[178,16,178,19]]}
[null,"Amministrazione ",null,null,null,null,null,null,null,null,null,null,null,null,null,null,null,"CONFIGURATORE ELETTRONICO TECNOLOGIE SERVER 2 LOTTO 2",null,null,null,1,null,"Server1","Server2","Server3"]
[null,"N° Identificativo Ordine ",null,null,null,null,null,null,{"$f":"IF(AA2>0,\"ERRORE DI CONFIGURAZIONE\",IF(Y13>0,\"ERRORE DI MANCATA COMPILAZIONE DATI NECESSARI PER L'ORDINATIVO\",\"Configurazione OK\"))","v":"ERRORE DI MANCATA COMPILAZIONE DATI NECESSARI PER L'ORDINATIVO"},null,null,null,null,null,null,null,null,null,null,null,null,1,"Errore",{"$f":"IF('Lotto2_R7425-1'!$F$1=\"ERRORE VERIFICARE LA CONFIGURAZIONE\",1,0)","v":0},{"$f":"IF('Lotto2_R7425-2'!$F$1=\"ERRORE VERIFICARE LA CONFIGURAZIONE\",1,0)","v":0},{"$f":"IF('Lotto2_R7425-3'!$F$1=\"ERRORE VERIFICARE LA CONFIGURAZIONE\",1,0)","v":0},{"$f":"SUM(X2:Z2)","v":0}]
[null,"Data Ordine",null,null,null,null,null,null,null,null,null,null,null,null,null,null,null,null,null,null,null,1,"Dati non compilati","Amministrazione ",{"$f":"IF(G1>0,0,1)","v":1}]
[null,"Tot Ordine Portale CONSIP IVA incl.",null,null,null,null,{"$f":"R108","v":0},null,null,null,null,null,null,null,null,null,null,null,null,null,"Nel \"Tot Ordine Portale CONSIP\" deve essere inserito l'importo totale risultante dall'ordinativo del portale CONSIP.\nQualora l'importo inserito corrisponde al valore ricalcolato dal configuratore viene attivato il pulsante \"Salva in formato PDF\" che permette di generare il file pdf da allegare all'ordinativo.",1,null,"N° Identificativo Ordine ",{"$f":"IF(G2>0,0,1)","v":1}]
[null,"LE CELLE IN GIALLO DEVO ESSERE COMPILATE OBBLIGATORIAMENTE",null,null,null,null,null,null,{"$f":"IF(AA2>0,\"\",IF(Y13>0,\"\",\"Cliccare il pulsante --------------> \nper generare il PDF da allegare\"))","v":""},null,null,null,null,null,null,null,null,null,null,null,null,1,null,"Data Ordine",{"$f":"IF(G3>0,0,1)","v":1}]
[null,"Quantità Server Ordinati",null,null,null,null,{"$f":"B15","v":""},null,null,null,null,null,null,null,null,null,null,null,null,"ver. 3.0",null,1,null,"Tot Ordine Portale CONSIP IVA incl.",{"$f":"IF(G4>0,0,1)","v":1}]
[null,null,null,null,null,null,null,null,null,null,null,null,null,null,null,null,null,null,null,null,null,1,null,"Referente per la Consegna",{"$f":"IF(E8>0,0,1)","v":1}]
[null,"Referente per la Consegna",null,null,null,null,null,null,null,"Telefono",null,null,null,null,null,"email",null,null,null,null,null,1,null,"Telefono",{"$f":"IF(L8>0,0,1)","v":1}]
[null,null,null,null,null,null,null,null,null,null,null,null,null,null,null,null,null,null,null,null,null,1,null,"email",{"$f":"IF(R8>0,0,1)","v":1}]
[null,"Referente per l'installazione",null,null,null,null,null,null,null,"Telefono",null,null,null,null,null,"email",null,null,null,null,null,1,null,"Referente per l'installazione",{"$f":"IF(E10>0,0,1)","v":1}]
[null,null,null,null,null,null,null,null,null,null,null,null,null,null,null,null,null,null,null,null,null,1,null,"Telefono",{"$f":"IF(L10>0,0,1)","v":1}]
[null,"ATTENZIONE: I CODICI PRODOTTO DELL'ORDINE DEVONO ESSERE SPECULARI A QUELLI GENERATI DAL CONFIGURATORE.",null,null,null,null,null,null,null,null,null,null,null,null,null,null,null,null,null,null,null,1,null,"email",{"$f":"IF(R10>0,0,1)","v":1}]
[null,"Qtà Ordinata","CODICE ARTICOLO PRODUTTORE",null,null,null,"CODICE ARTICOLO CONVENZIONE",null,null,"Descrizione Sintetica \n(si faccia riferimento alla guida alla convenzione per la descrizione estesa e \nper le regole di acquisto delle opzioni)",null,null,null,null,null,null,null,"Costo Unitario",null,"Costo Complessivo",null,1,null,null,{"$f":"SUM(Y3:Y12)","v":10},null,{"$f":"Y13+AA2","v":10},{"$f":"IF(AA13=0,\"_SavePDFon\",\"_SavePDFoff\")","v":"_SavePDFoff"}]
[null,"DELL EMC POWEREDGE R7425",null,null,null,null,null,null,null,null,null,null,null,null,null,null,null,null,null,null,null,{"$f":"IF(B15>=\"\",0,1)","v":0},null,"Server1","Server2","Server3","ServerGPU",null,null,null,null,null,null,null,null,null,"Somma Server"]
[null,{"$f":"IF(AK15>=1,AK15,\"\")","v":""},{"$f":"IF(AK15>0,VLOOKUP($G15,'Codici&PrezzixRiepilogo'!B:E,4,FALSE),\"\")","v":""},null,null,null,{"$f":"IF(AK15>=1,W15,\"\")","v":""},null,null,{"$f":"IF(AK15>0,VLOOKUP($G15,'Codici&PrezzixRiepilogo'!B:C,2,FALSE),\"\")","v":""},null,null,null,null,null,null,null,{"$f":"IF(AK15>0,VLOOKUP($G15,'Codici&PrezzixRiepilogo'!B:E,3,FALSE),\"\")","v":""},null,{"$f":"IF(B15=\"\",\"\",R15*B15)","v":""},null,{"$f":"IF(B15>=\"\",0,1)","v":0},"TS2L2-SRV",{"$f":"'Lotto2_R7425-1'!$C$10","v":0},{"$f":"'Lotto2_R7425-2'!$C$10","v":0},{"$f":"'Lotto2_R7425-3'!$C$10","v":0},{"$f":"'Lotto3_R7425(GPU)'!$C$9","v":0},null,null,null,null,null,null,null,null,null,{"$f":"SUM(X15:AJ15)","v":0}]
[null,{"$f":"IF(AK16>=1,AK16,\"\")","v":""},{"$f":"IF(AK16>0,VLOOKUP($G16,'Codici&PrezzixRiepilogo'!B:E,4,FALSE),\"\")","v":""},null,null,null,{"$f":"IF(AK16>=1,W16,\"\")","v":""},null,null,{"$f":"IF(AK16>0,VLOOKUP($G16,'Codici&PrezzixRiepilogo'!B:C,2,FALSE),\"\")","v":""},null,null,null,null,null,null,null,{"$f":"IF(AK16>0,VLOOKUP($G16,'Codici&PrezzixRiepilogo'!B:E,3,FALSE),\"\")","v":""},null,{"$f":"IF(B16=\"\",\"\",R16*B16)","v":""},null,{"$f":"IF(B16>=\"\",0,1)","v":0},"TS2L2-CPU",{"$f":"'Lotto2_R7425-1'!$C$25*$X$15","v":0},{"$f":"'Lotto2_R7425-2'!$C$25*$Y$15","v":0},{"$f":"'Lotto2_R7425-3'!$C$25*$Z$15","v":0},{"$f":"'Lotto3_R7425(GPU)'!$C$24*$AA$15","v":0},null,null,null,null,null,null,null,null,null,{"$f":"SUM(X16:AJ16)","v":0}]
[null,{"$f":"IF(AK17>=1,AK17,\"\")","v":""},{"$f":"IF(AK17>0,VLOOKUP($G17,'Codici&PrezzixRiepilogo'!B:E,4,FALSE),\"\")","v":""},null,null,null,{"$f":"IF(AK17>=1,W17,\"\")","v":""},null,null,{"$f":"IF(AK17>0,VLOOKUP($G17,'Codici&PrezzixRiepilogo'!B:C,2,FALSE),\"\")","v":""},null,null,null,null,null,null,null,{"$f":"IF(AK17>0,VLOOKUP($G17,'Codici&PrezzixRiepilogo'!B:E,3,FALSE),\"\")","v":""},null,{"$f":"IF(B17=\"\",\"\",R17*B17)","v":""},null,0,"TS2L2-RAM16",null,null,null,null,null,null,null,null,null,null,null,null,null,{"$f":"SUM(X17:AJ17)","v":0}]
[null,"",{"$f":"IF(AK18>0,VLOOKUP($G18,'Codici&PrezzixRiepilogo'!B:E,4,FALSE),\"\")","v":""},null,null,null,"",null,null,{"$f":"IF(AK18>0,VLOOKUP($G18,'Codici&PrezzixRiepilogo'!B:C,2,FALSE),\"\")","v":""},null,null,null,null,null,null,null,{"$f":"IF(AK18>0,VLOOKUP($G18,'Codici&PrezzixRiepilogo'!B:E,3,FALSE),\"\")","v":""},null,"",null,0,"TS2L2-RAM32",{"$f":"IF('Lotto2_R7425-1'!$F$31=Riepilogo!$W18,('Lotto2_R7425-1'!$C$31-2)*Riepilogo!$X$15,0)","v":0},{"$f":"IF('Lotto2_R7425-2'!$F$31=Riepilogo!$W18,('Lotto2_R7425-2'!$C$31-2)*Riepilogo!$Y$15,0)","v":0},{"$f":"IF('Lotto2_R7425-3'!$F$31=Riepilogo!$W18,('Lotto2_R7425-3'!$C$31-2)*Riepilogo!$Z$15,0)","v":0},{"$f":"IF('Lotto3_R7425(GPU)'!$F$40=Riepilogo!$W18,('Lotto3_R7425(GPU)'!$C$40-2)*Riepilogo!$AA$15,0)","v":0},null,null,null,null,null,null,null,null,null,0]
[null,"",{"$f":"IF(AK19>0,VLOOKUP($G19,'Codici&PrezzixRiepilogo'!B:E,4,FALSE),\"\")","v":""},null,null,null,"",null,null,{"$f":"IF(AK19>0,VLOOKUP($G19,'Codici&PrezzixRiepilogo'!B:C,2,FALSE),\"\")","v":""},null,null,null,null,null,null,null,{"$f":"IF(AK19>0,VLOOKUP($G19,'Codici&PrezzixRiepilogo'!B:E,3,FALSE),\"\")","v":""},null,"",null,0,"TS2L2-RAM64",{"$f":"IF('Lotto2_R7425-1'!$F$31=Riepilogo!$W19,('Lotto2_R7425-1'!$C$31)*Riepilogo!$X$15,0)","v":0},{"$f":"IF('Lotto2_R7425-2'!$F$31=Riepilogo!$W19,('Lotto2_R7425-2'!$C$31)*Riepilogo!$Y$15,0)","v":0},{"$f":"IF('Lotto2_R7425-3'!$F$31=Riepilogo!$W19,('Lotto2_R7425-3'!$C$31)*Riepilogo!$Z$15,0)","v":0},{"$f":"IF('Lotto3_R7425(GPU)'!$F$40=Riepilogo!$W19,('Lotto3_R7425(GPU)'!$C$40)*Riepilogo!$AA$15,0)","v":0},null,null,null,null,null,null,null,null,null,0]
[null,"",{"$f":"IF(AK20>0,VLOOKUP($G20,'Codici&PrezzixRiepilogo'!B:E,4,FALSE),\"\")","v":""},null,null,null,"",null,null,{"$f":"IF(AK20>0,VLOOKUP($G20,'Codici&PrezzixRiepilogo'!B:C,2,FALSE),\"\")","v":""},null,null,null,null,null,null,null,{"$f":"IF(AK20>0,VLOOKUP($G20,'Codici&PrezzixRiepilogo'!B:E,3,FALSE),\"\")","v":""},null,"",null,0,"TS2L2-10K600",{"$f":"IF('Lotto2_R7425-1'!$F$56=Riepilogo!$W20,('Lotto2_R7425-1'!$C$56-2)*X15,0)","v":0},{"$f":"IF('Lotto2_R7425-2'!$F$56=Riepilogo!$W20,('Lotto2_R7425-2'!$C$56-2)*Y15,0)","v":0},{"$f":"IF('Lotto2_R7425-3'!$F$56=Riepilogo!$W20,('Lotto2_R7425-3'!$C$56-2)*Z15,0)","v":0},{"$f":"IF('Lotto3_R7425(GPU)'!$F$61=Riepilogo!$W20,('Lotto3_R7425(GPU)'!$C$61-2)*AA15,0)","v":0},null,null,null,null,null,null,null,null,null,0]
[null,"",{"$f":"IF(AK21>0,VLOOKUP($G21,'Codici&PrezzixRiepilogo'!B:E,4,FALSE),\"\")","v":""},null,null,null,"",null,null,{"$f":"IF(AK21>0,VLOOKUP($G21,'Codici&PrezzixRiepilogo'!B:C,2,FALSE),\"\")","v":""},null,null,null,null,null,null,null,{"$f":"IF(AK21>0,VLOOKUP($G21,'Codici&PrezzixRiepilogo'!B:E,3,FALSE),\"\")","v":""},null,"",null,0,"TS2L2-10K1200",{"$f":"('Lotto2_R7425-1'!$C$58)*$X$15","v":0},{"$f":"('Lotto2_R7425-2'!$C$58)*$Y$15","v":0},{"$f":"('Lotto2_R7425-3'!$C$58)*$Z$15","v":0},{"$f":"('Lotto3_R7425(GPU)'!$C$63)*$AA$15","v":0},null,null,null,null,null,null,null,null,null,0]
[null,"",{"$f":"IF(AK22>0,VLOOKUP($G22,'Codici&PrezzixRiepilogo'!B:E,4,FALSE),\"\")","v":""},null,null,null,"",null,null,{"$f":"IF(AK22>0,VLOOKUP($G22,'Codici&PrezzixRiepilogo'!B:C,2,FALSE),\"\")","v":""},null,null,null,null,null,null,null,{"$f":"IF(AK22>0,VLOOKUP($G22,'Codici&PrezzixRiepilogo'!B:E,3,FALSE),\"\")","v":""},null,"",null,0,"TS2L2-SSDM480",{"$f":"('Lotto2_R7425-1'!$C$64)*$X$15","v":0},{"$f":"('Lotto2_R7425-2'!$C$64)*$Y$15","v":0},{"$f":"('Lotto2_R7425-3'!$C$64)*$Z$15","v":0},{"$f":"('Lotto3_R7425(GPU)'!$C$65)*$AA$15","v":0},null,null,null,null,null,null,null,null,null,{"$f":"SUM(X22:AJ22)","v":0}]
[null,"",{"$f":"IF(AK23>0,VLOOKUP($G23,'Codici&PrezzixRiepilogo'!B:E,4,FALSE),\"\")","v":""},null,null,null,"",null,null,{"$f":"IF(AK23>0,VLOOKUP($G23,'Codici&PrezzixRiepilogo'!B:C,2,FALSE),\"\")","v":""},null,null,null,null,null,null,null,{"$f":"IF(AK23>0,VLOOKUP($G23,'Codici&PrezzixRiepilogo'!B:E,3,FALSE),\"\")","v":""},null,"",null,0,"TS2L2-SSDR960",{"$f":"('Lotto2_R7425-1'!$C$70)*$X$15","v":0},{"$f":"('Lotto2_R7425-2'!$C$70)*$Y$15","v":0},{"$f":"('Lotto2_R7425-3'!$C$70)*$Z$15","v":0},{"$f":"('Lotto3_R7425(GPU)'!$C$67)*$AA$15","v":0},null,null,null,null,null,null,null,null,null,0]
[null,"",{"$f":"IF(AK24>0,VLOOKUP($G24,'Codici&PrezzixRiepilogo'!B:E,4,FALSE),\"\")","v":""},null,null,null,"",null,null,{"$f":"IF(AK24>0,VLOOKUP($G24,'Codici&PrezzixRiepilogo'!B:C,2,FALSE),\"\")","v":""},null,null,null,null,null,null,null,{"$f":"IF(AK24>0,VLOOKUP($G24,'Codici&PrezzixRiepilogo'!B:E,3,FALSE),\"\")","v":""},null,"",null,0,null,null,null,null,null,null,null,null,null,null,null,null,null,null,0]
[null,"",{"$f":"IF(AK25>0,VLOOKUP($G25,'Codici&PrezzixRiepilogo'!B:E,4,FALSE),\"\")","v":""},null,null,null,"",null,null,{"$f":"IF(AK25>0,VLOOKUP($G25,'Codici&PrezzixRiepilogo'!B:C,2,FALSE),\"\")","v":""},null,null,null,null,null,null,null,{"$f":"IF(AK25>0,VLOOKUP($G25,'Codici&PrezzixRiepilogo'!B:E,3,FALSE),\"\")","v":""},null,"",null,0,"TS2L2-LAN1",{"$f":"COUNTIF($AB$25:$AB$32,W25)*$X$15","v":0},{"$f":"COUNTIF($AC$25:$AC$32,W25)*$Y$15","v":0},{"$f":"COUNTIF($AD$25:$AD$32,W25)*$Z$15","v":0},{"$f":"COUNTIF($AE$25:$AE$32,W25)*$Z$15","v":0},{"$f":"'Lotto2_R7425-1'!$F$104","v":""},{"$f":"'Lotto2_R7425-2'!$F$104","v":""},{"$f":"'Lotto2_R7425-3'!$F$104","v":""},{"$f":"'Lotto3_R7425(GPU)'!$F$107","v":""},null,null,null,null,null,0]
[null,"",{"$f":"IF(AK26>0,VLOOKUP($G26,'Codici&PrezzixRiepilogo'!B:E,4,FALSE),\"\")","v":""},null,null,null,"",null,null,{"$f":"IF(AK26>0,VLOOKUP($G26,'Codici&PrezzixRiepilogo'!B:C,2,FALSE),\"\")","v":""},null,null,null,null,null,null,null,{"$f":"IF(AK26>0,VLOOKUP($G26,'Codici&PrezzixRiepilogo'!B:E,3,FALSE),\"\")","v":""},null,"",null,0,"TS2L2-LAN10",{"$f":"COUNTIF($AB$25:$AB$32,W26)*$X$15","v":0},{"$f":"COUNTIF($AC$25:$AC$32,W26)*$Y$15","v":0},{"$f":"COUNTIF($AD$25:$AD$32,W26)*$Z$15","v":0},0,{"$f":"'Lotto2_R7425-1'!$F$107","v":""},{"$f":"'Lotto2_R7425-2'!$F$107","v":""},{"$f":"'Lotto2_R7425-3'!$F$107","v":""},{"$f":"'Lotto3_R7425(GPU)'!$F$110","v":0},null,null,null,null,null,0]
[null,"",{"$f":"IF(AK27>0,VLOOKUP($G27,'Codici&PrezzixRiepilogo'!B:E,4,FALSE),\"\")","v":""},null,null,null,"",null,null,{"$f":"IF(AK27>0,VLOOKUP($G27,'Codici&PrezzixRiepilogo'!B:C,2,FALSE),\"\")","v":""},null,null,null,null,null,null,null,{"$f":"IF(AK27>0,VLOOKUP($G27,'Codici&PrezzixRiepilogo'!B:E,3,FALSE),\"\")","v":""},null,{"$f":"IF(B27=\"\",\"\",R27*B27)","v":""},null,0,"TS2L2-CNA10",0,0,0,0,{"$f":"'Lotto2_R7425-1'!$F$110","v":""},{"$f":"'Lotto2_R7425-2'!$F$110","v":""},{"$f":"'Lotto2_R7425-3'!$F$110","v":""},{"$f":"'Lotto3_R7425(GPU)'!$F$113","v":""},null,null,null,null,null,0]
[null,"",{"$f":"IF(AK28>0,VLOOKUP($G28,'Codici&PrezzixRiepilogo'!B:E,4,FALSE),\"\")","v":""},null,null,null,"",null,null,{"$f":"IF(AK28>0,VLOOKUP($G28,'Codici&PrezzixRiepilogo'!B:C,2,FALSE),\"\")","v":""},null,null,null,null,null,null,null,{"$f":"IF(AK28>0,VLOOKUP($G28,'Codici&PrezzixRiepilogo'!B:E,3,FALSE),\"\")","v":""},null,"",null,0,"TS2L2-FC8",0,0,0,0,{"$f":"'Lotto2_R7425-1'!$F$113","v":""},{"$f":"'Lotto2_R7425-2'!$F$113","v":""},{"$f":"'Lotto2_R7425-3'!$F$113","v":""},{"$f":"'Lotto3_R7425(GPU)'!$F$116","v":""},null,null,null,null,null,0]
[null,"",{"$f":"IF(AK29>0,VLOOKUP($G29,'Codici&PrezzixRiepilogo'!B:E,4,FALSE),\"\")","v":""},null,null,null,"",null,null,{"$f":"IF(AK29>0,VLOOKUP($G29,'Codici&PrezzixRiepilogo'!B:C,2,FALSE),\"\")","v":""},null,null,null,null,null,null,null,{"$f":"IF(AK29>0,VLOOKUP($G29,'Codici&PrezzixRiepilogo'!B:E,3,FALSE),\"\")","v":""},null,"",null,0,"TS2L2-LAN1-L",0,0,0,0,{"$f":"'Lotto2_R7425-1'!$F$116","v":0},{"$f":"'Lotto2_R7425-2'!$F$116","v":0},{"$f":"'Lotto2_R7425-3'!$F$116","v":0},{"$f":"'Lotto3_R7425(GPU)'!$F$119","v":0},null,null,null,null,null,0]
[null,"",{"$f":"IF(AK30>0,VLOOKUP($G30,'Codici&PrezzixRiepilogo'!B:E,4,FALSE),\"\")","v":""},null,null,null,"",null,null,{"$f":"IF(AK30>0,VLOOKUP($G30,'Codici&PrezzixRiepilogo'!B:C,2,FALSE),\"\")","v":""},null,null,null,null,null,null,null,{"$f":"IF(AK30>0,VLOOKUP($G30,'Codici&PrezzixRiepilogo'!B:E,3,FALSE),\"\")","v":""},null,"",null,0,"TS2L2-LAN10-L",0,0,0,0,{"$f":"'Lotto2_R7425-1'!$F$119","v":""},{"$f":"'Lotto2_R7425-2'!$F$119","v":""},{"$f":"'Lotto2_R7425-3'!$F$119","v":""},{"$f":"'Lotto3_R7425(GPU)'!$F$122","v":0},null,null,null,null,null,0]
[null,"",{"$f":"IF(AK31>0,VLOOKUP($G31,'Codici&PrezzixRiepilogo'!B:E,4,FALSE),\"\")","v":""},null,null,null,"",null,null,{"$f":"IF(AK31>0,VLOOKUP($G31,'Codici&PrezzixRiepilogo'!B:C,2,FALSE),\"\")","v":""},null,null,null,null,null,null,null,{"$f":"IF(AK31>0,VLOOKUP($G31,'Codici&PrezzixRiepilogo'!B:E,3,FALSE),\"\")","v":""},null,"",null,0,"TS2L2-CNA10-L",0,0,0,0,{"$f":"'Lotto2_R7425-1'!$F$122","v":""},{"$f":"'Lotto2_R7425-2'!$F$122","v":""},{"$f":"'Lotto2_R7425-3'!$F$122","v":""},{"$f":"'Lotto3_R7425(GPU)'!$F$125","v":""},null,null,null,null,null,0]
[null,"",{"$f":"IF(AK32>0,VLOOKUP($G32,'Codici&PrezzixRiepilogo'!B:E,4,FALSE),\"\")","v":""},null,null,null,"",null,null,{"$f":"IF(AK32>0,VLOOKUP($G32,'Codici&PrezzixRiepilogo'!B:C,2,FALSE),\"\")","v":""},null,null,null,null,null,null,null,{"$f":"IF(AK32>0,VLOOKUP($G32,'Codici&PrezzixRiepilogo'!B:E,3,FALSE),\"\")","v":""},null,"",null,0,"TS2L2-FC8-L",0,0,0,0,{"$f":"'Lotto2_R7425-1'!$F$125","v":""},{"$f":"'Lotto2_R7425-2'!$F$125","v":""},{"$f":"'Lotto2_R7425-3'!$F$125","v":""},{"$f":"'Lotto3_R7425(GPU)'!$F$128","v":""},null,null,null,null,null,0]
[null,"",{"$f":"IF(AK33>0,VLOOKUP($G33,'Codici&PrezzixRiepilogo'!B:E,4,FALSE),\"\")","v":""},null,null,null,"",null,null,{"$f":"IF(AK33>0,VLOOKUP($G33,'Codici&PrezzixRiepilogo'!B:C,2,FALSE),\"\")","v":""},null,null,null,null,null,null,null,{"$f":"IF(AK33>0,VLOOKUP($G33,'Codici&PrezzixRiepilogo'!B:E,3,FALSE),\"\")","v":""},null,"",null,0,"TS2L2-4Y",{"$f":"IF('Lotto2_R7425-1'!$F$147=Riepilogo!$W33,('Lotto2_R7425-1'!$C$147)*$X$15,0)","v":0},{"$f":"IF('Lotto2_R7425-2'!$F$147=Riepilogo!$W33,('Lotto2_R7425-2'!$C$147)*$Y$15,0)","v":0},{"$f":"IF('Lotto2_R7425-3'!$F$147=Riepilogo!$W33,('Lotto2_R7425-3'!$C$147)*$Z$15,0)","v":0},{"$f":"IF('Lotto3_R7425(GPU)'!$F$172=Riepilogo!$W33,('Lotto3_R7425(GPU)'!$C$172)*$Z$15,0)","v":0},null,null,null,null,null,null,null,null,null,0]
[null,"",{"$f":"IF(AK34>0,VLOOKUP($G34,'Codici&PrezzixRiepilogo'!B:E,4,FALSE),\"\")","v":""},null,null,null,"",null,null,{"$f":"IF(AK34>0,VLOOKUP($G34,'Codici&PrezzixRiepilogo'!B:C,2,FALSE),\"\")","v":""},null,null,null,null,null,null,null,{"$f":"IF(AK34>0,VLOOKUP($G34,'Codici&PrezzixRiepilogo'!B:E,3,FALSE),\"\")","v":""},null,"",null,0,"TS2L2-5Y",{"$f":"IF('Lotto2_R7425-1'!$F$147=Riepilogo!$W34,('Lotto2_R7425-1'!$C$147)*$X$15,0)","v":0},{"$f":"IF('Lotto2_R7425-2'!$F$147=Riepilogo!$W34,('Lotto2_R7425-2'!$C$147)*$Y$15,0)","v":0},{"$f":"IF('Lotto2_R7425-3'!$F$147=Riepilogo!$W34,('Lotto2_R7425-3'!$C$147)*$Z$15,0)","v":0},{"$f":"IF('Lotto3_R7425(GPU)'!$F$172=Riepilogo!$W34,('Lotto3_R7425(GPU)'!$C$172)*$Z$15,0)","v":0},null,null,null,null,null,null,null,null,null,0]
[null,"",{"$f":"IF(AK35>0,VLOOKUP($G35,'Codici&PrezzixRiepilogo'!B:E,4,FALSE),\"\")","v":""},null,null,null,"",null,null,{"$f":"IF(AK35>0,VLOOKUP($G35,'Codici&PrezzixRiepilogo'!B:C,2,FALSE),\"\")","v":""},null,null,null,null,null,null,null,{"$f":"IF(AK35>0,VLOOKUP($G35,'Codici&PrezzixRiepilogo'!B:E,3,FALSE),\"\")","v":""},null,"",null,0,"TS2L2-WIN1",{"$f":"IF('Lotto2_R7425-1'!$F$34=Riepilogo!$W35,('Lotto2_R7425-1'!$C$34)*$X$15,0)","v":0},{"$f":"IF('Lotto2_R7425-2'!$F$34=Riepilogo!$W35,('Lotto2_R7425-2'!$C$34)*$Y$15,0)","v":0},{"$f":"IF('Lotto2_R7425-3'!$F$34=Riepilogo!$W35,('Lotto2_R7425-3'!$C$34)*$Z$15,0)","v":0},{"$f":"IF('Lotto3_R7425(GPU)'!$F$43=Riepilogo!$W35,('Lotto3_R7425(GPU)'!$C$43)*$Z$15,0)","v":0},null,null,null,null,null,null,null,null,null,0]
[null,"",{"$f":"IF(AK36>0,VLOOKUP($G36,'Codici&PrezzixRiepilogo'!B:E,4,FALSE),\"\")","v":""},null,null,null,"",null,null,{"$f":"IF(AK36>0,VLOOKUP($G36,'Codici&PrezzixRiepilogo'!B:C,2,FALSE),\"\")","v":""},null,null,null,null,null,null,null,{"$f":"IF(AK36>0,VLOOKUP($G36,'Codici&PrezzixRiepilogo'!B:E,3,FALSE),\"\")","v":""},null,"",null,0,"TS2L2-WIN2CORE",{"$f":"IF('Lotto2_R7425-1'!$F$35=Riepilogo!$W36,('Lotto2_R7425-1'!$C$35)*$X$15,0)","v":0},{"$f":"IF('Lotto2_R7425-2'!$F$35=Riepilogo!$W36,('Lotto2_R7425-2'!$C$35)*$Y$15,0)","v":0},{"$f":"IF('Lotto2_R7425-3'!$F$35=Riepilogo!$W36,('Lotto2_R7425-3'!$C$35)*$Z$15,0)","v":0},{"$f":"'Lotto3_R7425(GPU)'!$C$44*Riepilogo!AA15","v":0},null,null,null,null,null,null,null,null,null,0]
[null,"",{"$f":"IF(AK37>0,VLOOKUP($G37,'Codici&PrezzixRiepilogo'!B:E,4,FALSE),\"\")","v":""},null,null,null,"",null,null,{"$f":"IF(AK37>0,VLOOKUP($G37,'Codici&PrezzixRiepilogo'!B:C,2,FALSE),\"\")","v":""},null,null,null,null,null,null,null,{"$f":"IF(AK37>0,VLOOKUP($G37,'Codici&PrezzixRiepilogo'!B:E,3,FALSE),\"\")","v":""},null,"",null,0,"TS2L2-LINUX",{"$f":"IF('Lotto2_R7425-1'!$F$34=Riepilogo!$W37,('Lotto2_R7425-1'!$C$34)*$X$15,0)","v":0},{"$f":"IF('Lotto2_R7425-2'!$F$34=Riepilogo!$W37,('Lotto2_R7425-2'!$C$34)*$Y$15,0)","v":0},{"$f":"IF('Lotto2_R7425-3'!$F$34=Riepilogo!$W37,('Lotto2_R7425-3'!$C$34)*$Z$15,0)","v":0},{"$f":"IF('Lotto3_R7425(GPU)'!$F$43=Riepilogo!$W37,('Lotto3_R7425(GPU)'!$C$43)*$AA$15,0)","v":0},null,null,null,null,null,null,null,null,null,0]
[null,"",{"$f":"IF(AK38>0,VLOOKUP($G38,'Codici&PrezzixRiepilogo'!B:E,4,FALSE),\"\")","v":""},null,null,null,"",null,null,{"$f":"IF(AK38>0,VLOOKUP($G38,'Codici&PrezzixRiepilogo'!B:C,2,FALSE),\"\")","v":""},null,null,null,null,null,null,null,{"$f":"IF(AK38>0,VLOOKUP($G38,'Codici&PrezzixRiepilogo'!B:E,3,FALSE),\"\")","v":""},null,"",null,0,"TS2L2-CALDEV",{"$f":"'Lotto2_R7425-1'!$C$38*X15","v":0},{"$f":"'Lotto2_R7425-2'!$C$38*Y15","v":0},{"$f":"'Lotto2_R7425-3'!$C$38*Z15","v":0},{"$f":"'Lotto3_R7425(GPU)'!$C$47*AA15","v":0},null,null,null,null,null,null,null,null,null,0]
[null,"",{"$f":"IF(AK39>0,VLOOKUP($G39,'Codici&PrezzixRiepilogo'!B:E,4,FALSE),\"\")","v":""},null,null,null,"",null,null,{"$f":"IF(AK39>0,VLOOKUP($G39,'Codici&PrezzixRiepilogo'!B:C,2,FALSE),\"\")","v":""},null,null,null,null,null,null,null,{"$f":"IF(AK39>0,VLOOKUP($G39,'Codici&PrezzixRiepilogo'!B:E,3,FALSE),\"\")","v":""},null,"",null,0,"TS2L2-CALUSER",{"$f":"'Lotto2_R7425-1'!$C$40*X15","v":0},{"$f":"'Lotto2_R7425-2'!$C$40*Y15","v":0},{"$f":"'Lotto2_R7425-3'!$C$40*Z15","v":0},{"$f":"'Lotto3_R7425(GPU)'!$C$49*AA15","v":0},null,null,null,null,null,null,null,null,null,0]
[null,"OPZIONI COMUNI",null,null,null,null,null,null,null,null,null,null,null,null,null,null,null,null,null,null,null,{"$f":"IF(SUM(V41:V44)=0,0,1)","v":0}]
[null,{"$f":"IF(AK41>=1,AK41,\"\")","v":""},{"$f":"IF(AK41>0,VLOOKUP($G41,'Codici&PrezzixRiepilogo'!B:E,4,FALSE),\"\")","v":""},null,null,null,{"$f":"IF(AK41>=1,W41,\"\")","v":""},null,null,{"$f":"IF(AK41>0,VLOOKUP($G41,'Codici&PrezzixRiepilogo'!B:C,2,FALSE),\"\")","v":""},null,null,null,null,null,null,null,{"$f":"IF(AK41>0,VLOOKUP($G41,'Codici&PrezzixRiepilogo'!B:E,3,FALSE),\"\")","v":""},null,{"$f":"IF(B41=\"\",\"\",R41*B41)","v":""},null,0,"TS2L2-RACK",{"$f":"'Rack e Accessori'!J6","v":0},null,null,null,null,null,null,null,null,null,null,null,null,0]
[null,"",{"$f":"IF(AK42>0,VLOOKUP($G42,'Codici&PrezzixRiepilogo'!B:E,4,FALSE),\"\")","v":""},null,null,null,{"$f":"IF(AK42>=1,W42,\"\")","v":""},null,null,{"$f":"IF(AK42>0,VLOOKUP($G42,'Codici&PrezzixRiepilogo'!B:C,2,FALSE),\"\")","v":""},null,null,null,null,null,null,null,{"$f":"IF(AK42>0,VLOOKUP($G42,'Codici&PrezzixRiepilogo'!B:E,3,FALSE),\"\")","v":""},null,{"$f":"IF(B42=\"\",\"\",R42*B42)","v":""},null,0,"TS2L2-GUI",{"$f":"'Rack e Accessori'!J39","v":0},null,null,null,null,null,null,null,null,null,null,null,null,0]
[null,"",{"$f":"IF(AK43>0,VLOOKUP($G43,'Codici&PrezzixRiepilogo'!B:E,4,FALSE),\"\")","v":""},null,null,null,"",null,null,{"$f":"IF(AK43>0,VLOOKUP($G43,'Codici&PrezzixRiepilogo'!B:C,2,FALSE),\"\")","v":""},null,null,null,null,null,null,null,{"$f":"IF(AK43>0,VLOOKUP($G43,'Codici&PrezzixRiepilogo'!B:E,3,FALSE),\"\")","v":""},null,"",null,0,"TS2L2-KVMIP",{"$f":"'Rack e Accessori'!J42","v":0},null,null,null,null,null,null,null,null,null,null,null,null,0]
[null,"",{"$f":"IF(AK44>0,VLOOKUP($G44,'Codici&PrezzixRiepilogo'!B:E,4,FALSE),\"\")","v":""},null,null,null,"",null,null,{"$f":"IF(AK44>0,VLOOKUP($G44,'Codici&PrezzixRiepilogo'!B:C,2,FALSE),\"\")","v":""},null,null,null,null,null,null,null,{"$f":"IF(AK44>0,VLOOKUP($G44,'Codici&PrezzixRiepilogo'!B:E,3,FALSE),\"\")","v":""},null,"",null,0,"TS2L2-UPS",{"$f":"'Rack e Accessori'!J45","v":0},null,null,null,null,null,null,null,null,null,null,null,null,0]
[null,"ULTERIORI OPZIONI 20%",null,null,null,null,null,null,null,null,null,null,null,null,null,null,null,null,null,null,null,{"$f":"IF(SUM(T46:U103)=0,0,1)","v":0}]
[null,{"$f":"IF(AK46>=1,AK46,\"\")","v":""},{"$f":"IF(AK46>0,VLOOKUP($G46,'Codici&PrezzixRiepilogo'!B:E,4,FALSE),\"\")","v":""},null,null,null,{"$f":"IF(AK46>=1,W46,\"\")","v":""},null,null,{"$f":"IF(AK46>0,VLOOKUP($G46,'Codici&PrezzixRiepilogo'!B:C,2,FALSE),\"\")","v":""},null,null,null,null,null,null,null,{"$f":"IF(AK46>0,VLOOKUP($G46,'Codici&PrezzixRiepilogo'!B:E,3,FALSE),\"\")","v":""},null,{"$f":"IF(B46=\"\",\"\",R46*B46)","v":""},null,0,"TS2L2-3MRJ45",{"$f":"'Lotto2_R7425-1'!C144*X15","v":0},{"$f":"'Lotto2_R7425-2'!C144*Y15","v":0},{"$f":"'Lotto2_R7425-3'!C144*Z15","v":0},null,null,null,null,null,null,null,null,null,null,0]
[null,"",{"$f":"IF(AK47>0,VLOOKUP($G47,'Codici&PrezzixRiepilogo'!B:E,4,FALSE),\"\")","v":""},null,null,null,{"$f":"IF(AK47>=1,W47,\"\")","v":""},null,null,{"$f":"IF(AK47>0,VLOOKUP($G47,'Codici&PrezzixRiepilogo'!B:C,2,FALSE),\"\")","v":""},null,null,null,null,null,null,null,{"$f":"IF(AK47>0,VLOOKUP($G47,'Codici&PrezzixRiepilogo'!B:E,3,FALSE),\"\")","v":""},null,{"$f":"IF(B47=\"\",\"\",R47*B47)","v":""},null,0,"TS2L2-10K1800",{"$f":"'Lotto2_R7425-1'!$C$60*$X$15","v":0},{"$f":"'Lotto2_R7425-2'!$C$60*$Y$15","v":0},{"$f":"'Lotto2_R7425-3'!$C$60*$Z$15","v":0},null,null,null,null,null,null,null,null,null,null,0]
[null,"",{"$f":"IF(AK48>0,VLOOKUP($G48,'Codici&PrezzixRiepilogo'!B:E,4,FALSE),\"\")","v":""},null,null,null,"",null,null,{"$f":"IF(AK48>0,VLOOKUP($G48,'Codici&PrezzixRiepilogo'!B:C,2,FALSE),\"\")","v":""},null,null,null,null,null,null,null,{"$f":"IF(AK48>0,VLOOKUP($G48,'Codici&PrezzixRiepilogo'!B:E,3,FALSE),\"\")","v":""},null,"",null,0,"TS2L2-SSDR1920",{"$f":"'Lotto2_R7425-1'!$C$72*$X$15","v":0},{"$f":"'Lotto2_R7425-2'!$C$72*$Y$15","v":0},{"$f":"'Lotto2_R7425-3'!$C$72*$Z$15","v":0},null,null,null,null,null,null,null,null,null,null,0]
[null,"",{"$f":"IF(AK49>0,VLOOKUP($G49,'Codici&PrezzixRiepilogo'!B:E,4,FALSE),\"\")","v":""},null,null,null,"",null,null,{"$f":"IF(AK49>0,VLOOKUP($G49,'Codici&PrezzixRiepilogo'!B:C,2,FALSE),\"\")","v":""},null,null,null,null,null,null,null,{"$f":"IF(AK49>0,VLOOKUP($G49,'Codici&PrezzixRiepilogo'!B:E,3,FALSE),\"\")","v":""},null,"",null,0,"TS2L2-BOSS240",{"$f":"COUNTIF($AB$25:$AB$32,W49)*$X$15","v":0},{"$f":"COUNTIF($AC$25:$AC$32,W49)*$Y$15","v":0},{"$f":"COUNTIF($AD$25:$AD$32,W49)*$Z$15","v":0},null,null,null,null,null,null,null,null,null,null,0]
[null,"",{"$f":"IF(AK50>0,VLOOKUP($G50,'Codici&PrezzixRiepilogo'!B:E,4,FALSE),\"\")","v":""},null,null,null,"",null,null,{"$f":"IF(AK50>0,VLOOKUP($G50,'Codici&PrezzixRiepilogo'!B:C,2,FALSE),\"\")","v":""},null,null,null,null,null,null,null,{"$f":"IF(AK50>0,VLOOKUP($G50,'Codici&PrezzixRiepilogo'!B:E,3,FALSE),\"\")","v":""},null,"",null,0,"TS2L2-ISDM32",{"$f":"'Lotto2_R7425-1'!$C$92*X15","v":0},{"$f":"'Lotto2_R7425-2'!$C$92*Y15","v":0},{"$f":"'Lotto2_R7425-3'!$C$92*Z15","v":0},null,null,null,null,null,null,null,null,null,null,0]
[null,"",{"$f":"IF(AK51>0,VLOOKUP($G51,'Codici&PrezzixRiepilogo'!B:E,4,FALSE),\"\")","v":""},null,null,null,"",null,null,{"$f":"IF(AK51>0,VLOOKUP($G51,'Codici&PrezzixRiepilogo'!B:C,2,FALSE),\"\")","v":""},null,null,null,null,null,null,null,{"$f":"IF(AK51>0,VLOOKUP($G51,'Codici&PrezzixRiepilogo'!B:E,3,FALSE),\"\")","v":""},null,"",null,0,"TS2L2-LCDBEZEL",{"$f":"IF('Lotto2_R7425-1'!$F$128=$W51,('Lotto2_R7425-1'!$C$128)*$X$15,0)","v":0},{"$f":"IF('Lotto2_R7425-2'!$F$128=$W51,('Lotto2_R7425-2'!$C$128)*$Y$15,0)","v":0},{"$f":"IF('Lotto2_R7425-3'!$F$128=$W51,('Lotto2_R7425-3'!$C$128)*$Z$15,0)","v":0},null,null,null,null,null,null,null,null,null,null,0]
[null,"",{"$f":"IF(AK52>0,VLOOKUP($G52,'Codici&PrezzixRiepilogo'!B:E,4,FALSE),\"\")","v":""},null,null,null,"",null,null,{"$f":"IF(AK52>0,VLOOKUP($G52,'Codici&PrezzixRiepilogo'!B:C,2,FALSE),\"\")","v":""},null,null,null,null,null,null,null,{"$f":"IF(AK52>0,VLOOKUP($G52,'Codici&PrezzixRiepilogo'!B:E,3,FALSE),\"\")","v":""},null,"",null,0,"TS2L2-STDBEZEL",{"$f":"IF('Lotto2_R7425-1'!$F$128=$W52,('Lotto2_R7425-1'!$C$128)*$X$15,0)","v":0},{"$f":"IF('Lotto2_R7425-2'!$F$128=$W52,('Lotto2_R7425-2'!$C$128)*$Y$15,0)","v":0},{"$f":"IF('Lotto2_R7425-3'!$F$128=$W52,('Lotto2_R7425-3'!$C$128)*$Y$15,0)","v":0},null,null,null,null,null,null,null,null,null,null,0]
[null,"",{"$f":"IF(AK53>0,VLOOKUP($G53,'Codici&PrezzixRiepilogo'!B:E,4,FALSE),\"\")","v":""},null,null,null,"",null,null,{"$f":"IF(AK53>0,VLOOKUP($G53,'Codici&PrezzixRiepilogo'!B:C,2,FALSE),\"\")","v":""},null,null,null,null,null,null,null,{"$f":"IF(AK53>0,VLOOKUP($G53,'Codici&PrezzixRiepilogo'!B:E,3,FALSE),\"\")","v":""},null,"",null,0,"TS2L2-MCX416AM3",{"$f":"COUNTIF($AB$25:$AB$32,W53)*$X$15","v":0},{"$f":"COUNTIF($AC$25:$AC$32,W53)*$Y$15","v":0},{"$f":"COUNTIF($AD$25:$AD$32,W53)*$Z$15","v":0},null,null,null,null,null,null,null,null,null,null,0]
[null,"",{"$f":"IF(AK54>0,VLOOKUP($G54,'Codici&PrezzixRiepilogo'!B:E,4,FALSE),\"\")","v":""},null,null,null,"",null,null,{"$f":"IF(AK54>0,VLOOKUP($G54,'Codici&PrezzixRiepilogo'!B:C,2,FALSE),\"\")","v":""},null,null,null,null,null,null,null,{"$f":"IF(AK54>0,VLOOKUP($G54,'Codici&PrezzixRiepilogo'!B:E,3,FALSE),\"\")","v":""},null,"",null,0,"TS2L2-MCX516AM3",0,0,0,null,null,null,null,null,null,null,null,null,null,0]
[null,"",{"$f":"IF(AK55>0,VLOOKUP($G55,'Codici&PrezzixRiepilogo'!B:E,4,FALSE),\"\")","v":""},null,null,null,"",null,null,{"$f":"IF(AK55>0,VLOOKUP($G55,'Codici&PrezzixRiepilogo'!B:C,2,FALSE),\"\")","v":""},null,null,null,null,null,null,null,{"$f":"IF(AK55>0,VLOOKUP($G55,'Codici&PrezzixRiepilogo'!B:E,3,FALSE),\"\")","v":""},null,"",null,0,"TS2L2-MCX4121AM3",0,0,0,null,null,null,null,null,null,null,null,null,null,0]
[null,"",{"$f":"IF(AK56>0,VLOOKUP($G56,'Codici&PrezzixRiepilogo'!B:E,4,FALSE),\"\")","v":""},null,null,null,"",null,null,{"$f":"IF(AK56>0,VLOOKUP($G56,'Codici&PrezzixRiepilogo'!B:C,2,FALSE),\"\")","v":""},null,null,null,null,null,null,null,{"$f":"IF(AK56>0,VLOOKUP($G56,'Codici&PrezzixRiepilogo'!B:E,3,FALSE),\"\")","v":""},null,"",null,0,"TS2L2-HBA330",0,0,0,null,null,null,null,null,null,null,null,null,null,0]
[null,"",{"$f":"IF(AK57>0,VLOOKUP($G57,'Codici&PrezzixRiepilogo'!B:E,4,FALSE),\"\")","v":""},null,null,null,"",null,null,{"$f":"IF(AK57>0,VLOOKUP($G57,'Codici&PrezzixRiepilogo'!B:C,2,FALSE),\"\")","v":""},null,null,null,null,null,null,null,{"$f":"IF(AK57>0,VLOOKUP($G57,'Codici&PrezzixRiepilogo'!B:E,3,FALSE),\"\")","v":""},null,"",null,0,"TS2L2-HBASAS12",0,0,0,null,null,null,null,null,null,null,null,null,null,0]
[null,"",{"$f":"IF(AK58>0,VLOOKUP($G58,'Codici&PrezzixRiepilogo'!B:E,4,FALSE),\"\")","v":""},null,null,null,"",null,null,{"$f":"IF(AK58>0,VLOOKUP($G58,'Codici&PrezzixRiepilogo'!B:C,2,FALSE),\"\")","v":""},null,null,null,null,null,null,null,{"$f":"IF(AK58>0,VLOOKUP($G58,'Codici&PrezzixRiepilogo'!B:E,3,FALSE),\"\")","v":""},null,"",null,0,"TS2L2-H740P",0,0,0,null,null,null,null,null,null,null,null,null,null,0]
[null,"",{"$f":"IF(AK59>0,VLOOKUP($G59,'Codici&PrezzixRiepilogo'!B:E,4,FALSE),\"\")","v":""},null,null,null,"",null,null,{"$f":"IF(AK59>0,VLOOKUP($G59,'Codici&PrezzixRiepilogo'!B:C,2,FALSE),\"\")","v":""},null,null,null,null,null,null,null,{"$f":"IF(AK59>0,VLOOKUP($G59,'Codici&PrezzixRiepilogo'!B:E,3,FALSE),\"\")","v":""},null,"",null,0,"TS2L2-Q41162T",0,0,0,null,null,null,null,null,null,null,null,null,null,0]
[null,"",{"$f":"IF(AK60>0,VLOOKUP($G60,'Codici&PrezzixRiepilogo'!B:E,4,FALSE),\"\")","v":""},null,null,null,"",null,null,{"$f":"IF(AK60>0,VLOOKUP($G60,'Codici&PrezzixRiepilogo'!B:C,2,FALSE),\"\")","v":""},null,null,null,null,null,null,null,{"$f":"IF(AK60>0,VLOOKUP($G60,'Codici&PrezzixRiepilogo'!B:E,3,FALSE),\"\")","v":""},null,"",null,0,"TS2L2-Q41162T-L",0,0,0,null,null,null,null,null,null,null,null,null,null,0]
[null,"",{"$f":"IF(AK61>0,VLOOKUP($G61,'Codici&PrezzixRiepilogo'!B:E,4,FALSE),\"\")","v":""},null,null,null,"",null,null,{"$f":"IF(AK61>0,VLOOKUP($G61,'Codici&PrezzixRiepilogo'!B:C,2,FALSE),\"\")","v":""},null,null,null,null,null,null,null,{"$f":"IF(AK61>0,VLOOKUP($G61,'Codici&PrezzixRiepilogo'!B:E,3,FALSE),\"\")","v":""},null,"",null,0,"TS2L2-Q41164T-L",0,0,0,null,null,null,null,null,null,null,null,null,null,0]
[null,"",{"$f":"IF(AK62>0,VLOOKUP($G62,'Codici&PrezzixRiepilogo'!B:E,4,FALSE),\"\")","v":""},null,null,null,"",null,null,{"$f":"IF(AK62>0,VLOOKUP($G62,'Codici&PrezzixRiepilogo'!B:C,2,FALSE),\"\")","v":""},null,null,null,null,null,null,null,{"$f":"IF(AK62>0,VLOOKUP($G62,'Codici&PrezzixRiepilogo'!B:E,3,FALSE),\"\")","v":""},null,"",null,0,"TS2L2-Q2692",0,0,0,null,null,null,null,null,null,null,null,null,null,0]
[null,"",{"$f":"IF(AK63>0,VLOOKUP($G63,'Codici&PrezzixRiepilogo'!B:E,4,FALSE),\"\")","v":""},null,null,null,"",null,null,{"$f":"IF(AK63>0,VLOOKUP($G63,'Codici&PrezzixRiepilogo'!B:C,2,FALSE),\"\")","v":""},null,null,null,null,null,null,null,{"$f":"IF(AK63>0,VLOOKUP($G63,'Codici&PrezzixRiepilogo'!B:E,3,FALSE),\"\")","v":""},null,"",null,0,"TS2L2-Q2692-L",0,0,0,null,null,null,null,null,null,null,null,null,null,0]
[null,"",{"$f":"IF(AK64>0,VLOOKUP($G64,'Codici&PrezzixRiepilogo'!B:E,4,FALSE),\"\")","v":""},null,null,null,"",null,null,{"$f":"IF(AK64>0,VLOOKUP($G64,'Codici&PrezzixRiepilogo'!B:C,2,FALSE),\"\")","v":""},null,null,null,null,null,null,null,{"$f":"IF(AK64>0,VLOOKUP($G64,'Codici&PrezzixRiepilogo'!B:E,3,FALSE),\"\")","v":""},null,"",null,0,"TS2L2-B57416T",0,0,0,null,null,null,null,null,null,null,null,null,null,0]
[null,"",{"$f":"IF(AK65>0,VLOOKUP($G65,'Codici&PrezzixRiepilogo'!B:E,4,FALSE),\"\")","v":""},null,null,null,"",null,null,{"$f":"IF(AK65>0,VLOOKUP($G65,'Codici&PrezzixRiepilogo'!B:C,2,FALSE),\"\")","v":""},null,null,null,null,null,null,null,{"$f":"IF(AK65>0,VLOOKUP($G65,'Codici&PrezzixRiepilogo'!B:E,3,FALSE),\"\")","v":""},null,"",null,0,"TS2L2-B57416T-L",0,0,0,null,null,null,null,null,null,null,null,null,null,0]
[null,"",{"$f":"IF(AK66>0,VLOOKUP($G66,'Codici&PrezzixRiepilogo'!B:E,4,FALSE),\"\")","v":""},null,null,null,"",null,null,{"$f":"IF(AK66>0,VLOOKUP($G66,'Codici&PrezzixRiepilogo'!B:C,2,FALSE),\"\")","v":""},null,null,null,null,null,null,null,{"$f":"IF(AK66>0,VLOOKUP($G66,'Codici&PrezzixRiepilogo'!B:E,3,FALSE),\"\")","v":""},null,"",null,0,"TS2L2-5XDAC10M3",{"$f":"'Lotto2_R7425-1'!$C$137*$X$15","v":0},{"$f":"'Lotto2_R7425-2'!$C$137*$Y$15","v":0},{"$f":"'Lotto2_R7425-3'!$C$137*$Z$15","v":0},null,null,null,null,null,null,null,null,null,null,0]
[null,"",{"$f":"IF(AK67>0,VLOOKUP($G67,'Codici&PrezzixRiepilogo'!B:E,4,FALSE),\"\")","v":""},null,null,null,"",null,null,{"$f":"IF(AK67>0,VLOOKUP($G67,'Codici&PrezzixRiepilogo'!B:C,2,FALSE),\"\")","v":""},null,null,null,null,null,null,null,{"$f":"IF(AK67>0,VLOOKUP($G67,'Codici&PrezzixRiepilogo'!B:E,3,FALSE),\"\")","v":""},null,"",null,0,"TS2L2-5XDAC100M2",{"$f":"'Lotto2_R7425-1'!$C$139*$X$15","v":0},{"$f":"'Lotto2_R7425-2'!$C$139*$Y$15","v":0},{"$f":"'Lotto2_R7425-3'!$C$139*$Z$15","v":0},null,null,null,null,null,null,null,null,null,null,0]
[null,"",{"$f":"IF(AK68>0,VLOOKUP($G68,'Codici&PrezzixRiepilogo'!B:E,4,FALSE),\"\")","v":""},null,null,null,"",null,null,{"$f":"IF(AK68>0,VLOOKUP($G68,'Codici&PrezzixRiepilogo'!B:C,2,FALSE),\"\")","v":""},null,null,null,null,null,null,null,{"$f":"IF(AK68>0,VLOOKUP($G68,'Codici&PrezzixRiepilogo'!B:E,3,FALSE),\"\")","v":""},null,"",null,0,"TS2L2-5XDAC100M3",{"$f":"'Lotto2_R7425-1'!$C$141*$X$15","v":0},{"$f":"'Lotto2_R7425-2'!$C$141*$Y$15","v":0},{"$f":"'Lotto2_R7425-3'!$C$141*$Z$15","v":0},null,null,null,null,null,null,null,null,null,null,0]
[null,"",{"$f":"IF(AK69>0,VLOOKUP($G69,'Codici&PrezzixRiepilogo'!B:E,4,FALSE),\"\")","v":""},null,null,null,"",null,null,{"$f":"IF(AK69>0,VLOOKUP($G69,'Codici&PrezzixRiepilogo'!B:C,2,FALSE),\"\")","v":""},null,null,null,null,null,null,null,{"$f":"IF(AK69>0,VLOOKUP($G69,'Codici&PrezzixRiepilogo'!B:E,3,FALSE),\"\")","v":""},null,"",null,0,"TS2L2-SSDW1600",null,null,null,null,null,null,null,null,null,null,null,null,null,0]
[null,"",{"$f":"IF(AK70>0,VLOOKUP($G70,'Codici&PrezzixRiepilogo'!B:E,4,FALSE),\"\")","v":""},null,null,null,"",null,null,{"$f":"IF(AK70>0,VLOOKUP($G70,'Codici&PrezzixRiepilogo'!B:C,2,FALSE),\"\")","v":""},null,null,null,null,null,null,null,{"$f":"IF(AK70>0,VLOOKUP($G70,'Codici&PrezzixRiepilogo'!B:E,3,FALSE),\"\")","v":""},null,"",null,0,"TS2L2-SSDW400",{"$f":"'Lotto2_R7425-1'!$C$66*$X$15","v":0},{"$f":"'Lotto2_R7425-2'!$C$66*$Y$15","v":0},{"$f":"'Lotto2_R7425-3'!$C$66*$Z$15","v":0},null,null,null,null,null,null,null,null,null,null,0]
[null,"",{"$f":"IF(AK71>0,VLOOKUP($G71,'Codici&PrezzixRiepilogo'!B:E,4,FALSE),\"\")","v":""},null,null,null,"",null,null,{"$f":"IF(AK71>0,VLOOKUP($G71,'Codici&PrezzixRiepilogo'!B:C,2,FALSE),\"\")","v":""},null,null,null,null,null,null,null,{"$f":"IF(AK71>0,VLOOKUP($G71,'Codici&PrezzixRiepilogo'!B:E,3,FALSE),\"\")","v":""},null,"",null,0,"TS2L2-10K2400",{"$f":"'Lotto2_R7425-1'!$C$62*$X$15","v":0},{"$f":"'Lotto2_R7425-2'!$C$62*$Y$15","v":0},{"$f":"'Lotto2_R7425-3'!$C$62*$Z$15","v":0},null,null,null,null,null,null,null,null,null,null,0]
[null,"",{"$f":"IF(AK72>0,VLOOKUP($G72,'Codici&PrezzixRiepilogo'!B:E,4,FALSE),\"\")","v":""},null,null,null,"",null,null,{"$f":"IF(AK72>0,VLOOKUP($G72,'Codici&PrezzixRiepilogo'!B:C,2,FALSE),\"\")","v":""},null,null,null,null,null,null,null,{"$f":"IF(AK72>0,VLOOKUP($G72,'Codici&PrezzixRiepilogo'!B:E,3,FALSE),\"\")","v":""},null,"",null,0,"TS2L2-WINDC",{"$f":"IF('Lotto2_R7425-1'!$F$34=Riepilogo!$W72,('Lotto2_R7425-1'!$C$34)*$X$15,0)","v":0},{"$f":"IF('Lotto2_R7425-2'!$F$34=Riepilogo!$W72,('Lotto2_R7425-2'!$C$34)*$Y$15,0)","v":0},{"$f":"IF('Lotto2_R7425-3'!$F$34=Riepilogo!$W72,('Lotto2_R7425-3'!$C$34)*$Z$15,0)","v":0},null,null,null,null,null,null,null,null,null,null,0]
[null,"",{"$f":"IF(AK73>0,VLOOKUP($G73,'Codici&PrezzixRiepilogo'!B:E,4,FALSE),\"\")","v":""},null,null,null,"",null,null,{"$f":"IF(AK73>0,VLOOKUP($G73,'Codici&PrezzixRiepilogo'!B:C,2,FALSE),\"\")","v":""},null,null,null,null,null,null,null,{"$f":"IF(AK73>0,VLOOKUP($G73,'Codici&PrezzixRiepilogo'!B:E,3,FALSE),\"\")","v":""},null,"",null,0,"TS2L2-WINDC2",{"$f":"IF('Lotto2_R7425-1'!$F$35=Riepilogo!$W73,('Lotto2_R7425-1'!$C$35)*$X$15,0)","v":0},{"$f":"IF('Lotto2_R7425-2'!$F$35=Riepilogo!$W73,('Lotto2_R7425-2'!$C$35)*$Y$15,0)","v":0},{"$f":"IF('Lotto2_R7425-3'!$F$35=Riepilogo!$W73,('Lotto2_R7425-3'!$C$35)*$Z$15,0)","v":0},null,null,null,null,null,null,null,null,null,null,0]
[null,"",{"$f":"IF(AK74>0,VLOOKUP($G74,'Codici&PrezzixRiepilogo'!B:E,4,FALSE),\"\")","v":""},null,null,null,"",null,null,{"$f":"IF(AK74>0,VLOOKUP($G74,'Codici&PrezzixRiepilogo'!B:C,2,FALSE),\"\")","v":""},null,null,null,null,null,null,null,{"$f":"IF(AK74>0,VLOOKUP($G74,'Codici&PrezzixRiepilogo'!B:E,3,FALSE),\"\")","v":""},null,"",null,0,"TS2L2-IXXV710M3",0,0,0,null,null,null,null,null,null,null,null,null,null,0]
[null,"",{"$f":"IF(AK75>0,VLOOKUP($G75,'Codici&PrezzixRiepilogo'!B:E,4,FALSE),\"\")","v":""},null,null,null,"",null,null,{"$f":"IF(AK75>0,VLOOKUP($G75,'Codici&PrezzixRiepilogo'!B:C,2,FALSE),\"\")","v":""},null,null,null,null,null,null,null,{"$f":"IF(AK75>0,VLOOKUP($G75,'Codici&PrezzixRiepilogo'!B:E,3,FALSE),\"\")","v":""},null,"",null,0,"TS2L2-IXXV710TRV",0,0,0,null,null,null,null,null,null,null,null,null,null,0]
[null,"",{"$f":"IF(AK76>0,VLOOKUP($G76,'Codici&PrezzixRiepilogo'!B:E,4,FALSE),\"\")","v":""},null,null,null,"",null,null,{"$f":"IF(AK76>0,VLOOKUP($G76,'Codici&PrezzixRiepilogo'!B:C,2,FALSE),\"\")","v":""},null,null,null,null,null,null,null,{"$f":"IF(AK76>0,VLOOKUP($G76,'Codici&PrezzixRiepilogo'!B:E,3,FALSE),\"\")","v":""},null,"",null,0,"TS2L2-VMWKIT6P3Y",{"$f":"IF('Lotto2_R7425-1'!$F$44=Riepilogo!$W$76,'Lotto2_R7425-1'!$C$44,0)*X$15","v":0},{"$f":"IF('Lotto2_R7425-2'!$F$44=Riepilogo!$W$76,'Lotto2_R7425-2'!$C$44,0)*Y$15","v":0},{"$f":"IF('Lotto2_R7425-3'!$F$44=Riepilogo!$W$76,'Lotto2_R7425-3'!$C$44,0)*Z$15","v":0},null,null,null,null,null,null,null,null,null,null,0]
[null,"",{"$f":"IF(AK77>0,VLOOKUP($G77,'Codici&PrezzixRiepilogo'!B:E,4,FALSE),\"\")","v":""},null,null,null,"",null,null,{"$f":"IF(AK77>0,VLOOKUP($G77,'Codici&PrezzixRiepilogo'!B:C,2,FALSE),\"\")","v":""},null,null,null,null,null,null,null,{"$f":"IF(AK77>0,VLOOKUP($G77,'Codici&PrezzixRiepilogo'!B:E,3,FALSE),\"\")","v":""},null,"",null,0,"TS2L2-VMWVCSTD3Y",{"$f":"IF('Lotto2_R7425-1'!$F$46=Riepilogo!$W$77,'Lotto2_R7425-1'!$C$46,0)*X$15","v":0},null,null,null,null,null,null,null,null,null,null,null,null,0]
[null,"",{"$f":"IF(AK78>0,VLOOKUP($G78,'Codici&PrezzixRiepilogo'!B:E,4,FALSE),\"\")","v":""},null,null,null,"",null,null,{"$f":"IF(AK78>0,VLOOKUP($G78,'Codici&PrezzixRiepilogo'!B:C,2,FALSE),\"\")","v":""},null,null,null,null,null,null,null,{"$f":"IF(AK78>0,VLOOKUP($G78,'Codici&PrezzixRiepilogo'!B:E,3,FALSE),\"\")","v":""},null,"",null,0,"TS2L2-VMWVCSTD5Y",{"$f":"IF('Lotto2_R7425-1'!$F$46=Riepilogo!$W$78,'Lotto2_R7425-1'!$C$46,0)*X$15","v":0},null,null,null,null,null,null,null,null,null,null,null,null,0]
[null,"",{"$f":"IF(AK79>0,VLOOKUP($G79,'Codici&PrezzixRiepilogo'!B:E,4,FALSE),\"\")","v":""},null,null,null,"",null,null,{"$f":"IF(AK79>0,VLOOKUP($G79,'Codici&PrezzixRiepilogo'!B:C,2,FALSE),\"\")","v":""},null,null,null,null,null,null,null,{"$f":"IF(AK79>0,VLOOKUP($G79,'Codici&PrezzixRiepilogo'!B:E,3,FALSE),\"\")","v":""},null,"",null,0,"TS2L2-VMWSTD1P3Y",{"$f":"IF('Lotto2_R7425-1'!$F$48=Riepilogo!$W79,'Lotto2_R7425-1'!$C$48,0)*X$15","v":0},{"$f":"IF('Lotto2_R7425-2'!$F$48=Riepilogo!$W79,'Lotto2_R7425-2'!$C$48,0)*Y$15","v":0},{"$f":"IF('Lotto2_R7425-3'!$F$48=Riepilogo!$W79,'Lotto2_R7425-3'!$C$48,0)*Z$15","v":0},null,null,null,null,null,null,null,null,null,null,0]
[null,"",{"$f":"IF(AK80>0,VLOOKUP($G80,'Codici&PrezzixRiepilogo'!B:E,4,FALSE),\"\")","v":""},null,null,null,"",null,null,{"$f":"IF(AK80>0,VLOOKUP($G80,'Codici&PrezzixRiepilogo'!B:C,2,FALSE),\"\")","v":""},null,null,null,null,null,null,null,{"$f":"IF(AK80>0,VLOOKUP($G80,'Codici&PrezzixRiepilogo'!B:E,3,FALSE),\"\")","v":""},null,"",null,0,"TS2L2-VMWEP1P3Y",{"$f":"IF('Lotto2_R7425-1'!$F$48=Riepilogo!$W80,'Lotto2_R7425-1'!$C$48,0)*X$15","v":0},{"$f":"IF('Lotto2_R7425-2'!$F$48=Riepilogo!$W80,'Lotto2_R7425-2'!$C$48,0)*Y$15","v":0},{"$f":"IF('Lotto2_R7425-3'!$F$48=Riepilogo!$W80,'Lotto2_R7425-3'!$C$48,0)*Z$15","v":0},null,null,null,null,null,null,null,null,null,null,0]
[null,"",{"$f":"IF(AK81>0,VLOOKUP($G81,'Codici&PrezzixRiepilogo'!B:E,4,FALSE),\"\")","v":""},null,null,null,"",null,null,{"$f":"IF(AK81>0,VLOOKUP($G81,'Codici&PrezzixRiepilogo'!B:C,2,FALSE),\"\")","v":""},null,null,null,null,null,null,null,{"$f":"IF(AK81>0,VLOOKUP($G81,'Codici&PrezzixRiepilogo'!B:E,3,FALSE),\"\")","v":""},null,"",null,0,"TS2L2-VMWEP1P5Y",{"$f":"IF('Lotto2_R7425-1'!$F$48=Riepilogo!$W81,'Lotto2_R7425-1'!$C$48,0)*X$15","v":0},{"$f":"IF('Lotto2_R7425-2'!$F$48=Riepilogo!$W81,'Lotto2_R7425-2'!$C$48,0)*Y$15","v":0},{"$f":"IF('Lotto2_R7425-3'!$F$48=Riepilogo!$W81,'Lotto2_R7425-3'!$C$48,0)*Z$15","v":0},null,null,null,null,null,null,null,null,null,null,0]
[null,"",{"$f":"IF(AK82>0,VLOOKUP($G82,'Codici&PrezzixRiepilogo'!B:E,4,FALSE),\"\")","v":""},null,null,null,"",null,null,{"$f":"IF(AK82>0,VLOOKUP($G82,'Codici&PrezzixRiepilogo'!B:C,2,FALSE),\"\")","v":""},null,null,null,null,null,null,null,{"$f":"IF(AK82>0,VLOOKUP($G82,'Codici&PrezzixRiepilogo'!B:E,3,FALSE),\"\")","v":""},null,"",null,0,"TS2L2-VSANSTD3Y",{"$f":"IF('Lotto2_R7425-1'!$F$50=Riepilogo!$W82,'Lotto2_R7425-1'!$C$50,0)*X$15","v":0},{"$f":"IF('Lotto2_R7425-2'!$F$50=Riepilogo!$W82,'Lotto2_R7425-2'!$C$50,0)*Y$15","v":0},{"$f":"IF('Lotto2_R7425-3'!$F$50=Riepilogo!$W82,'Lotto2_R7425-3'!$C$50,0)*Z$15","v":0},null,null,null,null,null,null,null,null,null,null,0]
[null,"",{"$f":"IF(AK83>0,VLOOKUP($G83,'Codici&PrezzixRiepilogo'!B:E,4,FALSE),\"\")","v":""},null,null,null,"",null,null,{"$f":"IF(AK83>0,VLOOKUP($G83,'Codici&PrezzixRiepilogo'!B:C,2,FALSE),\"\")","v":""},null,null,null,null,null,null,null,{"$f":"IF(AK83>0,VLOOKUP($G83,'Codici&PrezzixRiepilogo'!B:E,3,FALSE),\"\")","v":""},null,"",null,0,"TS2L2-VSANSTD5Y",{"$f":"IF('Lotto2_R7425-1'!$F$50=Riepilogo!$W83,'Lotto2_R7425-1'!$C$50,0)*X$15","v":0},{"$f":"IF('Lotto2_R7425-2'!$F$50=Riepilogo!$W83,'Lotto2_R7425-2'!$C$50,0)*Y$15","v":0},{"$f":"IF('Lotto2_R7425-3'!$F$50=Riepilogo!$W83,'Lotto2_R7425-3'!$C$50,0)*Z$15","v":0},null,null,null,null,null,null,null,null,null,null,0]
[null,"",{"$f":"IF(AK84>0,VLOOKUP($G84,'Codici&PrezzixRiepilogo'!B:E,4,FALSE),\"\")","v":""},null,null,null,"",null,null,{"$f":"IF(AK84>0,VLOOKUP($G84,'Codici&PrezzixRiepilogo'!B:C,2,FALSE),\"\")","v":""},null,null,null,null,null,null,null,{"$f":"IF(AK84>0,VLOOKUP($G84,'Codici&PrezzixRiepilogo'!B:E,3,FALSE),\"\")","v":""},null,"",null,0,"TS2L2-VSANADV3Y",{"$f":"IF('Lotto2_R7425-1'!$F$50=Riepilogo!$W84,'Lotto2_R7425-1'!$C$50,0)*X$15","v":0},{"$f":"IF('Lotto2_R7425-2'!$F$50=Riepilogo!$W84,'Lotto2_R7425-2'!$C$50,0)*Y$15","v":0},{"$f":"IF('Lotto2_R7425-3'!$F$50=Riepilogo!$W84,'Lotto2_R7425-3'!$C$50,0)*Z$15","v":0},null,null,null,null,null,null,null,null,null,null,0]
[null,"",{"$f":"IF(AK85>0,VLOOKUP($G85,'Codici&PrezzixRiepilogo'!B:E,4,FALSE),\"\")","v":""},null,null,null,"",null,null,{"$f":"IF(AK85>0,VLOOKUP($G85,'Codici&PrezzixRiepilogo'!B:C,2,FALSE),\"\")","v":""},null,null,null,null,null,null,null,{"$f":"IF(AK85>0,VLOOKUP($G85,'Codici&PrezzixRiepilogo'!B:E,3,FALSE),\"\")","v":""},null,"",null,0,"TS2L2-VSANADV5Y",{"$f":"IF('Lotto2_R7425-1'!$F$50=Riepilogo!$W85,'Lotto2_R7425-1'!$C$50,0)*X$15","v":0},{"$f":"IF('Lotto2_R7425-2'!$F$50=Riepilogo!$W85,'Lotto2_R7425-2'!$C$50,0)*Y$15","v":0},{"$f":"IF('Lotto2_R7425-3'!$F$50=Riepilogo!$W85,'Lotto2_R7425-3'!$C$50,0)*Z$15","v":0},null,null,null,null,null,null,null,null,null,null,0]
[null,"",{"$f":"IF(AK86>0,VLOOKUP($G86,'Codici&PrezzixRiepilogo'!B:E,4,FALSE),\"\")","v":""},null,null,null,"",null,null,{"$f":"IF(AK86>0,VLOOKUP($G86,'Codici&PrezzixRiepilogo'!B:C,2,FALSE),\"\")","v":""},null,null,null,null,null,null,null,{"$f":"IF(AK86>0,VLOOKUP($G86,'Codici&PrezzixRiepilogo'!B:E,3,FALSE),\"\")","v":""},null,"",null,0,"TS2L2-GPUM10",null,null,null,null,null,null,null,null,null,null,null,null,null,0]
[null,"",{"$f":"IF(AK87>0,VLOOKUP($G87,'Codici&PrezzixRiepilogo'!B:E,4,FALSE),\"\")","v":""},null,null,null,"",null,null,{"$f":"IF(AK87>0,VLOOKUP($G87,'Codici&PrezzixRiepilogo'!B:C,2,FALSE),\"\")","v":""},null,null,null,null,null,null,null,{"$f":"IF(AK87>0,VLOOKUP($G87,'Codici&PrezzixRiepilogo'!B:E,3,FALSE),\"\")","v":""},null,"",null,0,"TS2L2-2000W",null,null,null,null,null,null,null,null,null,null,null,null,null,0]
[null,"",{"$f":"IF(AK88>0,VLOOKUP($G88,'Codici&PrezzixRiepilogo'!B:E,4,FALSE),\"\")","v":""},null,null,null,"",null,null,{"$f":"IF(AK88>0,VLOOKUP($G88,'Codici&PrezzixRiepilogo'!B:C,2,FALSE),\"\")","v":""},null,null,null,null,null,null,null,{"$f":"IF(AK88>0,VLOOKUP($G88,'Codici&PrezzixRiepilogo'!B:E,3,FALSE),\"\")","v":""},null,"",null,0,"TS2L2-GPUV10016",null,null,null,null,null,null,null,null,null,null,null,null,null,0]
[null,"",{"$f":"IF(AK89>0,VLOOKUP($G89,'Codici&PrezzixRiepilogo'!B:E,4,FALSE),\"\")","v":""},null,null,null,"",null,null,{"$f":"IF(AK89>0,VLOOKUP($G89,'Codici&PrezzixRiepilogo'!B:C,2,FALSE),\"\")","v":""},null,null,null,null,null,null,null,{"$f":"IF(AK89>0,VLOOKUP($G89,'Codici&PrezzixRiepilogo'!B:E,3,FALSE),\"\")","v":""},null,"",null,0,"TS2L2-GPUV10032",null,null,null,null,null,null,null,null,null,null,null,null,null,0]
[null,"",{"$f":"IF(AK90>0,VLOOKUP($G90,'Codici&PrezzixRiepilogo'!B:E,4,FALSE),\"\")","v":""},null,null,null,"",null,null,{"$f":"IF(AK90>0,VLOOKUP($G90,'Codici&PrezzixRiepilogo'!B:C,2,FALSE),\"\")","v":""},null,null,null,null,null,null,null,{"$f":"IF(AK90>0,VLOOKUP($G90,'Codici&PrezzixRiepilogo'!B:E,3,FALSE),\"\")","v":""},null,"",null,0,"TS2L2-GPUKITSW",null,null,null,null,null,null,null,null,null,null,null,null,null,0]
[null,"",{"$f":"IF(AK91>0,VLOOKUP($G91,'Codici&PrezzixRiepilogo'!B:E,4,FALSE),\"\")","v":""},null,null,null,"",null,null,{"$f":"IF(AK91>0,VLOOKUP($G91,'Codici&PrezzixRiepilogo'!B:C,2,FALSE),\"\")","v":""},null,null,null,null,null,null,null,{"$f":"IF(AK91>0,VLOOKUP($G91,'Codici&PrezzixRiepilogo'!B:E,3,FALSE),\"\")","v":""},null,"",null,0,"TS2L2-GPUKITDW",null,null,null,null,null,null,null,null,null,null,null,null,null,0]
[null,"",{"$f":"IF(AK92>0,VLOOKUP($G92,'Codici&PrezzixRiepilogo'!B:E,4,FALSE),\"\")","v":""},null,null,null,"",null,null,{"$f":"IF(AK92>0,VLOOKUP($G92,'Codici&PrezzixRiepilogo'!B:C,2,FALSE),\"\")","v":""},null,null,null,null,null,null,null,{"$f":"IF(AK92>0,VLOOKUP($G92,'Codici&PrezzixRiepilogo'!B:E,3,FALSE),\"\")","v":""},null,"",null,0,"TS2L2-GPUT4",null,null,null,null,null,null,null,null,null,null,null,null,null,0]
[null,"",{"$f":"IF(AK93>0,VLOOKUP($G93,'Codici&PrezzixRiepilogo'!B:E,4,FALSE),\"\")","v":""},null,null,null,"",null,null,{"$f":"IF(AK93>0,VLOOKUP($G93,'Codici&PrezzixRiepilogo'!B:C,2,FALSE),\"\")","v":""},null,null,null,null,null,null,null,{"$f":"IF(AK93>0,VLOOKUP($G93,'Codici&PrezzixRiepilogo'!B:E,3,FALSE),\"\")","v":""},null,"",null,0,"TS2L2-Q41164T",0,0,0,null,null,null,null,null,null,null,null,null,null,0]
[null,"",{"$f":"IF(AK94>0,VLOOKUP($G94,'Codici&PrezzixRiepilogo'!B:E,4,FALSE),\"\")","v":""},null,null,null,"",null,null,{"$f":"IF(AK94>0,VLOOKUP($G94,'Codici&PrezzixRiepilogo'!B:C,2,FALSE),\"\")","v":""},null,null,null,null,null,null,null,{"$f":"IF(AK94>0,VLOOKUP($G94,'Codici&PrezzixRiepilogo'!B:E,3,FALSE),\"\")","v":""},null,"",null,0,"TS2L2-Q41262",0,0,0,null,null,null,null,null,null,null,null,null,null,0]
[null,"",{"$f":"IF(AK95>0,VLOOKUP($G95,'Codici&PrezzixRiepilogo'!B:E,4,FALSE),\"\")","v":""},null,null,null,"",null,null,{"$f":"IF(AK95>0,VLOOKUP($G95,'Codici&PrezzixRiepilogo'!B:C,2,FALSE),\"\")","v":""},null,null,null,null,null,null,null,{"$f":"IF(AK95>0,VLOOKUP($G95,'Codici&PrezzixRiepilogo'!B:E,3,FALSE),\"\")","v":""},null,"",null,0,"TS2L2-Q41262-L",0,0,0,null,null,null,null,null,null,null,null,null,null,0]
[null,"",{"$f":"IF(AK96>0,VLOOKUP($G96,'Codici&PrezzixRiepilogo'!B:E,4,FALSE),\"\")","v":""},null,null,null,"",null,null,{"$f":"IF(AK96>0,VLOOKUP($G96,'Codici&PrezzixRiepilogo'!B:C,2,FALSE),\"\")","v":""},null,null,null,null,null,null,null,{"$f":"IF(AK96>0,VLOOKUP($G96,'Codici&PrezzixRiepilogo'!B:E,3,FALSE),\"\")","v":""},null,"",null,0,"TS2L2-Q41262OT-L",0,0,0,null,null,null,null,null,null,null,null,null,null,0]
[null,"",{"$f":"IF(AK97>0,VLOOKUP($G97,'Codici&PrezzixRiepilogo'!B:E,4,FALSE),\"\")","v":""},null,null,null,"",null,null,{"$f":"IF(AK97>0,VLOOKUP($G97,'Codici&PrezzixRiepilogo'!B:C,2,FALSE),\"\")","v":""},null,null,null,null,null,null,null,{"$f":"IF(AK97>0,VLOOKUP($G97,'Codici&PrezzixRiepilogo'!B:E,3,FALSE),\"\")","v":""},null,"",null,0,"TS2L2-Q41262OT",0,0,0,null,null,null,null,null,null,null,null,null,null,0]
[null,"",{"$f":"IF(AK98>0,VLOOKUP($G98,'Codici&PrezzixRiepilogo'!B:E,4,FALSE),\"\")","v":""},null,null,null,"",null,null,{"$f":"IF(AK98>0,VLOOKUP($G98,'Codici&PrezzixRiepilogo'!B:C,2,FALSE),\"\")","v":""},null,null,null,null,null,null,null,{"$f":"IF(AK98>0,VLOOKUP($G98,'Codici&PrezzixRiepilogo'!B:E,3,FALSE),\"\")","v":""},null,"",null,0,"TS2L2-MCX516AM3-L",0,0,0,null,null,null,null,null,null,null,null,null,null,0]
[null,"",{"$f":"IF(AK99>0,VLOOKUP($G99,'Codici&PrezzixRiepilogo'!B:E,4,FALSE),\"\")","v":""},null,null,null,{"$f":"IF(AK99>=1,W99,\"\")","v":""},null,null,{"$f":"IF(AK99>0,VLOOKUP($G99,'Codici&PrezzixRiepilogo'!B:C,2,FALSE),\"\")","v":""},null,null,null,null,null,null,null,{"$f":"IF(AK99>0,VLOOKUP($G99,'Codici&PrezzixRiepilogo'!B:E,3,FALSE),\"\")","v":""},null,{"$f":"IF(B99=\"\",\"\",R99*B99)","v":""},null,0,"TS2L2-MCX4121A3-L",0,0,0,null,null,null,null,null,null,null,null,null,null,0]
[null,"",{"$f":"IF(AK100>0,VLOOKUP($G100,'Codici&PrezzixRiepilogo'!B:E,4,FALSE),\"\")","v":""},null,null,null,{"$f":"IF(AK100>=1,W100,\"\")","v":""},null,null,{"$f":"IF(AK100>0,VLOOKUP($G100,'Codici&PrezzixRiepilogo'!B:C,2,FALSE),\"\")","v":""},null,null,null,null,null,null,null,{"$f":"IF(AK100>0,VLOOKUP($G100,'Codici&PrezzixRiepilogo'!B:E,3,FALSE),\"\")","v":""},null,{"$f":"IF(B100=\"\",\"\",R100*B100)","v":""},null,0,"TS2L2-MCX4SP",{"$f":"COUNTIF($AB$25:$AB$32,W100)*$X$15","v":0},{"$f":"COUNTIF($AC$25:$AC$32,W100)*$Y$15","v":0},{"$f":"COUNTIF($AD$25:$AD$32,W100)*$Z$15","v":0},null,null,null,null,null,null,null,null,null,null,0]
[null,"",{"$f":"IF(AK101>0,VLOOKUP($G101,'Codici&PrezzixRiepilogo'!B:E,4,FALSE),\"\")","v":""},null,null,null,"",null,null,{"$f":"IF(AK101>0,VLOOKUP($G101,'Codici&PrezzixRiepilogo'!B:C,2,FALSE),\"\")","v":""},null,null,null,null,null,null,null,{"$f":"IF(AK101>0,VLOOKUP($G101,'Codici&PrezzixRiepilogo'!B:E,3,FALSE),\"\")","v":""},null,"",null,0,"TS2L2-MCX4SP-L",0,0,0,null,null,null,null,null,null,null,null,null,null,0]
[null,{"$f":"IF(AK102>=1,AK102,\"\")","v":""},{"$f":"IF(AK102>0,VLOOKUP($G102,'Codici&PrezzixRiepilogo'!B:E,4,FALSE),\"\")","v":""},null,null,null,{"$f":"IF(AK102>=1,W102,\"\")","v":""},null,null,{"$f":"IF(AK102>0,VLOOKUP($G102,'Codici&PrezzixRiepilogo'!B:C,2,FALSE),\"\")","v":""},null,null,null,null,null,null,null,{"$f":"IF(AK102>0,VLOOKUP($G102,'Codici&PrezzixRiepilogo'!B:E,3,FALSE),\"\")","v":""},null,{"$f":"IF(B102=\"\",\"\",R102*B102)","v":""},null,{"$f":"IF(B102>=\"\",0,1)","v":0},"TS2L2-RISER",{"$f":"'Lotto2_R7425-1'!$C$89*Riepilogo!X15","v":0},{"$f":"'Lotto2_R7425-2'!$C$89*Riepilogo!Y15","v":0},{"$f":"'Lotto2_R7425-3'!$C$89*Riepilogo!Z15","v":0},null,null,null,null,null,null,null,null,null,null,{"$f":"SUM(X102:AJ102)","v":0}]
[null,"",{"$f":"IF(AK103>0,VLOOKUP($G103,'Codici&PrezzixRiepilogo'!B:E,4,FALSE),\"\")","v":""},null,null,null,"",null,null,{"$f":"IF(AK103>0,VLOOKUP($G103,'Codici&PrezzixRiepilogo'!B:C,2,FALSE),\"\")","v":""},null,null,null,null,null,null,null,{"$f":"IF(AK103>0,VLOOKUP($G103,'Codici&PrezzixRiepilogo'!B:E,3,FALSE),\"\")","v":""},null,"",null,0,"TS2L2-PDU32A",{"$f":"'Rack e Accessori'!J9","v":0},null,null,null,null,null,null,null,null,null,null,null,null,0]
[null,"TOTALE PRODOTTI CONVENZIONE (I.V.A. Esclusa)",null,null,null,null,null,null,null,null,null,null,null,null,null,null,null,{"$f":"SUM(T15:U44)","v":0},null,null,null,1]
[null,"TOTALE ULTERIORI OPZIONI (I.V.A. Esclusa)",null,null,null,null,null,null,null,null,null,null,null,null,null,null,null,{"$f":"SUM(T46:U103)","v":0},null,null,null,{"$f":"IF(R105>0,1,0)","v":0}]
[null,"TOTALE (I.V.A. Esclusa)",null,null,null,null,null,null,null,null,null,null,null,null,null,null,null,{"$f":"R105+R104","v":0},null,null,null,1]
[null,"I.V.A.",null,null,null,null,null,null,null,null,null,null,null,null,null,null,null,{"$f":"R106*22%","v":0},null,null,null,1]
[null,"TOTALE ORDINE",null,null,null,null,null,null,null,null,null,null,null,null,null,null,null,{"$f":"SUM(R106:U107)","v":0},null,null,null,1]
[null,null,null,null,null,null,null,null,null,null,null,null,null,null,null,null,null,null,null,null,null,1]
[null,null,null,null,null,null,null,null,null,null,null,null,null,null,null,null,null,null,null,null,null,1]
[null,null,null,null,null,null,null,null,null,null,null,null,null,null,null,null,null,null,null,null,null,1]
[null,null,null,{"$f":"IF(G6>0,\"DETTAGLIO CONFIGURAZIONI SERVER LOTTO 2 \",\"\")","v":"DETTAGLIO CONFIGURAZIONI SERVER LOTTO 2 "},null,null,null,null,null,null,null,null,null,null,null,null,null,null,null,null,null,1]
[null,null,null,null,null,null,null,null,null,null,null,null,null,null,null,null,null,null,null,null,null,1]
[null,null,null,null,null,null,null,null,null,null,null,null,null,null,null,null,null,null,null,null,null,1]
[null,null,null,null,null,null,null,null,null,null,null,null,null,null,null,null,null,null,null,null,null,{"$f":"IF($B$15>=\"\",0,1)","v":0}]
[null,"PowerEdge R7425 Conf.1",null,null,{"$f":"X15","v":0},"Server",null,null,"PowerEdge R7425 Conf.2",null,null,{"$f":"Y15","v":0},"Server",null,null,"PowerEdge R7425 Conf.3",null,null,{"$f":"Z15","v":0},"Server",null,{"$f":"IF($B$15>=\"\",0,1)","v":0}]
[null,null,null,null,null,null,null,null,null,null,null,null,null,null,null,null,null,null,null,null,null,{"$f":"IF($B$15>=\"\",0,1)","v":0}]
[null,{"$f":"IF(X15>0,\"1\",\"-\")","v":"-"},{"$f":"IF(B118=\"-\",\"-\",CONCATENATE(MID($C$15,1,21),\" - \",$G$15))","v":"-"},null,null,null,null,null,{"$f":"IF(Y15>0,\"1\",\"-\")","v":"-"},{"$f":"IF(I118=\"-\",\"-\",CONCATENATE(MID($C$15,1,21),\" - \",$G$15))","v":"-"},null,null,null,null,null,{"$f":"IF(Z15>0,\"1\",\"-\")","v":"-"},{"$f":"IF(P118=\"-\",\"-\",CONCATENATE(MID($C$15,1,21),\" - \",$G$15))","v":"-"},null,null,null,null,{"$f":"IF((Y118+X118+W118)>0,1,0)","v":0},{"$f":"IF(B118=\"-\",0,B118)","v":0},{"$f":"IF(I118=\"-\",0,I118)","v":0},{"$f":"IF(P118=\"-\",0,P118)","v":0}]
[null,{"$f":"IF(X16=0,\"-\",X16/$E$116)","v":"-"},{"$f":"IF(B119=\"-\",\"-\",CONCATENATE(MID(C16,1,21),\" - \",G16))","v":"-"},null,null,null,null,null,{"$f":"IF(Y16=0,\"-\",Y16/$L$116)","v":"-"},{"$f":"IF(I119=\"-\",\"-\",CONCATENATE(MID(C16,1,21),\" - \",G16))","v":"-"},null,null,null,null,null,{"$f":"IF(Z16=0,\"-\",Z16/$S$116)","v":"-"},{"$f":"IF(P119=\"-\",\"-\",CONCATENATE(MID(C16,1,21),\" - \",G16))","v":"-"},null,null,null,null,{"$f":"IF((Y119+X119+W119)>0,1,0)","v":0},0,0,0]
[null,"-","-",null,null,null,null,null,"-","-",null,null,null,null,null,"-","-",null,null,null,null,{"$f":"IF((Y120+X120+W120)>0,1,0)","v":0},0,0,0]
[null,"-","-",null,null,null,null,null,"-","-",null,null,null,null,null,"-","-",null,null,null,null,0,0,0,0]
[null,"-","-",null,null,null,null,null,"-","-",null,null,null,null,null,"-","-",null,null,null,null,{"$f":"IF((Y122+X122+W122)>0,1,0)","v":0},0,0,0]
[null,"-","-",null,null,null,null,null,"-","-",null,null,null,null,null,"-","-",null,null,null,null,0,0,0,0]
[null,"-","-",null,null,null,null,null,"-","-",null,null,null,null,null,"-","-",null,null,null,null,0,0,0,0]
[null,"-","-",null,null,null,null,null,"-","-",null,null,null,null,null,"-","-",null,null,null,null,0,0,0,0]
[null,"-","-",null,null,null,null,null,"-","-",null,null,null,null,null,"-","-",null,null,null,null,0,0,0,0]
[null,"-","-",null,null,null,null,null,"-","-",null,null,null,null,null,"-","-",null,null,null,null,0,0,0,0]
[null,"-","-",null,null,null,null,null,"-","-",null,null,null,null,null,"-","-",null,null,null,null,0,0,0,0]
[null,"-","-",null,null,null,null,null,"-","-",null,null,null,null,null,"-","-",null,null,null,null,0,0,0,0]
[null,"-","-",null,null,null,null,null,"-","-",null,null,null,null,null,"-","-",null,null,null,null,0,0,0,0]
[null,"-","-",null,null,null,null,null,"-","-",null,null,null,null,null,"-","-",null,null,null,null,0,0,0,0]
[null,"-","-",null,null,null,null,null,"-","-",null,null,null,null,null,"-","-",null,null,null,null,0,0,0,0]
[null,"-","-",null,null,null,null,null,"-","-",null,null,null,null,null,"-","-",null,null,null,null,{"$f":"IF((Y133+X133+W133)>0,1,0)","v":0},{"$f":"IF(B133=\"-\",0,B133)","v":0},{"$f":"IF(I133=\"-\",0,I133)","v":0},{"$f":"IF(P133=\"-\",0,P133)","v":0}]
[null,"-","-",null,null,null,null,null,"-","-",null,null,null,null,null,"-","-",null,null,null,null,0,0,0,0]
[null,"-","-",null,null,null,null,null,"-","-",null,null,null,null,null,"-","-",null,null,null,null,0,0,0,0]
[null,"-","-",null,null,null,null,null,"-","-",null,null,null,null,null,"-","-",null,null,null,null,0,0,0,0]
[null,"-","-",null,null,null,null,null,"-","-",null,null,null,null,null,"-","-",null,null,null,null,0,0,0,0]
[null,"-","-",null,null,null,null,null,"-","-",null,null,null,null,null,"-","-",null,null,null,null,0,0,0,0]
[null,"-","-",null,null,null,null,null,"-","-",null,null,null,null,null,"-","-",null,null,null,null,0,0,0,0]
[null,"-","-",null,null,null,null,null,"-","-",null,null,null,null,null,"-","-",null,null,null,null,0,0,0,0]
[null,"-","-",null,null,null,null,null,"-","-",null,null,null,null,null,"-","-",null,null,null,null,0,0,0,0]
[null,"-","-",null,null,null,null,null,"-","-",null,null,null,null,null,"-","-",null,null,null,null,0,0,0,0]
[null,{"$f":"IF(X46=0,\"-\",X46/$E$116)","v":"-"},{"$f":"IF(B143=\"-\",\"-\",CONCATENATE(MID(C46,1,21),\" - \",G46))","v":"-"},null,null,null,null,null,{"$f":"IF(Y46=0,\"-\",Y46/$L$116)","v":"-"},{"$f":"IF(I143=\"-\",\"-\",CONCATENATE(MID(C46,1,21),\" - \",G46))","v":"-"},null,null,null,null,null,{"$f":"IF(Z46=0,\"-\",Z46/$S$116)","v":"-"},{"$f":"IF(P143=\"-\",\"-\",CONCATENATE(MID(C46,1,21),\" - \",G46))","v":"-"},null,null,null,null,{"$f":"IF((Y143+X143+W143)>0,1,0)","v":0},{"$f":"IF(B143=\"-\",0,B143)","v":0},{"$f":"IF(I143=\"-\",0,I143)","v":0},{"$f":"IF(P143=\"-\",0,P143)","v":0}]
[null,"-","-",null,null,null,null,null,"-","-",null,null,null,null,null,"-","-",null,null,null,null,0,{"$f":"IF(B144=\"-\",0,B144)","v":0},{"$f":"IF(I144=\"-\",0,I144)","v":0},{"$f":"IF(P144=\"-\",0,P144)","v":0}]
[null,"-","-",null,null,null,null,null,"-","-",null,null,null,null,null,"-","-",null,null,null,null,0,0,0,0]
[null,"-","-",null,null,null,null,null,"-","-",null,null,null,null,null,"-","-",null,null,null,null,{"$f":"IF((Y146+X146+W146)>0,1,0)","v":0},{"$f":"IF(B146=\"-\",0,B146)","v":0},{"$f":"IF(I146=\"-\",0,I146)","v":0},{"$f":"IF(P146=\"-\",0,P146)","v":0}]
[null,"-","-",null,null,null,null,null,"-","-",null,null,null,null,null,"-","-",null,null,null,null,0,0,0,0]
[null,"-","-",null,null,null,null,null,"-","-",null,null,null,null,null,"-","-",null,null,null,null,0,0,0,0]
[null,"-","-",null,null,null,null,null,"-","-",null,null,null,null,null,"-","-",null,null,null,null,0,{"$f":"IF(B149=\"-\",0,B149)","v":0},{"$f":"IF(I149=\"-\",0,I149)","v":0},{"$f":"IF(P149=\"-\",0,P149)","v":0}]
[null,"-","-",null,null,null,null,null,"-","-",null,null,null,null,null,"-","-",null,null,null,null,0,0,0,0]
[null,"-","-",null,null,null,null,null,"-","-",null,null,null,null,null,"-","-",null,null,null,null,0,0,0,0]
[null,"-","-",null,null,null,null,null,"-","-",null,null,null,null,null,"-","-",null,null,null,null,0,0,0,0]
[null,"-","-",null,null,null,null,null,"-","-",null,null,null,null,null,"-","-",null,null,null,null,0,0,0,0]
[null,"-","-",null,null,null,null,null,"-","-",null,null,null,null,null,"-","-",null,null,null,null,0,0,0,0]
[null,"-","-",null,null,null,null,null,"-","-",null,null,null,null,null,"-","-",null,null,null,null,0,0,0,0]
[null,"-","-",null,null,null,null,null,"-","-",null,null,null,null,null,"-","-",null,null,null,null,0,0,0,0]
[null,"-","-",null,null,null,null,null,"-","-",null,null,null,null,null,"-","-",null,null,null,null,0,0,0,0]
[null,"-","-",null,null,null,null,null,"-","-",null,null,null,null,null,"-","-",null,null,null,null,0,0,0,0]
[null,"-","-",null,null,null,null,null,"-","-",null,null,null,null,null,"-","-",null,null,null,null,0,0,0,0]
[null,"-","-",null,null,null,null,null,"-","-",null,null,null,null,null,"-","-",null,null,null,null,0,0,0,0]
[null,"-","-",null,null,null,null,null,"-","-",null,null,null,null,null,"-","-",null,null,null,null,0,0,0,0]
[null,"-","-",null,null,null,null,null,"-","-",null,null,null,null,null,"-","-",null,null,null,null,0,0,0,0]
[null,"-","-",null,null,null,null,null,"-","-",null,null,null,null,null,"-","-",null,null,null,null,0,0,0,0]
[null,"-","-",null,null,null,null,null,"-","-",null,null,null,null,null,"-","-",null,null,null,null,0,0,0,0]
[null,"-","-",null,null,null,null,null,"-","-",null,null,null,null,null,"-","-",null,null,null,null,0,0,0,0]
[null,"-","-",null,null,null,null,null,"-","-",null,null,null,null,null,"-","-",null,null,null,null,0,0,0,0]
[null,"-","-",null,null,null,null,null,"-","-",null,null,null,null,null,"-","-",null,null,null,null,0,0,0,0]
[null,"-","-",null,null,null,null,null,"-","-",null,null,null,null,null,"-","-",null,null,null,null,0,0,0,0]
[null,"-","-",null,null,null,null,null,"-","-",null,null,null,null,null,"-","-",null,null,null,null,0,0,0,0]
[null,"-","-",null,null,null,null,null,"-","-",null,null,null,null,null,"-","-",null,null,null,null,0,0,0,0]
[null,"-","-",null,null,null,null,null,"-","-",null,null,null,null,null,"-","-",null,null,null,null,0,0,0,0]
[null,"-","-",null,null,null,null,null,"-","-",null,null,null,null,null,"-","-",null,null,null,null,0,0,0,0]
[null,"-","-",null,null,null,null,null,"-","-",null,null,null,null,null,"-","-",null,null,null,null,0,0,0,0]
[null,"-","-",null,null,null,null,null,"-","-",null,null,null,null,null,"-","-",null,null,null,null,0,0,0,0]
[null,{"$f":"IF(X78=0,\"-\",X78/$E$116)","v":"-"},{"$f":"IF(B175=\"-\",\"-\",CONCATENATE(MID(C78,1,21),\" - \",G78))","v":"-"},null,null,null,null,null,{"$f":"IF(Y78=0,\"-\",Y78/$L$116)","v":"-"},{"$f":"IF(I175=\"-\",\"-\",CONCATENATE(MID(C78,1,21),\" - \",G78))","v":"-"},null,null,null,null,null,{"$f":"IF(Z78=0,\"-\",Z78/$S$116)","v":"-"},{"$f":"IF(P175=\"-\",\"-\",CONCATENATE(MID(C78,1,21),\" - \",G78))","v":"-"},null,null,null,null,0,0,0,0]
[null,"-","-",null,null,null,null,null,"-","-",null,null,null,null,null,"-","-",null,null,null,null,0,0,0,0]
[null,"-","-",null,null,null,null,null,"-","-",null,null,null,null,null,"-","-",null,null,null,null,0,0,0,0]
[null,"-","-",null,null,null,null,null,"-","-",null,null,null,null,null,"-","-",null,null,null,null,0,0,0,0]
[null,"-","-",null,null,null,null,null,"-","-",null,null,null,null,null,"-","-",null,null,null,null,0,0,0,0]
[null,"-","-",null,null,null,null,null,"-","-",null,null,null,null,null,"-","-",null,null,null,null,0,0,0,0]
[null,"-","-",null,null,null,null,null,"-","-",null,null,null,null,null,"-","-",null,null,null,null,0,0,0,0]
[null,"-","-",null,null,null,null,null,"-","-",null,null,null,null,null,"-","-",null,null,null,null,0,0,0,0]
[null,"-","-",null,null,null,null,null,"-","-",null,null,null,null,null,"-","-",null,null,null,null,0,0,0,0]
[null,"-","-",null,null,null,null,null,"-","-",null,null,null,null,null,"-","-",null,null,null,null,0,0,0,0]
[null,"-","-",null,null,null,null,null,"-","-",null,null,null,null,null,"-","-",null,null,null,null,0,0,0,0]
[null,"-","-",null,null,null,null,null,"-","-",null,null,null,null,null,"-","-",null,null,null,null,0,0,0,0]
[null,"-","-",null,null,null,null,null,"-","-",null,null,null,null,null,"-","-",null,null,null,null,0,0,0,0]
[null,"-","-",null,null,null,null,null,"-","-",null,null,null,null,null,"-","-",null,null,null,null,0,0,0,0]
[null,"-","-",null,null,null,null,null,"-","-",null,null,null,null,null,"-","-",null,null,null,null,0,0,0,0]
[null,"-","-",null,null,null,null,null,"-","-",null,null,null,null,null,"-","-",null,null,null,null,0,0,0,0]
[null,"-","-",null,null,null,null,null,"-","-",null,null,null,null,null,"-","-",null,null,null,null,0,0,0,0]
[null,"-","-",null,null,null,null,null,"-","-",null,null,null,null,null,"-","-",null,null,null,null,0,0,0,0]
[null,"-","-",null,null,null,null,null,"-","-",null,null,null,null,null,"-","-",null,null,null,null,0,0,0,0]
[null,"-","-",null,null,null,null,null,"-","-",null,null,null,null,null,"-","-",null,null,null,null,0,0,0,0]
[null,"-","-",null,null,null,null,null,"-","-",null,null,null,null,null,"-","-",null,null,null,null,0,0,0,0]
[null,"-","-",null,null,null,null,null,"-","-",null,null,null,null,null,"-","-",null,null,null,null,0,{"$f":"IF(B196=\"-\",0,B196)","v":0},{"$f":"IF(I196=\"-\",0,I196)","v":0},{"$f":"IF(P196=\"-\",0,P196)","v":0}]
[null,{"$f":"IF(X100=0,\"-\",X100/$E$116)","v":"-"},{"$f":"IF(B197=\"-\",\"-\",CONCATENATE(MID(C100,1,21),\" - \",G100))","v":"-"},null,null,null,null,null,{"$f":"IF(Y100=0,\"-\",Y100/$L$116)","v":"-"},{"$f":"IF(I197=\"-\",\"-\",CONCATENATE(MID(C100,1,21),\" - \",G100))","v":"-"},null,null,null,null,null,{"$f":"IF(Z100=0,\"-\",Z100/$S$116)","v":"-"},{"$f":"IF(P197=\"-\",\"-\",CONCATENATE(MID(C100,1,21),\" - \",G100))","v":"-"},null,null,null,null,0,{"$f":"IF(B197=\"-\",0,B197)","v":0},{"$f":"IF(I197=\"-\",0,I197)","v":0},{"$f":"IF(P197=\"-\",0,P197)","v":0}]
[null,"-","-",null,null,null,null,null,"-","-",null,null,null,null,null,"-","-",null,null,null,null,0,0,0,0]
[null,{"$f":"IF(X102=0,\"-\",X102/$E$116)","v":"-"},{"$f":"IF(B199=\"-\",\"-\",CONCATENATE(MID(C102,1,21),\" - \",G102))","v":"-"},null,null,null,null,null,{"$f":"IF(Y102=0,\"-\",Y102/$L$116)","v":"-"},{"$f":"IF(I199=\"-\",\"-\",CONCATENATE(MID(C102,1,21),\" - \",G102))","v":"-"},null,null,null,null,null,{"$f":"IF(Z102=0,\"-\",Z102/$S$116)","v":"-"},{"$f":"IF(P199=\"-\",\"-\",CONCATENATE(MID(C102,1,21),\" - \",G102))","v":"-"},null,null,null,null,{"$f":"IF((Y199+X199+W199)>0,1,0)","v":0},{"$f":"IF(B199=\"-\",0,B199)","v":0},{"$f":"IF(I199=\"-\",0,I199)","v":0},{"$f":"IF(P199=\"-\",0,P199)","v":0}]
[null,null,null,null,null,null,null,null,null,null,null,null,null,null,null,null,null,null,null,null,null,{"$f":"IF($B$15>=\"\",0,1)","v":0}]
[null,"NOTE",null,null,null,null,null,null,"NOTE",null,null,null,null,null,null,"NOTE",null,null,null,null,null,0]
[null,null,null,null,null,null,null,null,null,null,null,null,null,null,null,null,null,null,null,null,null,0]
[null,{"$f":"'Lotto2_R7425-1'!B77","v":"Specificare la configurazione RAID per l'installazione del Sistema Operativo, se richiesto.\ne/o\ninserire eventuali note."},null,null,null,null,null,null,{"$f":"'Lotto2_R7425-2'!B77","v":"Specificare la configurazione RAID per l'installazione del Sistema Operativo, se richiesto.\ne/o\ninserire eventuali note."},null,null,null,null,null,null,{"$f":"'Lotto2_R7425-3'!B77","v":"Specificare la configurazione RAID per l'installazione del Sistema Operativo, se richiesto.\ne/o\ninserire eventuali note."},null,null,null,null,null,0]
[null,null,null,null,null,null,null,null,null,null,null,null,null,null,null,null,null,null,null,null,null,0]
[null,null,null,null,null,null,null,null,null,null,null,null,null,null,null,null,null,null,null,null,null,0]
[null,null,null,null,null,null,null,null,null,null,null,null,null,null,null,null,null,null,null,null,null,0]
[null,null,null,null,null,null,null,null,null,null,null,null,null,null,null,null,null,null,null,null,null,0]
[null,null,null,null,null,null,null,null,null,null,null,null,null,null,null,null,null,null,null,null,null,0]
[null,null,null,null,null,null,null,null,null,null,null,null,null,null,null,null,null,null,null,null,null,0]
[null,null,null,null,null,null,null,null,null,null,null,null,null,null,null,null,null,null,null,null,null,0]
[null,null,null,null,null,null,null,null,null,null,null,null,null,null,null,null,null,null,null,null,null,0]
[null,null,null,null,null,null,null,null,null,null,null,null,null,null,null,null,null,null,null,null,null,0]
[null,null,null,null,null,null,null,null,null,null,null,null,null,null,null,null,null,null,null,null,null,0]
[null,null,null,null,null,null,null,null,null,null,null,null,null,null,null,null,null,null,null,null,null,0]
[null,null,null,null,null,null,null,null,null,null,null,null,null,null,null,null,null,null,null,null,null,0]
[null,null,null,null,null,null,null,null,null,null,null,null,null,null,null,null,null,null,null,null,null,0]
[null,null,null,null,null,null,null,null,null,null,null,null,null,null,null,null,null,null,null,null,null,0]
[null,null,null,null,null,null,null,null,null,null,null,null,null,null,null,null,null,null,null,null,null,0]
[null,null,null,null,null,null,null,null,null,null,null,null,null,null,null,null,null,null,null,null,null,0]
[null,null,null,null,null,null,null,null,null,null,null,null,null,null,null,null,null,null,null,null,null,0]
[null,null,null,null,null,null,null,null,null,null,null,null,null,null,null,null,null,null,null,null,null,{"$f":"IF($L$222>=0,0,1)","v":0}]
[null,null,null,null,null,null,null,null,"PowerEdge R7425 GPU",null,null,{"$f":"AA15","v":0},"Server",null,null,null,null,null,null,null,null,{"$f":"IF($L$222>=0,0,1)","v":0}]
[null,null,null,null,null,null,null,null,null,null,null,null,null,null,null,null,null,null,null,null,null,0]
[null,null,null,null,null,null,null,null,{"$f":"IF(L222>0,\"1\",\"-\")","v":"-"},{"$f":"IF(I224=\"-\",\"-\",CONCATENATE(MID($C$15,1,21),\" - \",$G$15))","v":"-"},null,null,null,null,null,null,null,null,null,null,null,{"$f":"IF((Y224+X224+W224)>0,1,0)","v":0},{"$f":"IF(B224=\"-\",0,B224)","v":0},{"$f":"IF(I224=\"-\",0,I224)","v":0},{"$f":"IF(P224=\"-\",0,P224)","v":0}]
[null,null,null,null,null,null,null,null,{"$f":"IF(AA16=0,\"-\",AA16/$L$222)","v":"-"},{"$f":"IF(I225=\"-\",\"-\",CONCATENATE(MID(C16,1,21),\" - \",G16))","v":"-"},null,null,null,null,null,null,null,null,null,null,null,{"$f":"IF((Y225+X225+W225)>0,1,0)","v":0},0,0,0]
[null,null,null,null,null,null,null,null,"-","-",null,null,null,null,null,null,null,null,null,null,null,0,0,0,0]
[null,null,null,null,null,null,null,null,"-","-",null,null,null,null,null,null,null,null,null,null,null,0,0,0,0]
[null,null,null,null,null,null,null,null,"-","-",null,null,null,null,null,null,null,null,null,null,null,0,0,0,0]
[null,null,null,null,null,null,null,null,"-","-",null,null,null,null,null,null,null,null,null,null,null,0,0,0,0]
[null,null,null,null,null,null,null,null,"-","-",null,null,null,null,null,null,null,null,null,null,null,0,0,0,0]
[null,null,null,null,null,null,null,null,"-","-",null,null,null,null,null,null,null,null,null,null,null,0,0,0,0]
[null,null,null,null,null,null,null,null,"-","-",null,null,null,null,null,null,null,null,null,null,null,0,0,0,0]
[null,null,null,null,null,null,null,null,"-","-",null,null,null,null,null,null,null,null,null,null,null,0,0,0,0]
[null,null,null,null,null,null,null,null,"-","-",null,null,null,null,null,null,null,null,null,null,null,0,0,0,0]
[null,null,null,null,null,null,null,null,"-","-",null,null,null,null,null,null,null,null,null,null,null,0,0,0,0]
[null,null,null,null,null,null,null,null,"-","-",null,null,null,null,null,null,null,null,null,null,null,0,0,0,0]
[null,null,null,null,null,null,null,null,"-","-",null,null,null,null,null,null,null,null,null,null,null,0,0,0,0]
[null,null,null,null,null,null,null,null,"-","-",null,null,null,null,null,null,null,null,null,null,null,0,0,0,0]
[null,null,null,null,null,null,null,null,"-","-",null,null,null,null,null,null,null,null,null,null,null,0,0,0,0]
[null,null,null,null,null,null,null,null,"-","-",null,null,null,null,null,null,null,null,null,null,null,0,0,0,0]
[null,null,null,null,null,null,null,null,"-","-",null,null,null,null,null,null,null,null,null,null,null,0,0,0,0]
[null,null,null,null,null,null,null,null,"-","-",null,null,null,null,null,null,null,null,null,null,null,0,0,0,0]
[null,null,null,null,null,null,null,null,"-","-",null,null,null,null,null,null,null,null,null,null,null,0,0,0,0]
[null,null,null,null,null,null,null,null,"-","-",null,null,null,null,null,null,null,null,null,null,null,0,0,0,0]
[null,null,null,null,null,null,null,null,"-","-",null,null,null,null,null,null,null,null,null,null,null,0,0,0,0]
[null,null,null,null,null,null,null,null,"-","-",null,null,null,null,null,null,null,null,null,null,null,0,0,0,0]
[null,null,null,null,null,null,null,null,"-","-",null,null,null,null,null,null,null,null,null,null,null,0,0,0,0]
[null,null,null,null,null,null,null,null,"-","-",null,null,null,null,null,null,null,null,null,null,null,0,0,0,0]
[null,null,null,null,null,null,null,null,{"$f":"IF(AA46=0,\"-\",AA46/$L$222)","v":"-"},{"$f":"IF(I249=\"-\",\"-\",CONCATENATE(MID(C46,1,21),\" - \",G46))","v":"-"},null,null,null,null,null,null,null,null,null,null,null,0,0,0,0]
[null,null,null,null,null,null,null,null,null,null,null,null,null,null,null,null,null,null,null,null,null,{"$f":"IF($L$222>=0,0,1)","v":0}]
[null,null,null,null,null,null,null,null,"NOTE",null,null,null,null,null,null,null,null,null,null,null,null,0]
[null,null,null,null,null,null,null,null,null,null,null,null,null,null,null,null,null,null,null,null,null,0]
[null,null,null,null,null,null,null,null,{"$f":"'Lotto3_R7425(GPU)'!B80","v":"Inserire eventuali note sulla configurazione"},null,null,null,null,null,null,null,null,null,null,null,null,0]
[null,null,null,null,null,null,null,null,null,null,null,null,null,null,null,null,null,null,null,null,null,0]
[null,null,null,null,null,null,null,null,null,null,null,null,null,null,null,null,null,null,null,null,null,0]
[null,null,null,null,null,null,null,null,null,null,null,null,null,null,null,null,null,null,null,null,null,0]
[null,null,null,null,null,null,null,null,null,null,null,null,null,null,null,null,null,null,null,null,null,0]
[null,null,null,null,null,null,null,null,null,null,null,null,null,null,null,null,null,null,null,null,null,0]
[null,null,null,null,null,null,null,null,null,null,null,null,null,null,null,null,null,null,null,null,null,0]
[null,null,null,null,null,null,null,null,null,null,null,null,null,null,null,null,null,null,null,null,null,0]
[null,null,null,null,null,null,null,null,null,null,null,null,null,null,null,null,null,null,null,null,null,0]
[null,null,null,null,null,null,null,null,null,null,null,null,null,null,null,null,null,null,null,null,null,0]
[null,null,null,null,null,null,null,null,null,null,null,null,null,null,null,null,null,null,null,null,null,0]
[null,null,null,null,null,null,null,null,null,null,null,null,null,null,null,null,null,null,null,null,null,0]
[null,null,null,null,null,null,null,null,null,null,null,null,null,null,null,null,null,null,null,null,null,0]
[null,null,null,null,null,null,null,null,null,null,null,null,null,null,null,null,null,null,null,null,null,0]
[null,null,null,null,null,null,null,null,null,null,null,null,null,null,null,null,null,null,null,null,null,0]
[null,null,null,null,null,null,null,null,null,null,null,null,null,null,null,null,null,null,null,null,null,0]
[null,null,null,null,null,null,null,null,null,null,null,null,null,null,null,null,null,null,null,null,null,0]
[null,null,null,null,null,null,null,null,null,null,null,null,null,null,null,null,null,null,null,null,null,0]
[null,null,null,null,null,null,null,null,null,null,null,null,null,null,null,null,null,null,null,null,null,1]
[null,null,null,null,null,null,null,null,null,null,null,null,null,null,null,null,null,null,null,null,null,1]
[null,null,null,{"$f":"MID(C271,13,5)","v":""},null,{"$f":"MID(E271,13,5)","v":""},null,"",null,"",null,"",null,"",null,"",null,"",null,"",null,1]
[null,null,null,"AREA RISERVATA AL FORNITORE",null,null,null,null,null,null,null,null,null,null,null,null,null,null,null,null,null,1]
[null,null,null,null,null,null,null,null,null,null,null,null,null,null,null,null,null,null,null,null,null,1]
[null,null,null,null,null,null,null,null,null,null,null,null,null,null,null,null,null,null,null,null,null,1]
[null,null,"VERIFICA STAGING",null,null,null,null,null,null,null,null,null,null,null,"VERIFICA INSTALLATORE",null,null,null,null,null,null,1]
[null,null,null,null,null,null,null,null,null,null,null,null,null,null,null,null,null,null,null,null,null,1]
[null,null,null,null,null,null,null,null,null,null,null,null,null,null,null,null,null,null,null,null,null,1]
[null,null,null,null,null,null,null,null,null,null,null,null,null,null,null,null,null,null,null,null,null,1]
[null,null,null,null,null,null,null,null,null,null,null,null,null,null,null,null,null,null,null,null,null,1]
[null,null,null,null,null,null,null,null,null,null,null,null,null,null,null,null,null,null,null,null,null,1]

{"sheet":"Foglio1","index":6,"n_rows":87,"n_cols":4,"rows_kept":87,"cut":false,"hidden":true,"merged":[]}
[{"$f":"Riepilogo!E116","v":0}]
[{"$f":"Riepilogo!B118","v":"-"},{"$f":"Riepilogo!C118","v":"-"},null,{"$f":"IF(A2+A3=2,\"TS2L3-SRV2CPU\",B2)","v":{"$error":"#VALUE!"}}]
[{"$f":"Riepilogo!B119","v":"-"},{"$f":"Riepilogo!C119","v":"-"}]
[{"$f":"Riepilogo!B120","v":"-"},{"$f":"Riepilogo!C120","v":"-"}]
[{"$f":"Riepilogo!B121","v":"-"},{"$f":"Riepilogo!C121","v":"-"}]
[{"$f":"Riepilogo!B122","v":"-"},{"$f":"Riepilogo!C122","v":"-"}]
[{"$f":"Riepilogo!B123","v":"-"},{"$f":"Riepilogo!C123","v":"-"}]
[{"$f":"Riepilogo!B124","v":"-"},{"$f":"Riepilogo!C124","v":"-"}]
[{"$f":"Riepilogo!B125","v":"-"},{"$f":"Riepilogo!C125","v":"-"}]
[{"$f":"Riepilogo!B126","v":"-"},{"$f":"Riepilogo!C126","v":"-"}]
[{"$f":"Riepilogo!B127","v":"-"},{"$f":"Riepilogo!C127","v":"-"}]
[{"$f":"Riepilogo!B128","v":"-"},{"$f":"Riepilogo!C128","v":"-"}]
[{"$f":"Riepilogo!B129","v":"-"},{"$f":"Riepilogo!C129","v":"-"}]
[{"$f":"Riepilogo!B130","v":"-"},{"$f":"Riepilogo!C130","v":"-"}]
[{"$f":"Riepilogo!B131","v":"-"},{"$f":"Riepilogo!C131","v":"-"}]
[{"$f":"Riepilogo!B132","v":"-"},{"$f":"Riepilogo!C132","v":"-"}]
[{"$f":"Riepilogo!B133","v":"-"},{"$f":"Riepilogo!C133","v":"-"}]
[{"$f":"Riepilogo!B134","v":"-"},{"$f":"Riepilogo!C134","v":"-"}]
[{"$f":"Riepilogo!B135","v":"-"},{"$f":"Riepilogo!C135","v":"-"}]
[{"$f":"Riepilogo!B136","v":"-"},{"$f":"Riepilogo!C136","v":"-"}]
[{"$f":"Riepilogo!B137","v":"-"},{"$f":"Riepilogo!C137","v":"-"}]
[{"$f":"Riepilogo!B138","v":"-"},{"$f":"Riepilogo!C138","v":"-"}]
[{"$f":"Riepilogo!B139","v":"-"},{"$f":"Riepilogo!C139","v":"-"}]
[{"$f":"Riepilogo!B140","v":"-"},{"$f":"Riepilogo!C140","v":"-"}]
[{"$f":"Riepilogo!B141","v":"-"},{"$f":"Riepilogo!C141","v":"-"}]
[{"$f":"Riepilogo!B142","v":"-"},{"$f":"Riepilogo!C142","v":"-"}]
[{"$f":"Riepilogo!#REF!","v":{"$error":"#REF!"}},{"$f":"Riepilogo!#REF!","v":{"$error":"#REF!"}}]
[{"$f":"Riepilogo!B143","v":"-"},{"$f":"Riepilogo!C143","v":"-"}]
[]
[{"$f":"Riepilogo!L116","v":0}]
[{"$f":"Riepilogo!I118","v":"-"},{"$f":"Riepilogo!J118","v":"-"}]
[{"$f":"Riepilogo!I119","v":"-"},{"$f":"Riepilogo!J119","v":"-"}]
[{"$f":"Riepilogo!I120","v":"-"},{"$f":"Riepilogo!J120","v":"-"}]
[{"$f":"Riepilogo!I121","v":"-"},{"$f":"Riepilogo!J121","v":"-"}]
[{"$f":"Riepilogo!I122","v":"-"},{"$f":"Riepilogo!J122","v":"-"}]
[{"$f":"Riepilogo!I123","v":"-"},{"$f":"Riepilogo!J123","v":"-"}]
[{"$f":"Riepilogo!I124","v":"-"},{"$f":"Riepilogo!J124","v":"-"}]
[{"$f":"Riepilogo!I125","v":"-"},{"$f":"Riepilogo!J125","v":"-"}]
[{"$f":"Riepilogo!I126","v":"-"},{"$f":"Riepilogo!J126","v":"-"}]
[{"$f":"Riepilogo!I127","v":"-"},{"$f":"Riepilogo!J127","v":"-"}]
[{"$f":"Riepilogo!I128","v":"-"},{"$f":"Riepilogo!J128","v":"-"}]
[{"$f":"Riepilogo!I129","v":"-"},{"$f":"Riepilogo!J129","v":"-"}]
[{"$f":"Riepilogo!I130","v":"-"},{"$f":"Riepilogo!J130","v":"-"}]
[{"$f":"Riepilogo!I131","v":"-"},{"$f":"Riepilogo!J131","v":"-"}]
[{"$f":"Riepilogo!I132","v":"-"},{"$f":"Riepilogo!J132","v":"-"}]
[{"$f":"Riepilogo!I133","v":"-"},{"$f":"Riepilogo!J133","v":"-"}]
[{"$f":"Riepilogo!I134","v":"-"},{"$f":"Riepilogo!J134","v":"-"}]
[{"$f":"Riepilogo!I135","v":"-"},{"$f":"Riepilogo!J135","v":"-"}]
[{"$f":"Riepilogo!I136","v":"-"},{"$f":"Riepilogo!J136","v":"-"}]
[{"$f":"Riepilogo!I137","v":"-"},{"$f":"Riepilogo!J137","v":"-"}]
[{"$f":"Riepilogo!I138","v":"-"},{"$f":"Riepilogo!J138","v":"-"}]
[{"$f":"Riepilogo!I139","v":"-"},{"$f":"Riepilogo!J139","v":"-"}]
[{"$f":"Riepilogo!I140","v":"-"},{"$f":"Riepilogo!J140","v":"-"}]
[{"$f":"Riepilogo!I141","v":"-"},{"$f":"Riepilogo!J141","v":"-"}]
[{"$f":"Riepilogo!I142","v":"-"},{"$f":"Riepilogo!J142","v":"-"}]
[{"$f":"Riepilogo!#REF!","v":{"$error":"#REF!"}},{"$f":"Riepilogo!#REF!","v":{"$error":"#REF!"}}]
[{"$f":"Riepilogo!I143","v":"-"},{"$f":"Riepilogo!J143","v":"-"}]
[]
[]
[{"$f":"Riepilogo!S116","v":0}]
[{"$f":"Riepilogo!P118","v":"-"},{"$f":"Riepilogo!Q118","v":"-"}]
[{"$f":"Riepilogo!P119","v":"-"},{"$f":"Riepilogo!Q119","v":"-"}]
[{"$f":"Riepilogo!P120","v":"-"},{"$f":"Riepilogo!Q120","v":"-"}]
[{"$f":"Riepilogo!P121","v":"-"},{"$f":"Riepilogo!Q121","v":"-"}]
[{"$f":"Riepilogo!P122","v":"-"},{"$f":"Riepilogo!Q122","v":"-"}]
[{"$f":"Riepilogo!P123","v":"-"},{"$f":"Riepilogo!Q123","v":"-"}]
[{"$f":"Riepilogo!P124","v":"-"},{"$f":"Riepilogo!Q124","v":"-"}]
[{"$f":"Riepilogo!P125","v":"-"},{"$f":"Riepilogo!Q125","v":"-"}]
[{"$f":"Riepilogo!P126","v":"-"},{"$f":"Riepilogo!Q126","v":"-"}]
[{"$f":"Riepilogo!P127","v":"-"},{"$f":"Riepilogo!Q127","v":"-"}]
[{"$f":"Riepilogo!P128","v":"-"},{"$f":"Riepilogo!Q128","v":"-"}]
[{"$f":"Riepilogo!P129","v":"-"},{"$f":"Riepilogo!Q129","v":"-"}]
[{"$f":"Riepilogo!P130","v":"-"},{"$f":"Riepilogo!Q130","v":"-"}]
[{"$f":"Riepilogo!P131","v":"-"},{"$f":"Riepilogo!Q131","v":"-"}]
[{"$f":"Riepilogo!P132","v":"-"},{"$f":"Riepilogo!Q132","v":"-"}]
[{"$f":"Riepilogo!P133","v":"-"},{"$f":"Riepilogo!Q133","v":"-"}]
[{"$f":"Riepilogo!P134","v":"-"},{"$f":"Riepilogo!Q134","v":"-"}]
[{"$f":"Riepilogo!P135","v":"-"},{"$f":"Riepilogo!Q135","v":"-"}]
[{"$f":"Riepilogo!P136","v":"-"},{"$f":"Riepilogo!Q136","v":"-"}]
[{"$f":"Riepilogo!P137","v":"-"},{"$f":"Riepilogo!Q137","v":"-"}]
[{"$f":"Riepilogo!P138","v":"-"},{"$f":"Riepilogo!Q138","v":"-"}]
[{"$f":"Riepilogo!P139","v":"-"},{"$f":"Riepilogo!Q139","v":"-"}]
[{"$f":"Riepilogo!P140","v":"-"},{"$f":"Riepilogo!Q140","v":"-"}]
[{"$f":"Riepilogo!P141","v":"-"},{"$f":"Riepilogo!Q141","v":"-"}]
[{"$f":"Riepilogo!P142","v":"-"},{"$f":"Riepilogo!Q142","v":"-"}]
[{"$f":"Riepilogo!#REF!","v":{"$error":"#REF!"}},{"$f":"Riepilogo!#REF!","v":{"$error":"#REF!"}}]
[{"$f":"Riepilogo!P143","v":"-"},{"$f":"Riepilogo!Q143","v":"-"}]

{"sheet":"Regole di configurazione","index":7,"n_rows":510,"n_cols":20,"rows_kept":510,"cut":false,"hidden":true,"merged":[]}
["Descrizione","Quantità","SKU","Customer Kit","Codice Convenzione","Convenzione",0.2,null,"SKU","Customer Kit",null,null,null,null,null,"SKU","Customer Kit"]
["Server DELL EMC PowerEdge R7425, 2U, 1 x AMD EPYC 7301; RAM 64GB, 2 x HDD 600GB 10K 2.5\"",1,"[210-APFK]",null,"TS2L2-SRV",1849]
["Server DELL EMC PowerEdge R7425, 2U, 2 x AMD EPYC 7301; RAM 64GB, 2 x HDD 600GB 10K 2.5\"",1,"[210-ANKP]",null,"TS2L2-SRV2CPU"]
["AMD EPYC™ 7301 2.2GHz/2.7GHz, 16C/32T, 64M Cache (155W/170W) DDR4-2400/2666",1,"[374-BBTR]","338-BNCI","TS2L2-CPU",491,{"$f":"\"\"","v":""},"Standard Heatsinks, below 180W CPU",2,"[412-AALN]","412-AALJ",{"$f":"\"\"","v":""},{"$f":"\"\"","v":""},{"$f":"\"\"","v":""},"Riser Config 5, 4 x8, 3 x16 slots",1,"[330-BBJD]","330-BBMK 330-BBLS",null,{"$f":"\"\"","v":""}]
["Windows Server 2019 Standard Ed,ROK,16CORE (for Distributor sale only)",null,null,"634-BRMW","TS2L2-WIN1",553]
["Windows Server 2019 Standard Ed,Additional Lic,ROK,2CORE,NoMedia",null,null,"634-BJQW","TS2L2-WIN2CORE",74]
["CentOS 7.0",null,null,null,"TS2L2-LINUX",49]
["1 Windows Server 2019 Device CALs (Standard or Datacenter),CUS",null,null,"623-BBBX","TS2L2-CALDEV",20]
["1 Windows Server 2019 User CALs (Standard or Datacenter),CUS",null,null,"623-BBCC","TS2L2-CALUSER",24]
["16GB RDIMM, 2666MT/s, Dual Rank",null,"[370-ADND]","AA138422","TS2L2-RAM16",103]
["32GB RDIMM, 2666MT/s, Dual Rank",null,"[370-ADNF]","A9781929","TS2L2-RAM32",347]
["64GB LRDIMM, 2666MT/s, Quad Rank",null,"[370-AECZ]","A9781930","TS2L2-RAM64",697]
["600GB 10K RPM SAS 12Gbps 512n 2.5in Hot-plug Hard Drive",null,"[400-ASGS]","400-AUNQ","TS2L2-10K600",68]
["1.2TB 10K RPM SAS 12Gbps 512n 2.5in Hot-plug Hard Drive",null,"[400-ASHI]","400-ATJL","TS2L2-10K1200",136]
["480GB SSD SAS Mixed Use 12Gbps 2.5in Hot-Plug Hard Drive",null,null,"400-BCOD","TS2L2-SSDM480",399]
["960GB SSD SAS Read Intensive 12Gbps 512e 2.5in Hot-plug Drive, PM5-R, 1 DWPD, 1752 TBW",null,"[400-BBPL]","400-ATLL","TS2L2-SSDR960",664]
["1.92TB SSD SAS Read Intensive 12Gbps 512e 2.5in Hot-plug Drive, PM1633a",null,"[400-ASFX]","400-ATND","TS2L2-SSDR1920",1313]
["Broadcom 5720 DP 1Gb Network Interface Card,Full Height,CusKit",null,"[540-BBCX]","540-BBGY","TS2L2-LAN1",22]
["Broadcom 57412 Dual Port 10Gb, SFP+, PCIe Adapter, Full Height, Customer Install",null,"[540-BBUH]","540-BBUN","TS2L2-LAN10",114,null,"Kit - Dell EMC PowerEdge SFP+ SR Optic, 10GbE, 850nm",null,"407-BCBN",2]
["QLogic 41112 Dual Port 10Gb SFP+ Adapter, Full Height, Customer Install",null,"[540-BBYK]","540-BBYH","TS2L2-CNA10",110,null,"Kit - Dell EMC PowerEdge SFP+ SR Optic, 10GbE, 850nm",null,"407-BCBN",2]
["QLogic 2562, Dual Port 8Gb Optical Fibre Channel HBA,Full Height,CusKit",null,"[540-BBEC]","406-BBEK","TS2L2-FC8",245]
["Broadcom 5720 DP 1Gb Network Interface Card, Low Profile",null,"[540-BBDE]","540-BBGW","TS2L2-LAN1-L",22]
["Broadcom 57412 Dual Port 10Gb, SFP+, PCIe Adapter, Low Profile",null,"[540-BBVI]","540-BBVL","TS2L2-LAN10-L",114,null,"Kit - Dell EMC PowerEdge SFP+ SR Optic, 10GbE, 850nm",null,"407-BCBN",2]
["QLogic FastLinQ 41112 Dual Port 10Gb SFP+ Adapter, Low Profile",null,"[540-BBZI]","540-BBZM","TS2L2-CNA10-L",110,null,"Kit - Dell EMC PowerEdge SFP+ SR Optic, 10GbE, 850nm",null,"407-BCBN",2]
["QLogic 2562, Dual Port 8Gb Optical Fibre Channel HBA, Low Profile",null,"[540-BBEC]","406-BBEL","TS2L2-FC8-L",245]
["Estensione della manutenzione in garanzia per ulteriori 12 mesi",null,null,"701-11494 732-79421","TS2L2-4Y",40]
["Estensione della manutenzione in garanzia per ulteriori 24 mesi",null,null,"701-11494 701-11494 732-79422","TS2L2-5Y",81]
["Tecnosteel: armadio Rack 19'' 42U",null,null,null,"TS2L2-RACK",504]
["1U Rackmount Console 17'' with Italian Keyboard",null,null,null,"TS2L2-GUI",448]
["16-port remote KVM switch with one remote user",null,null,null,"TS2L2-KVMIP",495]
["Riello - UPS MSR3000EVO 3000VA 2U Rackmount (SNMP+USB+RS232)",null,null,null,"TS2L2-UPS",387]
[0.2]
["Coppia di PDU Vertical  1Ph-32A-18xC13-6xC19 - 0U Base + Kit di montaggio A20",null,null,null,"TS2L2-PDU32A",null,436]
["Coppia di PDU Vertical  1Ph-16A-36xC13+6xC19 -0U Metered + Kit di montaggio A20",null,null,null,"TS2L2-TM1613606",null,900]
["Coppia di PDU Vertical  1Ph-32A-36xC13+6xC19 -0U Metered + Kit di montaggio A20",null,null,null,"TS2L2-TM3213606",null,939]
["Coppia di PDU Vertical  3Ph-32A-36xC13+6xC19 -0U Metered + Kit di montaggio A20",null,null,null,"TS2L2-TM3233606",null,1106]
["Coppia di PDU Vertical  1Ph-16A-24xC13+6xC19 -0U Controlled + Kit di montaggio A20",null,null,null,"TS2L2-TK1612406",null,1723]
["Coppia di PDU Vertical  1Ph-32A-24xC13+6xC19 -0U Controlled + Kit di montaggio A20",null,null,null,"TS2L2-TK3212406",null,1817]
["Coppia di PDU Vertical  3Ph-32A-24xC13+6xC19 -0U Controlled + Kit di montaggio A20",null,null,null,"TS2L2-TK3232406",null,2154]
["Coppia di PDU Vertical  1Ph-16A-24xC13+6xC19 -0U Full + Kit di montaggio A20",null,null,null,"TS2L2-TF1612406",null,2173]
["Coppia di PDU Vertical  1Ph-32A-24xC13+6xC19 -0U Full + Kit di montaggio A20",null,null,null,"TS2L2-TF3212406",null,2277]
["Coppia di PDU Vertical  3Ph-32A-24xC13+6xC19 -0U Full + Kit di montaggio A20",null,null,null,"TS2L2-TF3232406",null,2518]
["Cavo Rete UTP cat. 5e 3 metri A20",null,null,null,"TS2L2-3MRJ45",null,2]
["1.8TB 10K RPM SAS 12Gbps 512e 2.5in Hot-plug Hard Drive A20",null,"[400-ARXC]","400-ATJR","TS2L2-10K1800",null,169]
["Kit upgrade R7425 per GPU A20",null,null,null,"TS2L2-KITGPU",null,999]
["PERC HBA330 RAID Controller, 12Gb Adapter, Full Height A20",1,"[405-AAOO]","405-AAMV","TS2L2-HBA330",null,999]
["PERC H740P RAID Controller, 8Gb NV Cache, Adapter, Full Height A20",1,"[405-AANR]","405-AAMX","TS2L2-H740P",null,999]
["Broadcom 57416 Dual Port 10Gb, Base-T, PCIe Adapter, Full Height A20",1,"[540-BBUI]","540-BBUO","TS2L2-57416",null,999]
["QLogic FastLinQ 41162 Dual Port 10Gb Base-T Adapter, Full Height A20",1,"[540-BBYJ]","540-BBYG","TS2L2-41162",null,999]
["Mellanox ConnectX-5 Single Port EDR VPI QSFP28 PCIe Adapter, Full Height A20",1,"[540-BCDK]","540-BCIV","TS2L2-MCX416A",null,999]
["Mellanox ConnectX-4 Dual Port 100GbE QSFP28 PCIe Adapter, Full Height A20",1,"[540-BBUT]","540-BBUU","TS2L2-MCX516A",null,999]
["QLogic 2692 Dual Port 16Gb Fibre Channel HBA A20",1,"[403-BBMQ]","403-BBMU","TS2L2-2692",null,999]
["Broadcom 57416 Dual Port 10Gb, Base-T, PCIe Adapter, Low Profile A20",1,"[540-BBVJ]","540-BBVM","TS2L2-57416-L",null,999]
["Mellanox ConnectX-4 Lx Dual Port 25GbE SFP28 Network Adapter, Low Profile A20",1,"[406-BBLD]","406-BBLC","TS2L2-MCX4121AL",null,999]
["Mellanox ConnectX-4 Dual Port 40/100GbE, QSFP28, PCIe Adapter, Low Profile A20",1,null,"540-BBVR","TS2L2-MCX416A-L",null,999]
["QLogic FastLinQ 41162 Dual Port 10Gb Base-T Adapter, Low Profile A20",1,"[540-BBZK]","540-BBZN","TS2L2-41162-L",null,999]
["QLogic 2692 Dual Port 16Gb Fibre Channel HBA, Low Profile A20",1,"[403-BBMS]","403-BBMT","TS2L2-2692-L",null,999]
["NVIDIA Tesla V100 32G Passive GPU A20",1,"[490-BENY]",null,"TS2L2-GPUV10032",null,999]
["NVIDIA Tesla™ V100 16G Passive GPU A20",1,"[490-BEDZ]",null,"TS2L2-GPUV10016",null,16366.99]
["NVIDIA Tesla P40 24GB GPU, Passive A20",1,"[489-BBCN]",null,"TS2L2-GPUP4024",null,999]
["NVIDIA Tesla M10 GPU, Requires GRID 2.0 SW for VDI Function A20",1,"[489-BBCG]",null,"TS2L2-GPUM10",null,4237.99]
["ISDM and Combo Card Reader, with 2 32Gb microSDHC/SDXC Card A20",1,null,"385-BBLF 385-BBKK 385-BBKK","TS2L2-IDSDM32",null,999]
["ISDM and Combo Card Reader, with 2 64Gb microSDHC/SDXC Card A20",1,null,"385-BBLF 385-BBKL 385-BBKL","TS2L2-IDSDM64",null,999]
["BOSS controller card + with 2 M.2 Sticks 240G (RAID 1),FH A20",1,"[403-BBPT]","403-BBVQ 400-ASDQ 400-ASDQ","TS2L2-BOSS240",null,999]
["BOSS controller card + with 2 M.2 Sticks 480GB (RAID 1),FH A20",1,"[403-BBSV]","403-BBVQ 400-AVSS 400-AVSS","TS2L2-BOSS480",null,999]
[]
["Trusted Platform Module"]
["No Trusted Platform Module",1,"[461-AADZ]"]
["Trusted Platform Module 2.0",1,"[461-AAEM]","461-AAEN","TS2L3-TPM2",null,0]
[]
["Processore aggiuntivo"]
["TS2L3CPU"]
["No Additional Processor",0,"[374-BBBX]",{"$f":"\"\"","v":""},{"$f":"\"\"","v":""},0,{"$f":"\"\"","v":""},"Standard Heatsinks, below 180W CPU",1,"[412-AALN]","412-AALJ","Blank for 1 CPU Configuration",1,"[379-BCWU]","Riser Config 1, 2 x8, 1 x16 slots",1,"[330-BBIY]",{"$f":"\"\"","v":""},{"$f":"\"\"","v":""},{"$f":"\"\"","v":""}]
["AMD EPYC 7281 2.1GHz/2.7GHz, 16C/32T, 32M Cache (155W/170W) DDR4-2400/2666",1,null,"338-BNKP","TS2L2-CPU",491,{"$f":"\"\"","v":""},"Standard Heatsinks, below 180W CPU",2,"[412-AALN]","412-AALJ",{"$f":"\"\"","v":""},{"$f":"\"\"","v":""},{"$f":"\"\"","v":""},"Riser Config 1, 2 x8, 1 x16 slots",1,"[330-BBIY]",null,null,{"$f":"\"\"","v":""}]
["Riser"]
["Riser Config 1, 2 x8, 1 x16 slots",0,"[330-BBIY]",{"$f":"\"\"","v":""},{"$f":"\"\"","v":""},0,0,"_NORISER"]
["Riser Config 5, 4 x8, 3 x16 slots",1,"[330-BBJD]","330-BBMK 330-BBLS","TS2L2-RISER",0,152,"_RISER"]
["Sistema operativo preinstallato"]
["None",{"$f":"\"\"","v":""},"[619-ABVR]",0,{"$f":"\"\"","v":""},0,0,{"$f":"\"\"","v":""},{"$f":"\"\"","v":""},{"$f":"\"\"","v":""},{"$f":"\"\"","v":""},{"$f":"\"\"","v":""},{"$f":"\"\"","v":""},0]
["Windows Server 2019 Standard Ed,ROK,16CORE",1,null,"634-BRMW","TS2L2-WIN1",553,null,"Windows Server 2019 Standard Ed,Additional Lic,ROK,2CORE,NoMedia",8,null,"634-BJQW","TS2L2-WIN2CORE",{"$f":"74*I80","v":592},0]
["Windows Server 2019 Datacenter Ed 16CORE A20",1,null,"634-BRMY","TS2L2-WINDC",null,3345,"Windows Server 2019 Datacenter Ed Add License 16CORE A20",1,null,"634-BKYO","TS2L2-WINDC2",null,3343]
["CentOS 7.0",1,null,{"$f":"\"\"","v":""},"TS2L2-LINUX",49,0,{"$f":"\"\"","v":""},{"$f":"\"\"","v":""},{"$f":"\"\"","v":""},{"$f":"\"\"","v":""},{"$f":"\"\"","v":""},0,0]
["1 Windows Server 2019, Device CALs (Standard or Datacenter),CUS",null,null,"623-BBBX","TS2L2-CALDEV",20]
["1 Windows Server 2019, User CALs (Standard or Datacenter),CUS",null,null,"623-BBCC","TS2L2-CALUSER",24]
["Windows Server 2019 Standard Ed,Additional Lic,ROK,2CORE,NoMedia",null,null,"634-BJQW","TS2L2-WIN2CORE",74]
["TS2L3MEM1CPU"]
["64     (DIMM 32GB)","32GB RDIMM, 2666MT/s, Dual Rank",2,"[370-ADNF]","A9781929",{"$f":"\"\"","v":""},0,null,"2666MT/s RDIMMs",1,"[370-ADNU]"]
["128   (DIMM 32GB)","32GB RDIMM, 2666MT/s, Dual Rank",4,"[370-ADNF]","A9781929","TS2L2-RAM32",{"$f":"$F$11*(C88-$C$87)","v":694},null,"2666MT/s RDIMMs",1,"[370-ADNU]"]
["256   (DIMM 32GB)","32GB RDIMM, 2666MT/s, Dual Rank",8,"[370-ADNF]","A9781929","TS2L2-RAM32",{"$f":"$F$11*(C89-$C$87)","v":2082},null,"2666MT/s RDIMMs",1,"[370-ADNU]"]
["512   (DIMM 32GB)","32GB RDIMM, 2666MT/s, Dual Rank",16,"[370-ADNF]","A9781929","TS2L2-RAM32",{"$f":"$F$11*(C90-$C$87)","v":4858},null,"2666MT/s RDIMMs",1,"[370-ADNU]"]
["--------------------------","32GB RDIMM, 2666MT/s, Dual Rank",2,"[370-ADNF]","A9781929","",0,null,"2666MT/s RDIMMs",1,"[370-ADNU]"]
["256   (DIMM 64GB)","64GB LRDIMM, 2666MT/s, Quad Rank",4,"[370-AECZ]","A9781930","TS2L2-RAM64",{"$f":"$F$12*C92","v":2788},null,"2666MT/s LRDIMMs",1,"[370-ADNT]"]
["512   (DIMM 64GB)","64GB LRDIMM, 2666MT/s, Quad Rank",8,"[370-AECZ]","A9781930","TS2L2-RAM64",{"$f":"$F$12*C93","v":5576},null,"2666MT/s LRDIMMs",1,"[370-ADNT]"]
["768   (DIMM 64GB)","64GB LRDIMM, 2666MT/s, Quad Rank",12,"[370-AECZ]","A9781930","TS2L2-RAM64",{"$f":"$F$12*C94","v":8364},null,"2666MT/s LRDIMMs",1,"[370-ADNT]"]
["1024 (DIMM 64GB)","64GB LRDIMM, 2666MT/s, Quad Rank",16,"[370-AECZ]","A9781930","TS2L2-RAM64",{"$f":"$F$12*C95","v":11152},null,"2666MT/s LRDIMMs",1,"[370-ADNT]"]
[]
["TS2L3MEM2CPU"]
["64     (DIMM 32GB)","32GB RDIMM, 2666MT/s, Dual Rank",2,"[370-ADNF]","A9781929",{"$f":"\"\"","v":""},0,null,"2666MT/s RDIMMs",1,"[370-ADNU]"]
["128   (DIMM 32GB)","32GB RDIMM, 2666MT/s, Dual Rank",4,"[370-ADNF]","A9781929","TS2L2-RAM32",{"$f":"$F$11*(C99-$C$87)","v":694},null,"2666MT/s RDIMMs",1,"[370-ADNU]"]
["256   (DIMM 32GB)","32GB RDIMM, 2666MT/s, Dual Rank",8,"[370-ADNF]","A9781929","TS2L2-RAM32",{"$f":"$F$11*(C100-$C$87)","v":2082},null,"2666MT/s RDIMMs",1,"[370-ADNU]"]
["512   (DIMM 32GB)","32GB RDIMM, 2666MT/s, Dual Rank",16,"[370-ADNF]","A9781929","TS2L2-RAM32",{"$f":"$F$11*(C101-$C$87)","v":4858},null,"2666MT/s RDIMMs",1,"[370-ADNU]"]
["768   (DIMM 32GB)","32GB RDIMM, 2666MT/s, Dual Rank",24,"[370-ADNF]","A9781929","TS2L2-RAM32",{"$f":"$F$11*(C102-$C$87)","v":7634},null,"2666MT/s RDIMMs",1,"[370-ADNU]"]
["1024 (DIMM 32GB)","32GB RDIMM, 2666MT/s, Dual Rank",32,"[370-ADNF]","A9781929","TS2L2-RAM32",{"$f":"$F$11*(C103-$C$87)","v":10410},null,"2666MT/s RDIMMs",1,"[370-ADNU]"]
["--------------------------","32GB RDIMM, 2666MT/s, Dual Rank",2,"[370-ADNF]","A9781929","",0,null,"2666MT/s RDIMMs",1,"[370-ADNU]"]
["256   (DIMM 64GB)","64GB LRDIMM, 2666MT/s, Quad Rank",4,"[370-AECZ]","A9781930","TS2L2-RAM64",{"$f":"$F$12*C105","v":2788},null,"2666MT/s LRDIMMs",1,"[370-ADNT]"]
["512   (DIMM 64GB)","64GB LRDIMM, 2666MT/s, Quad Rank",8,"[370-AECZ]","A9781930","TS2L2-RAM64",5576,null,"2666MT/s LRDIMMs",1,"[370-ADNT]"]
["768   (DIMM 64GB)","64GB LRDIMM, 2666MT/s, Quad Rank",12,"[370-AECZ]","A9781930","TS2L2-RAM64",8364,null,"2666MT/s LRDIMMs",1,"[370-ADNT]"]
["1024 (DIMM 64GB)","64GB LRDIMM, 2666MT/s, Quad Rank",16,"[370-AECZ]","A9781930","TS2L2-RAM64",11152,null,"2666MT/s LRDIMMs",1,"[370-ADNT]"]
["1536 (DIMM 64GB)","64GB LRDIMM, 2666MT/s, Quad Rank",24,"[370-AECZ]","A9781930","TS2L2-RAM64",16728,null,"2666MT/s LRDIMMs",1,"[370-ADNT]"]
["2048 (DIMM 64GB)","64GB LRDIMM, 2666MT/s, Quad Rank",32,"[370-AECZ]","A9781930","TS2L2-RAM64",22304,null,"2666MT/s LRDIMMs",1,"[370-ADNT]"]
[]
["Controller Dischi"]
["PERC H730P RAID Controller, 2Gb NV Cache, Adapter, Full Height",1,"[405-AAMR]","405-AAMY",null,0]
["PERC HBA330 RAID Controller, 12Gb Adapter, Full Height A20",1,"[405-AAOO]","405-AAMV","TS2L2-HBA330",null,{"$f":"G46","v":999}]
["PERC H740P RAID Controller, 8Gb NV Cache, Adapter, Full Height A20",1,"[405-AANR]","405-AAMX","TS2L2-H740P",null,{"$f":"G47","v":999}]
[]
["Modulo Doppia SD - Internal Dual SD Module (IDSDM)"]
["None",0,null,null,{"$f":"\"\"","v":""}]
["[TS2L3-ISDM32] ISDM and Combo Card Reader, 2x 32GB microSDHC/SDXC Card A20",1,null,"385-BBLF 385-BBKK 385-BBKK","TS2L2-ISDM32",null,134]
["ISDM and Combo Card Reader, with 2 64Gb microSDHC/SDXC Card",1,null,"385-BBLF 385-BBKL 385-BBKL","TS2L2-IDSDM64",null,{"$f":"G63","v":999}]
[]
[]
[]
[]
["7.2 SATA"]
["1TB 7.2K RPM SATA 6Gbps 512n 2.5in Hot-plug Hard Drive",null,"[400-ASHF]","400-ATJG","TS2L2-7K1000",null,null,null,null,null,null,null,null,null," [Option Id: 5103889] [SKU: 400-ASHF]"]
["2TB 7.2K RPM SATA 6Gbps 512n 2.5in Hot-plug Hard Drive",null,"[400-ASHT]","400-ATJZ","TS2L2-7K2000",null,null,null,null,null,null,null,null,null," [Option Id: 5103953] [SKU: 400-ASHT]"]
["7.2K NLSAS"]
["1TB 7.2K RPM NLSAS 12Gbps 512n 2.5in Hot-plug Hard Drive",null,"[400-ASHE]","400-ATJD","TS2L2-NL1000",null,null,null,null,null,null,null,null,null," [Option Id: 5103886] [SKU: 400-ASHE]"]
["2TB 7.2K RPM NLSAS 12Gbps 512n 2.5in Hot-plug Hard Drive",null,"[400-ASHP]","400-ATJU","TS2L2-NL2000",null,null,null,null,null,null,null,null,null," [Option Id: 5103937] [SKU: 400-ASHP]"]
["10K"]
["600GB 10K RPM SAS 12Gbps 512n 2.5in Hot-plug Hard Drive",null,"[400-ASGS]","400-AUNQ","TS2L2-10K600",68,null,null,null,null,null,null,null,null," [Option Id: 5103901] [SKU: 400-ASHI]"]
["1.2TB 10K RPM SAS 12Gbps 512n 2.5in Hot-plug Hard Drive",null,"[400-ASHI]","400-ATJL","TS2L2-10K1200",136,null,null,null,null,null,null,null,null," [Option Id: 5103918] [SKU: 400-ASHK]"]
["1.8TB 10K RPM SAS 12Gbps 512e 2.5in Hot-plug Hard Drive",null,"[400-ARXC]","400-ATJR","TS2L2-10K1800",169,null,null,null,null,null,null,null,null," [Option Id: 5103923] [SKU: 400-ARXC]"]
["2.4TB 10K RPM SAS 12Gbps 512e 2.5in Hot-plug Hard Drive",null,"[400-AVEZ]","401-ABHQ","TS2L2-10K2400",null,389,null,null,null,null,null,null,null," [Option Id: 24TBMD] [SKU: 400-AVEZ]"]
["1.2TB 10K RPM Self-Encrypting SAS 12Gbps 512n 2.5in Hot-plug Hard Drive, FIPS140",null,"[400-ASHK]","400-ATJO",null,null,null,null,null,null,null,null,null,null," [Option Id: 24TASHJ] [SKU: 400-AVHH]"]
["2.4TB 10K RPM Self-Encrypting SAS 12Gbps 512e 2.5in Hot-plug Hard Drive, FIPS140",null,"[400-AVHH]",null,null,null,null,null,null,null,null,null,null,null," [Option Id: 5103818] [SKU: 400-ASGS]"]
["15K"]
["300GB 15K RPM SAS 12Gbps 512n 2.5in Hot-plug Hard Drive",null,"[400-ASGQ]","400-ATII","TS2L2-15K300",null,null,null,null,null,null,null,null,null," [Option Id: 5103806] [SKU: 400-ASGQ]"]
["600GB 15K RPM SAS 12Gbps 512n 2.5in Hot-plug Hard Drive",null,"[400-ARWN]","400-ATIN","TS2L2-15K600",null,null,null,null,null,null,null,null,null," [Option Id: 5102974] [SKU: 400-ARWN]"]
["900GB 15K RPM SAS 12Gbps 512n 2.5in Hot-plug Hard Drive",null,"[400-ASGV]","400-ATIQ","TS2L2-15K900",null,null,null,null,null,null,null,null,null," [Option Id: 5103865] [SKU: 400-ASGV]"]
["SATA RI"]
["480GB SSD SATA Read Intensive 6Gbps 512 2.5in Hot-plug AG Drive, 1 DWPD, 876 TBW",null,"[400-AXTV]",null,"TS2L2-STRI480",null,null,null,null,null,null,null,null,null," [Option Id: G3ZJM0K] [SKU: 400-AXTV]"]
["480GB SSD SATA Read Intensive 6Gbps 512e 2.5in Hot Plug S4510 Drive, 1 DWPD,876 TBW",null,"[400-BDOD]",null,null,null,null,null,null,null,null,null,null,null," [Option Id: GCMLA2O] [SKU: 400-BDOD]"]
["480GB SSD SATA Read Intensive 6Gbps 512e 2.5in Hot-plug Drive, S4500, 1 DWPD,876 TBW",null,"[400-ASXH]",null,null,null,null,null,null,null,null,null,null,null,"[Option Id: 5106652] [SKU: 400-ASXH]"]
["960GB SSD SATA Read Intensive 6Gbps 512 2.5in Hot-plug AG Drive, 1 DWPD, 1752 TBW",null,"[400-AXSW]",null,"TS2L2-STRI960",null,null,null,null,null,null,null,null,null," [Option Id: GA16FX3] [SKU: 400-AXSW]"]
["960GB SSD SATA Read Intensive 6Gbps 512e 2.5in Hot Plug S4510 Drive, 1 DWPD,1752 TBW",null,"[400-BDNJ]",null,null,null,null,null,null,null,null,null,null,null," [Option Id: GK6T7WB] [SKU: 400-BDNJ]"]
["960GB SSD SATA Read Intensive 6Gbps 512n 2.5in Hot-plug Drive, PM863a",null,"[400-ASFM]",null,null,null,null,null,null,null,null,null,null,null," [Option Id: 5103700] [SKU: 400-ASFM]"]
["1.6TB SSD Self-Encrypting SATA Mix Use 6Gbps 512n 2.5in Hot-plug Drive, Hawk-M4E",null,"[400-ASYY]",null,null,null,null,null,null,null,null,null,null,null," [Option Id: 5106694] [SKU: 400-ASYY]"]
["1.6TB SSD Self-Encrypting SATA Mix Use 6Gbps 512n 2.5in Hot-plug Drive, Hawk-M4E",null,"[400-ASYY]",null,null,null,null,null,null,null,null,null,null,null," [Option Id: GLDJ7FE] [SKU: 400-ASYY]"]
["1.92TB SSD SATA Read Intensive 6Gbps 512 2.5in Hot-plug AG Drive, 1 DWPD, 3504 TBW",null,"[400-AXSD]",null,null,null,null,null,null,null,null,null,null,null," [Option Id: GGMU1EX] [SKU: 400-AXSD]"]
["1.92TB SSD SATA Read Intensive 6Gbps 512e 2.5in Hot-plug S4510 Drive, 1 DWPD,3504 TBW",null,"[400-BDOE]",null,"TS2L2-STRI1920",null,null,null,null,null,null,null,null,null," [Option Id: G3UTQH6] [SKU: 400-BDOE]"]
["1.92TB SSD SATA Read Intensive 6Gpbs 512e 2.5in Hot-plug Drive, S4500,1 DWPD,3504 TBW",null,"[400-ASZJ]",null,null,null,null,null,null,null,null,null,null,null," [Option Id: 5106704] [SKU: 400-ASZJ]"]
["3.84TB SSD SATA Read Intensive 6Gbps 512 2.5in Hot-plug AG Drive, 1 DWPD, 7008 TBW",null,"[400-AXSK]",null,null,null,null,null,null,null,null,null,null,null," [Option Id: GS7WBQI] [SKU: 400-AXSK]"]
["3.84TB SSD SATA Read Intensive 6Gbps 512e 2.5in Hot-plug Drive, S4500,1 DWPD,7008 TBW",null,"[400-ASZS]",null,"TS2L2-STSRI3840",null,null,null,null,null,null,null,null,null," [Option Id: 5106713] [SKU: 400-ASZS]"]
["SATA MU"]
["480GB SSD SATA Mix Use 6Gbps 512 2.5in Hot-plug AG Drive, 3 DWPD, 2628 TBW",null,"[400-AZUT]",null,"TS2L2-STMU480",null,null,null,null,null,null,null,null,null," [Option Id: GB6HAM5] [SKU: 400-AZUT]"]
["800GB SSD SATA Mix Use 6Gbps 512n 2.5in Hot-plug Drive, Hawk-M4E,3 DWPD,4380 TBW",null,"[400-ASYC]",null,"TS2L2-STMU800",null,null,null,null,null,null,null,null,null," [Option Id: 5106672] [SKU: 400-ASYC]"]
["960GB SSD SATA Mix Use 6Gbps 512 2.5in Hot-plug AG Drive, 3 DWPD, 5256 TBW",null,"[400-AZVM]",null,"TS2L2-STMU960",null,null,null,null,null,null,null,null,null," [Option Id: GKTZGJ7] [SKU: 400-AZVM]"]
["1.6TB SSD SATA Mix Use 6Gbps 512n 2.5in Hot-plug Drive, Hawk-M4E,3 DWPD,8760 TBW",null,"[400-AVMM]",null,"TS2L2-STMU1600",null,null,null,null,null,null,null,null,null," [Option Id: 1FBT6G] [SKU: 400-AVMM]"]
["1.92TB SSD SATA Mix Use 6Gbps 512 2.5in Hot-plug AG Drive, 3 DWPD, 10512 TBW",null,"[400-AZTN]",null,null,null,null,null,null,null,null,null,null,null," [Option Id: GW19KER] [SKU: 400-AZTN]"]
["1.92TB SSD SATA Mix Use 6Gbps 512e 2.5in Hot-plug Drive, S4600,3 DWPD,10512 TBW",null,"[400-ASZB]",null,"TS2L2-STMU1920",null,null,null,null,null,null,null,null,null," [Option Id: 5106696] [SKU: 400-ASZB]"]
["SAS RI"]
["960GB SSD SAS Read Intensive 12Gbps 512 2.5in Hot-plug AG Drive, 1 DWPD, 1752 TBW",null,"[400-AXQU]",null,null,null,null,null,null,null,null,null,null,null," [Option Id: GD4L6BE] [SKU: 400-AXQU]"]
["960GB SSD SAS Read Intensive 12Gbps 512e 2.5in Hot-plug Drive, PM5-R, 1 DWPD, 1752 TBW",null,"[400-BBPL]","400-ATLL","TS2L2-SSDR960",664,null,null,null,null,null,null,null,null," [Option Id: G4YAXQB] [SKU: 400-BBPL]"]
["960GB SSD SAS Read Intensive 12Gbps 512n 2.5in Hot-plug Drive, PX05SR",null,"[400-ASEZ]",null,null,null,null,null,null,null,null,null,null,null," [Option Id: 5103679] [SKU: 400-ASEZ]"]
["1.92TB SSD SAS Read Intensive 12Gbps 512 2.5in Hot-plug AG Drive, 1 DWPD, 3504 TBW",null,"[400-AXOP]",null,null,null,null,null,null,null,null,null,null,null," [Option Id: GJM2W96] [SKU: 400-AXOP]"]
["1.92TB SSD SAS Read Intensive 12Gbps 512e 2.5in Hot-plug Drive, PM1633a",null,"[400-ASFX]","400-ATND","TS2L2-SSDR1920",1313,null,null,null,null,null,null,null,null," [Option Id: 5103731] [SKU: 400-ASFX]"]
["1.92TB SSD SAS Read Intensive 12Gbps 512e 2.5in PM5-R Hot-plug Drive, 1 DWPD, 3504 TBW",null,"[400-BBQQ]",null,null,null,null,null,null,null,null,null,null,null," [Option Id: GF74XBJ] [SKU: 400-BBQQ]"]
["1.92TB SSD SAS Read Intensive MLC 12Gbps 512n 2.5in Hot-plug Drive, PX05SR",null,"[400-ARWC]",null,null,null,null,null,null,null,null,null,null,null," [Option Id: 5102925] [SKU: 400-ARWC]"]
["3.84TB SSD SAS Read Intensive 12Gb 512e 2.5in Hot-plug Drive, PM1633a,1 DWPD,7008 TBW",null,"[400-ASGI]",null,"TS2L2-SSDRI3840",null,null,null,null,null,null,null,null,null," [Option Id: 5103757] [SKU: 400-ASGI]"]
["3.84TB SSD SAS Read Intensive 12Gbps 512 2.5in Hot-plug AG Drive, 1 DWPD, 7008 TBW",null,"[400-AXPE]",null,null,null,null,null,null,null,null,null,null,null," [Option Id: GUSCJI4] [SKU: 400-AXPE]"]
["3.84TB SSD SAS Read Intensive 12Gbps 512e 2.5in PM5-R Hot-plug Drive, 1 DWPD, 7008 TBW",null,"[400-BBQX]",null,null,null,null,null,null,null,null,null,null,null," [Option Id: GQNDTX4] [SKU: 400-BBQX]"]
["3.84TB SSD SAS Read Intensive 12Gbps 512n 2.5in Hot-plug Drive, PX05SR",null,"[400-ASGG]",null,null,null,null,null,null,null,null,null,null,null," [Option Id: 5103752] [SKU: 400-ASGG]"]
["7.68TB SSD SAS Read Intensive 12Gbps 512e 2.5in Hot-plug Drive, PM1643, 1 DWPD, 14,016 TBW",null,"[400-BBSM]",null,"TS2L2-SSDRI7680",null,null,null,null,null,null,null,null,null," [Option Id: G7YW03Q] [SKU: 400-BBSM]"]
["7.68TB SSD SAS Read Intensive 12Gbps 512e 2.5in PM5-R Hot-plug Drive, 1 DWPD, 14,016 TBW",null,"[400-BDCI]",null,null,null,null,null,null,null,null,null,null,null," [Option Id: GGN2SI6] [SKU: 400-BDCI]"]
["SAS MU"]
["480GB SSD SAS Mix Use 12Gbps 512n 2.5in Hot-plug Drive, PX05SV",null,"[400-ASEO]",null,"TS2L2-SSDMU480",null,null,null,null,null,null,null,null,null," [Option Id: 5103647] [SKU: 400-ASEO]"]
["480GB SSD SAS Mixed use 12Gbps 512e 2.5in Hot-Plug PM5-V Drive, 3 DWPD, 2628 TBW",null,"[400-BCQG]",null,null,null,null,null,null,null,null,null,null,null," [Option Id: GJP8HF2] [SKU: 400-BCQG]"]
["800GB SSD SAS Mix Use 12Gbps 512e 2.5in Hot-plug AG Drive, 3 DWPD, 4380 TBW",null,"[400-AZQO]",null,"TS2L2-SSDMU800",null,null,null,null,null,null,null,null,null," [Option Id: GCAUG9H] [SKU: 400-AZQO]"]
["960GB SSD SAS Mix Use 12Gbps 512n 2.5in Hot-plug Drive, PX05SV",null,"[400-ASFI]",null,"TS2L2-SSDMU960",null,null,null,null,null,null,null,null,null," [Option Id: 5103690] [SKU: 400-ASFI]"]
["960GB SSD SAS Mixed use 12Gbps 512e 2.5in Hot-Plug PM5-V Drive",null,"[400-BCQN]",null,null,null,null,null,null,null,null,null,null,null," [Option Id: G46MPBW] [SKU: 400-BCQN]"]
["1.6TB SSD SAS Mix Use 12Gbps 512e 2.5in Hot-plug AG Drive, 3 DWPD, 8760 TBW",null,"[400-AZOY]",null,null,null,null,null,null,null,null,null,null,null," [Option Id: GN5GTO1] [SKU: 400-AZOY]"]
["1.6TB SSD SAS Mix Use 12Gbps 512e 2.5in Hot-plug Drive, PM1635a",null,"[400-ASFQ]",null,"TS2L2-SSDMU1600",null,null,null,null,null,null,null,null,null," [Option Id: 5103710] [SKU: 400-ASFQ]"]
["1.92TB SSD SAS Mix Use 12Gbps 512n 2.5in Hot-plug Drive, PX05SV",null,"[400-ASFZ]",null,"TS2L2-SSDMU1920",null,null,null,null,null,null,null,null,null," [Option Id: 5103737] [SKU: 400-ASFZ]"]
["1.92TB SSD SAS Mix Use SED 12Gbps 512n 2.5in Hot-plug Drive, FIPS140, PX05SV,3 DWPD,10512 TBW",null,"[400-ATRX]",null,null,null,null,null,null,null,null,null,null,null," [Option Id: 510710] [SKU: 400-ATRX]"]
["1.92TB SSD SAS Mixed use 12Gbps 512e 2.5in Hot-Plug PM5-V Drive, 3 DWPD, 10512 TBW",null,"[400-BCOM]",null,null,null,null,null,null,null,null,null,null,null," [Option Id: G5BLI1F] [SKU: 400-BCOM]"]
["3.84TB SSD SAS Mix Use 12Gbps 512n 2.5in Hot-plug Drive, PX05SV,3 DWPD,21024 TBW",null,"[400-ASVR]",null,"TS2L2-SSDMU3840",null,null,null,null,null,null,null,null,null," [Option Id: 5106756] [SKU: 400-ASVR]"]
["3.8TB SSD SAS Mixed use 12Gbps 512e 2.5in Hot-Plug PM5-V Drive, 3 DWPD, 7008 TBW",null,"[400-BCOV]",null,null,null,null,null,null,null,null,null,null,null," [Option Id: GXNZ83B] [SKU: 400-BCOV]"]
["SAS WI"]
["400GB SSD SAS Write Intensive 12Gbps 512n 2.5in Hot-plug Drive, PX05SM",null,"[400-ASEM]",null,"TS2L2-SSDWI400",null,null,null,null,null,null,null,null,null," [Option Id: 5103644] [SKU: 400-ASEM]"]
["800GB SSD SAS Write Intensive 12Gbps 512n 2.5in Hot-plug Drive, PX05SM",null,"[400-ASEV]",null,"TS2L2-SSDWI800",null,null,null,null,null,null,null,null,null," [Option Id: 5103669] [SKU: 400-ASEV]"]
["1.6TB SSD SAS Write Intensive 12Gbps 512n 2.5in Hot-plug Drive, PX05SM",null,"[400-ASFS]",null,"TS2L2-SSDWI1600",null,null,null,null,null,null,null,null,null," [Option Id: 5103717] [SKU: 400-ASFS]"]
[]
[]
[]
[]
["VMWARE"]
["None",1,{"$f":"\"\"","v":""},{"$f":"\"\"","v":""},{"$f":"\"\"","v":""},null,0]
["VMware vSphere Essentials Plus Kit OEM 6 Processor 3yr A20",1,{"$f":"\"\"","v":""},{"$f":"\"\"","v":""},"TS2L2-VMWKIT6P3Y",null,5230]
["None",1,{"$f":"\"\"","v":""},{"$f":"\"\"","v":""},{"$f":"\"\"","v":""},null,0]
["VMw vCenter Server Standard for vSphere OEM 3yr Software A20",1,{"$f":"\"\"","v":""},{"$f":"\"\"","v":""},"TS2L2-VMWVCSTD3Y",null,8909]
["VMw vCenter Server Standard for vSphere OEM 5yr Software A20",1,{"$f":"\"\"","v":""},{"$f":"\"\"","v":""},"TS2L2-VMWVCSTD5Y",null,10549]
["None",0,{"$f":"\"\"","v":""},{"$f":"\"\"","v":""},{"$f":"\"\"","v":""},null,0]
["VMware vSphere Standard OEM 1 Processor 3yr Software A20",1,{"$f":"\"\"","v":""},{"$f":"\"\"","v":""},"TS2L2-VMWSTD1P3Y",null,1743]
["VMware vSphere Enterprise Plus OEM 1 Processor 3yr Software A20",1,{"$f":"\"\"","v":""},{"$f":"\"\"","v":""},"TS2L2-VMWEP1P3Y",null,4905]
["VMware vSphere Enterprise Plus OEM 1 Processor 5yr Software A20",1,{"$f":"\"\"","v":""},{"$f":"\"\"","v":""},"TS2L2-VMWEP1P5Y",null,6367]
["None",0,{"$f":"\"\"","v":""},{"$f":"\"\"","v":""},{"$f":"\"\"","v":""},null,0]
["VMware vSAN Standard OEM  1 Processor 3yr Software A20",1,{"$f":"\"\"","v":""},{"$f":"\"\"","v":""},"TS2L2-VSANSTD3Y",null,3177]
["VMware vSAN Standard OEM  1 Processor 5yr Software A20",1,{"$f":"\"\"","v":""},{"$f":"\"\"","v":""},"TS2L2-VSANSTD5Y",null,4107]
["VMware vSAN Advanced OEM  1 Processor 3yr Software A20",1,{"$f":"\"\"","v":""},{"$f":"\"\"","v":""},"TS2L2-VSANADV3Y",null,5010]
["VMware vSAN Advanced OEM  1 Processor 5yr Software A20",1,{"$f":"\"\"","v":""},{"$f":"\"\"","v":""},"TS2L2-VSANADV5Y",null,6475]
[]
[]
[]
[]
["TS2L2PCI1","1CPU"]
["PCIe Slot-1"]
["None",{"$f":"\"\"","v":""},{"$f":"\"\"","v":""},{"$f":"\"\"","v":""},{"$f":"\"\"","v":""},0]
["[TS2L2-LAN1] Broadcom 5720 DP 1Gb Network Interface Card, Full Height",1,"[540-BBCX]","540-BBGY","TS2L2-LAN1",22]
["[TS2L2-LAN10] Broadcom 57412 Dual Port 10Gb, SFP+, PCIe Adapter, Full Height",1,"[540-BBUH]","540-BBUN","TS2L2-LAN10",114,null,"Kit - Dell EMC PowerEdge SFP+ SR Optic, 10GbE, 850nm",null,"407-BCBN",2]
["[TS2L2-CNA10] QLogic 41112 Dual Port 10Gb SFP+ Adapter, Full Height",1,"[540-BBYK]","540-BBYH","TS2L2-CNA10",110,null,"Kit - Dell EMC PowerEdge SFP+ SR Optic, 10GbE, 850nm",null,"407-BCBN",2]
["[TS2L2-FC8] QLogic 2562, Dual Port 8Gb Optical Fibre Channel HBA, Full Height",1,"[540-BBEC]","406-BBEK","TS2L2-FC8",245]
["------------------------ 20% -------------------------"]
["[TS2L2-HBASAS12] Dell 12Gbps SAS Host Bus Adapter External Controller - Full Height A20",1,null,"405-AADZ","TS2L2-HBASAS12",null,158]
["[TS2L2-Q41162T] QLogic FastLinQ 41162 Dual Port 10Gb Base-T Adapter, Full Height A20",1,null,"540-BBYG","TS2L2-Q41162T",null,394]
["[TS2L2-B57416T] Broadcom 57416 Dual Port 10Gb, Base-T, PCIe Adapter, Full Height A20",1,"[540-BBUI]","540-BBUO","TS2L2-B57416T",null,389]
["[TS2L2-IXXV710M3] Intel XXV710 Dual Port 25GbE SFP28 PCIe Adapter, Full Height, with 2x SFP28 to SFP28, 25GbE, Passive Copper Twinax DAC, 3 Meter A20",1,null,"540-BCDG 470-ACEU 470-ACEU","TS2L2-IXXV710M3",null,761]
["[TS2L2-IXXV710TRV] Intel XXV710 Dual Port 25GbE SFP28 PCIe Adapter, Full Height, with 2 x Transceiver, SFP28, 25GbE, SR, MMF Duplex, LC A20",1,null,"540-BCDG 407-BBWK 407-BBWK","TS2L2-IXXV710TRV",null,1380]
["[TS2L2-MCX416AM3] Mellanox ConnectX-4 Dual Port 40/100GbE, QSFP28, PCIe Adapter, Full Height, with 2 x 100GbE QSFP28 to QSFP28, Passive Copper DAC,3 Meter A20",1,null,"540-BBUU 470-ABQE 470-ABQE","TS2L2-MCX416AM3",null,1331]
["[TS2L2-MCX516AM3] Mellanox ConnectX-5 EX Dual Port 100GbE QSFP28 PCIe Adapter, Full Height, with 2 x 100GbE QSFP28 to QSFP28, Passive Copper DAC,3 Meter A20",1,null,"540-BCIV 470-ABQE 470-ABQE","TS2L2-MCX516AM3",null,1577]
["[TS2L2-MCX4121AM3] Mellanox ConnectX-4 Lx Dual Port 25GbE SFP28 Network Adapter, Full Height with 2x SFP28 to SFP28, 25GbE, Passive Copper Twinax DAC, 3 Meter A20",1,null,"406-BBLF 470-ACEU 470-ACEU","TS2L2-MCX4121AM3",null,748]
["[TS2L2-MCX4SP] Mellanox ConnectX-4 Single Port, EDR, VPI QSFP28 Full Height Adapter with QSFP passive copper cable, LSZH, 2m",1,null,"540-BBQJ - 470-ACBR","TS2L2-MCX4SP",null,718]
["[TS2L2-Q2692] QLogic 2692 Dual Port 16Gb Fibre Channel HBA, Full Height A20",1,null,"403-BBMU","TS2L2-Q2692",null,780]
["[TS2L2-Q41164T] QLogic FastLinQ 41164 Quad Port 10G Base-T Adapter, Full Height A20",1,null,null,"TS2L2-Q41164T",null,687]
["[TS2L2-Q41262] QLogic FastLinQ 41262 Dual Port 25 Gb SFP28 Adapter, Full Height A20",1,null,null,"TS2L2-Q41262",null,411]
["[TS2L2-Q41262OT] QLogic FastLinQ 41262 Dual Port 25 Gb SFP28 Adapter, Full Height with 2 x Transceiver, SFP28, 25GbE, SR, MMF Duplex, LC A20",1,null,null,"TS2L2-Q41262OT",null,1075]
[]
[]
[]
["TS2L2PCI2","1CPU"]
["PCIe Slot-2"]
["None",{"$f":"\"\"","v":""},{"$f":"\"\"","v":""},{"$f":"\"\"","v":""},{"$f":"\"\"","v":""},0]
["[TS2L2-LAN1] Broadcom 5720 DP 1Gb Network Interface Card, Full Height",1,"[540-BBCX]","540-BBGY","TS2L2-LAN1",22]
["[TS2L2-LAN10] Broadcom 57412 Dual Port 10Gb, SFP+, PCIe Adapter, Full Height",1,"[540-BBUH]","540-BBUN","TS2L2-LAN10",114,null,"Kit - Dell EMC PowerEdge SFP+ SR Optic, 10GbE, 850nm",null,"407-BCBN",2]
["[TS2L2-CNA10] QLogic 41112 Dual Port 10Gb SFP+ Adapter, Full Height",1,"[540-BBYK]","540-BBYH","TS2L2-CNA10",110,null,"Kit - Dell EMC PowerEdge SFP+ SR Optic, 10GbE, 850nm",null,"407-BCBN",2]
["[TS2L2-FC8] QLogic 2562, Dual Port 8Gb Optical Fibre Channel HBA, Full Height",1,"[540-BBEC]","406-BBEK","TS2L2-FC8",245]
["------------------------ 20% -------------------------"]
["[TS2L2-HBASAS12] Dell 12Gbps SAS Host Bus Adapter External Controller - Full Height A20",1,null,"405-AADZ","TS2L2-HBASAS12",null,158]
["[TS2L2-Q41162T] QLogic FastLinQ 41162 Dual Port 10Gb Base-T Adapter, Full Height A20",1,null,"540-BBYG","TS2L2-Q41162T",null,394]
["[TS2L2-B57416T] Broadcom 57416 Dual Port 10Gb, Base-T, PCIe Adapter, Full Height A20",1,"[540-BBUI]","540-BBUO","TS2L2-B57416T",null,389]
["[TS2L2-IXXV710M3] Intel XXV710 Dual Port 25GbE SFP28 PCIe Adapter, Full Height, with 2x SFP28 to SFP28, 25GbE, Passive Copper Twinax DAC, 3 Meter A20",1,null,"540-BCDG 470-ACEU 470-ACEU","TS2L2-IXXV710M3",null,761]
["[TS2L2-IXXV710TRV] Intel XXV710 Dual Port 25GbE SFP28 PCIe Adapter, Full Height, with 2 x Transceiver, SFP28, 25GbE, SR, MMF Duplex, LC A20",1,null,"540-BCDG 407-BBWK 407-BBWK","TS2L2-IXXV710TRV",null,1380]
["[TS2L2-MCX416AM3] Mellanox ConnectX-4 Dual Port 40/100GbE, QSFP28, PCIe Adapter, Full Height, with 2 x 100GbE QSFP28 to QSFP28, Passive Copper DAC,3 Meter A20",1,null,"540-BBUU 470-ABQE 470-ABQE","TS2L2-MCX416AM3",null,1331]
["[TS2L2-MCX516AM3] Mellanox ConnectX-5 EX Dual Port 100GbE QSFP28 PCIe Adapter, Full Height, with 2 x 100GbE QSFP28 to QSFP28, Passive Copper DAC,3 Meter A20",1,null,"540-BCIV 470-ABQE 470-ABQE","TS2L2-MCX516AM3",null,1577]
["[TS2L2-MCX4121AM3] Mellanox ConnectX-4 Lx Dual Port 25GbE SFP28 Network Adapter, Full Height with 2x SFP28 to SFP28, 25GbE, Passive Copper Twinax DAC, 3 Meter A20",1,null,"406-BBLF 470-ACEU 470-ACEU","TS2L2-MCX4121AM3",null,748]
["[TS2L2-MCX4SP] Mellanox ConnectX-4 Single Port, EDR, VPI QSFP28 Full Height Adapter with QSFP passive copper cable, LSZH, 2m",1,null,"540-BBQJ - 470-ACBR","TS2L2-MCX4SP",null,718]
["[TS2L2-Q2692] QLogic 2692 Dual Port 16Gb Fibre Channel HBA, Full Height A20",1,null,"403-BBMU","TS2L2-Q2692",null,780]
["[TS2L2-Q41164T] QLogic FastLinQ 41164 Quad Port 10G Base-T Adapter, Full Height A20",1,null,null,"TS2L2-Q41164T",null,687]
["[TS2L2-Q41262] QLogic FastLinQ 41262 Dual Port 25 Gb SFP28 Adapter, Full Height A20",1,null,null,"TS2L2-Q41262",null,411]
["[TS2L2-Q41262OT] QLogic FastLinQ 41262 Dual Port 25 Gb SFP28 Adapter, Full Height with 2 x Transceiver, SFP28, 25GbE, SR, MMF Duplex, LC A20",1,null,null,"TS2L2-Q41262OT",null,1075]
["[TS2L2-MCX4121AM3] Mellanox ConnectX-4 Lx Dual Port 25GbE SFP28 Network Adapter, Low Profile with 2 x 100GbE QSFP28 to QSFP28, Passive Copper DAC,3 Meter A20",1,null,"406-BBLC 470-ABQE 470-ABQE","TS2L2-MCX4121AM3",null,748]
[]
[]
["TS2L2PCI3","1CPU"]
["PCIe Slot-3"]
["PERC H730P RAID Controller, 2Gb NV Cache, Adapter, Full Height",1,"[405-AAMR]","405-AAMY",{"$f":"\"\"","v":""},0]
["------------------------ 20% -------------------------"]
["[TS2L2-HBA330] PERC HBA330 RAID Controller, 12Gb Adapter, Full Height A20",1,"[405-AAOO]","405-AAMV","TS2L2-HBA330",null,196]
["[TS2L2-H740P] PERC H740P RAID Controller, 8Gb NV Cache, Adapter, Full Height A20",1,"[405-AANR]","405-AAMX","TS2L2-H740P",null,777]
[]
["TS2L2ASP"]
["Aggiungere Secondo Processore & Riser"]
[]
["2CPU"]
["TS2L2PCI4","2CPU"]
["PCIe Slot-4"]
["None",{"$f":"\"\"","v":""},{"$f":"\"\"","v":""},{"$f":"\"\"","v":""},{"$f":"\"\"","v":""},0]
["[TS2L2-LAN1] Broadcom 5720 DP 1Gb Network Interface Card, Full Height",1,"[540-BBCX]","540-BBGY","TS2L2-LAN1",22]
["[TS2L2-LAN10] Broadcom 57412 Dual Port 10Gb, SFP+, PCIe Adapter, Full Height",1,"[540-BBUH]","540-BBUN","TS2L2-LAN10",114,null,"Kit - Dell EMC PowerEdge SFP+ SR Optic, 10GbE, 850nm",null,"407-BCBN",2]
["[TS2L2-CNA10] QLogic 41112 Dual Port 10Gb SFP+ Adapter, Full Height",1,"[540-BBYK]","540-BBYH","TS2L2-CNA10",110,null,"Kit - Dell EMC PowerEdge SFP+ SR Optic, 10GbE, 850nm",null,"407-BCBN",2]
["[TS2L2-FC8] QLogic 2562, Dual Port 8Gb Optical Fibre Channel HBA, Full Height",1,"[540-BBEC]","406-BBEK","TS2L2-FC8",245]
["------------------------ 20% -------------------------"]
["[TS2L2-HBASAS12] Dell 12Gbps SAS Host Bus Adapter External Controller - Full Height A20",1,null,"405-AADZ","TS2L2-HBASAS12",null,158]
["[TS2L2-Q41162T] QLogic FastLinQ 41162 Dual Port 10Gb Base-T Adapter, Full Height A20",1,null,"540-BBYG","TS2L2-Q41162T",null,394]
["[TS2L2-B57416T] Broadcom 57416 Dual Port 10Gb, Base-T, PCIe Adapter, Full Height A20",1,"[540-BBUI]","540-BBUO","TS2L2-B57416T",null,389]
["[TS2L2-IXXV710M3] Intel XXV710 Dual Port 25GbE SFP28 PCIe Adapter, Full Height, with 2x SFP28 to SFP28, 25GbE, Passive Copper Twinax DAC, 3 Meter A20",1,null,"540-BCDG 470-ACEU 470-ACEU","TS2L2-IXXV710M3",null,761]
["[TS2L2-IXXV710TRV] Intel XXV710 Dual Port 25GbE SFP28 PCIe Adapter, Full Height, with 2 x Transceiver, SFP28, 25GbE, SR, MMF Duplex, LC A20",1,null,"540-BCDG 407-BBWK 407-BBWK","TS2L2-IXXV710TRV",null,1380]
["[TS2L2-MCX416AM3] Mellanox ConnectX-4 Dual Port 40/100GbE, QSFP28, PCIe Adapter, Full Height, with 2 x 100GbE QSFP28 to QSFP28, Passive Copper DAC,3 Meter A20",1,null,"540-BBUU 470-ABQE 470-ABQE","TS2L2-MCX416AM3",null,1331]
["[TS2L2-MCX516AM3] Mellanox ConnectX-5 EX Dual Port 100GbE QSFP28 PCIe Adapter, Full Height, with 2 x 100GbE QSFP28 to QSFP28, Passive Copper DAC,3 Meter A20",1,null,"540-BCIV 470-ABQE 470-ABQE","TS2L2-MCX516AM3",null,1577]
["[TS2L2-MCX4121AM3] Mellanox ConnectX-4 Lx Dual Port 25GbE SFP28 Network Adapter, Full Height with 2x SFP28 to SFP28, 25GbE, Passive Copper Twinax DAC, 3 Meter A20",1,null,"406-BBLF 470-ACEU 470-ACEU","TS2L2-MCX4121AM3",null,748]
["[TS2L2-MCX4SP] Mellanox ConnectX-4 Single Port, EDR, VPI QSFP28 Full Height Adapter with QSFP passive copper cable, LSZH, 2m",1,null,"540-BBQJ - 470-ACBR","TS2L2-MCX4SP",null,718]
["[TS2L2-Q2692] QLogic 2692 Dual Port 16Gb Fibre Channel HBA, Full Height A20",1,null,"403-BBMU","TS2L2-Q2692",null,780]
["[TS2L2-Q41164T] QLogic FastLinQ 41164 Quad Port 10G Base-T Adapter, Full Height A20",1,null,null,"TS2L2-Q41164T",null,687]
["[TS2L2-Q41262] QLogic FastLinQ 41262 Dual Port 25 Gb SFP28 Adapter, Full Height A20",1,null,null,"TS2L2-Q41262",null,411]
["[TS2L2-Q41262OT] QLogic FastLinQ 41262 Dual Port 25 Gb SFP28 Adapter, Full Height with 2 x Transceiver, SFP28, 25GbE, SR, MMF Duplex, LC A20",1,null,null,"TS2L2-Q41262OT",null,1075]
["[TS2L2-MCX4121AM3] Mellanox ConnectX-4 Lx Dual Port 25GbE SFP28 Network Adapter, Low Profile with 2 x 100GbE QSFP28 to QSFP28, Passive Copper DAC,3 Meter A20",1,null,"406-BBLC 470-ABQE 470-ABQE","TS2L2-MCX4121AM3",null,748]
[]
[]
["TS2L2PCI5","2CPU"]
["PCIe Slot-5"]
["None",{"$f":"\"\"","v":""},{"$f":"\"\"","v":""},{"$f":"\"\"","v":""},{"$f":"\"\"","v":""},0]
["------------------------ 20% -------------------------"]
[]
[]
["TS2L2PCI6","2CPU"]
["PCIe Slot-6"]
["None",{"$f":"\"\"","v":""},{"$f":"\"\"","v":""},{"$f":"\"\"","v":""},{"$f":"\"\"","v":""},0]
["[TS2L2-LAN1-L] Broadcom 5720 DP 1Gb Network Interface Card, Low Profile",1,"[540-BBDE]",null,"TS2L2-LAN1-L",22]
["[TS2L2-LAN10-L] Broadcom 57412 Dual Port 10Gb, SFP+, PCIe Adapter, Low Profile",1,"[540-BBVI]",null,"TS2L2-LAN10-L",114,null,"Kit - Dell EMC PowerEdge SFP+ SR Optic, 10GbE, 850nm",null,"407-BCBN",2]
["[TS2L2-CNA10-L] QLogic FastLinQ 41112 Dual Port 10Gb SFP+ Adapter, Low Profile",1,"[540-BBZI]",null,"TS2L2-CNA10-L",110,null,"Kit - Dell EMC PowerEdge SFP+ SR Optic, 10GbE, 850nm",null,"407-BCBN",2]
["[TS2L2-FC8-L] QLogic 2562, Dual Port 8Gb Optical Fibre Channel HBA, Low Profile",1,"[540-BBEC]",null,"TS2L2-FC8-L",245]
["------------------------ 20% -------------------------"]
["[TS2L2-Q41162T-L] QLogic FastLinQ 41162 Dual Port 10Gb Base-T Adapter, Low Profile A20",1,null,"540-BBZN","TS2L2-Q41162T-L",null,349]
["[TS2L2-Q41164T-L] QLogic FastLinQ 41164 Quad Port 10G Base-T Adapter, Low Profile A20",1,null,"540-BCHF","TS2L2-Q41164T-L",null,687]
["[TS2L2-B57416T-L] Broadcom 57416 Dual Port 10Gb, Base-T, PCIe Adapter, Low Profile A20",1,null,"540-BBVM","TS2L2-B57416T-L",null,389]
["[TS2L2-MCX516AM3-L] Mellanox ConnectX-5 EX Dual Port 100GbE QSFP28 PCIe Adapter, Low Profile, with 2 x 100GbE QSFP28 to QSFP28, Passive Copper DAC,3 Meter A20",1,null,null,"TS2L2-MCX516AM3-L",null,1577]
["[TS2L2-MCX4121A3-L] Mellanox ConnectX-4 Lx Dual Port 25GbE SFP28 Network Adapter, Low Profile with 2x SFP28 to SFP28, 25GbE, Passive Copper Twinax DAC, 3 Meter A20",1,null,"406-BBLC 470-ACEU 470-ACEU","TS2L2-MCX4121A3-L",null,748]
["[TS2L2-MCX4SP-L] Mellanox ConnectX-4 Single Port, EDR, VPI QSFP28 Low Profile Adapter with QSFP passive copper cable, LSZH, 2m",1,null,"540-BBPB - 470-ACBR","TS2L2-MCX4SP-L",null,718]
["[TS2L2-Q2692-L] QLogic 2692 Dual Port 16Gb Fibre Channel HBA, Low Profile A20",1,null,"403-BBMT","TS2L2-Q2692-L",null,780]
["[TS2L2-Q41262-L]QLogic FastLinQ 41262 Dual Port 25 Gb SFP28 Adapter, Low Profile A20",1,null,null,"TS2L2-Q41262-L",null,411]
["[TS2L2-Q41262OT-L] QLogic FastLinQ 41262 Dual Port 25 Gb SFP28 Adapter, Low Profile with 2 x Transceiver, SFP28, 25GbE, SR, MMF Duplex, LC A20",1,null,null,"TS2L2-Q41262OT-L",null,1075]
[]
[]
["TS2L2PCI7","2CPU"]
["PCIe Slot-7"]
["None",{"$f":"\"\"","v":""},{"$f":"\"\"","v":""},{"$f":"\"\"","v":""},{"$f":"\"\"","v":""},0]
["[TS2L2-LAN1] Broadcom 5720 DP 1Gb Network Interface Card, Full Height",1,"[540-BBCX]","540-BBGY","TS2L2-LAN1",22]
["[TS2L2-LAN10] Broadcom 57412 Dual Port 10Gb, SFP+, PCIe Adapter, Full Height",1,"[540-BBUH]","540-BBUN","TS2L2-LAN10",114,null,"Kit - Dell EMC PowerEdge SFP+ SR Optic, 10GbE, 850nm",null,"407-BCBN",2]
["[TS2L2-CNA10] QLogic 41112 Dual Port 10Gb SFP+ Adapter, Full Height",1,"[540-BBYK]","540-BBYH","TS2L2-CNA10",110,null,"Kit - Dell EMC PowerEdge SFP+ SR Optic, 10GbE, 850nm",null,"407-BCBN",2]
["[TS2L2-FC8] QLogic 2562, Dual Port 8Gb Optical Fibre Channel HBA, Full Height",1,"[540-BBEC]","406-BBEK","TS2L2-FC8",245]
["------------------------ 20% -------------------------"]
["[TS2L2-BOSS240] BOSS controller card, full height, 2 x 240G M.2 Drive A20",1,"[403-BBPT]","403-BBVQ 400-ASDQ 400-ASDQ","TS2L2-BOSS240",null,429]
["[TS2L2-HBASAS12] Dell 12Gbps SAS Host Bus Adapter External Controller - Full Height A20",1,null,"405-AADZ","TS2L2-HBASAS12",null,158]
["[TS2L2-Q41162T] QLogic FastLinQ 41162 Dual Port 10Gb Base-T Adapter, Full Height A20",1,null,"540-BBYG","TS2L2-Q41162T",null,394]
["[TS2L2-B57416T] Broadcom 57416 Dual Port 10Gb, Base-T, PCIe Adapter, Full Height A20",1,"[540-BBUI]","540-BBUO","TS2L2-B57416T",null,389]
["[TS2L2-IXXV710M3] Intel XXV710 Dual Port 25GbE SFP28 PCIe Adapter, Full Height, with 2x SFP28 to SFP28, 25GbE, Passive Copper Twinax DAC, 3 Meter A20",1,null,"540-BCDG 470-ACEU 470-ACEU","TS2L2-IXXV710M3",null,761]
["[TS2L2-IXXV710TRV] Intel XXV710 Dual Port 25GbE SFP28 PCIe Adapter, Full Height, with 2 x Transceiver, SFP28, 25GbE, SR, MMF Duplex, LC A20",1,null,"540-BCDG 407-BBWK 407-BBWK","TS2L2-IXXV710TRV",null,1380]
["[TS2L2-MCX416AM3] Mellanox ConnectX-4 Dual Port 40/100GbE, QSFP28, PCIe Adapter, Full Height, with 2 x 100GbE QSFP28 to QSFP28, Passive Copper DAC,3 Meter A20",1,null,"540-BBUU 470-ABQE 470-ABQE","TS2L2-MCX416AM3",null,1331]
["[TS2L2-MCX516AM3] Mellanox ConnectX-5 EX Dual Port 100GbE QSFP28 PCIe Adapter, Full Height, with 2 x 100GbE QSFP28 to QSFP28, Passive Copper DAC,3 Meter A20",1,null,"540-BCIV 470-ABQE 470-ABQE","TS2L2-MCX516AM3",null,1577]
["[TS2L2-MCX4121AM3] Mellanox ConnectX-4 Lx Dual Port 25GbE SFP28 Network Adapter, Full Height with 2x SFP28 to SFP28, 25GbE, Passive Copper Twinax DAC, 3 Meter A20",1,null,"406-BBLF 470-ACEU 470-ACEU","TS2L2-MCX4121AM3",null,748]
["[TS2L2-MCX4SP] Mellanox ConnectX-4 Single Port, EDR, VPI QSFP28 Full Height Adapter with QSFP passive copper cable, LSZH, 2m",1,null,"540-BBQJ - 470-ACBR","TS2L2-MCX4SP",null,718]
["[TS2L2-Q2692] QLogic 2692 Dual Port 16Gb Fibre Channel HBA, Full Height A20",1,null,"403-BBMU","TS2L2-Q2692",null,780]
["[TS2L2-Q41164T] QLogic FastLinQ 41164 Quad Port 10G Base-T Adapter, Full Height A20",1,null,null,"TS2L2-Q41164T",null,687]
["[TS2L2-Q41262] QLogic FastLinQ 41262 Dual Port 25 Gb SFP28 Adapter, Full Height A20",1,null,null,"TS2L2-Q41262",null,411]
["[TS2L2-Q41262OT] QLogic FastLinQ 41262 Dual Port 25 Gb SFP28 Adapter, Full Height with 2 x Transceiver, SFP28, 25GbE, SR, MMF Duplex, LC A20",1,null,null,"TS2L2-Q41262OT",null,1075]
["[TS2L2-MCX4121AM3] Mellanox ConnectX-4 Lx Dual Port 25GbE SFP28 Network Adapter, Low Profile with 2 x 100GbE QSFP28 to QSFP28, Passive Copper DAC,3 Meter A20",1,null,"406-BBLC 470-ABQE 470-ABQE","TS2L2-MCX4121AM3",null,748]
[]
[]
["TS2L2PCI8","2CPU"]
["PCIe Slot-8"]
["None",{"$f":"\"\"","v":""},{"$f":"\"\"","v":""},{"$f":"\"\"","v":""},{"$f":"\"\"","v":""},0]
["[TS2L2-LAN1] Broadcom 5720 DP 1Gb Network Interface Card, Full Height",1,"[540-BBCX]","540-BBGY","TS2L2-LAN1",22]
["[TS2L2-LAN10] Broadcom 57412 Dual Port 10Gb, SFP+, PCIe Adapter, Full Height",1,"[540-BBUH]","540-BBUN","TS2L2-LAN10",114,null,"Kit - Dell EMC PowerEdge SFP+ SR Optic, 10GbE, 850nm",null,"407-BCBN",2]
["[TS2L2-CNA10] QLogic 41112 Dual Port 10Gb SFP+ Adapter, Full Height",1,"[540-BBYK]","540-BBYH","TS2L2-CNA10",110,null,"Kit - Dell EMC PowerEdge SFP+ SR Optic, 10GbE, 850nm",null,"407-BCBN",2]
["[TS2L2-FC8] QLogic 2562, Dual Port 8Gb Optical Fibre Channel HBA, Full Height",1,"[540-BBEC]","406-BBEK","TS2L2-FC8",245]
["------------------------ 20% -------------------------"]
["[TS2L2-HBASAS12] Dell 12Gbps SAS Host Bus Adapter External Controller - Full Height A20",1,null,"405-AADZ","TS2L2-HBASAS12",null,158]
["[TS2L2-Q41162T] QLogic FastLinQ 41162 Dual Port 10Gb Base-T Adapter, Full Height A20",1,null,"540-BBYG","TS2L2-Q41162T",null,394]
["[TS2L2-B57416T] Broadcom 57416 Dual Port 10Gb, Base-T, PCIe Adapter, Full Height A20",1,"[540-BBUI]","540-BBUO","TS2L2-B57416T",null,389]
["[TS2L2-IXXV710M3] Intel XXV710 Dual Port 25GbE SFP28 PCIe Adapter, Full Height, with 2x SFP28 to SFP28, 25GbE, Passive Copper Twinax DAC, 3 Meter A20",1,null,"540-BCDG 470-ACEU 470-ACEU","TS2L2-IXXV710M3",null,761]
["[TS2L2-IXXV710TRV] Intel XXV710 Dual Port 25GbE SFP28 PCIe Adapter, Full Height, with 2 x Transceiver, SFP28, 25GbE, SR, MMF Duplex, LC A20",1,null,"540-BCDG 407-BBWK 407-BBWK","TS2L2-IXXV710TRV",null,1380]
["[TS2L2-MCX416AM3] Mellanox ConnectX-4 Dual Port 40/100GbE, QSFP28, PCIe Adapter, Full Height, with 2 x 100GbE QSFP28 to QSFP28, Passive Copper DAC,3 Meter A20",1,null,"540-BBUU 470-ABQE 470-ABQE","TS2L2-MCX416AM3",null,1331]
["[TS2L2-MCX516AM3] Mellanox ConnectX-5 EX Dual Port 100GbE QSFP28 PCIe Adapter, Full Height, with 2 x 100GbE QSFP28 to QSFP28, Passive Copper DAC,3 Meter A20",1,null,"540-BCIV 470-ABQE 470-ABQE","TS2L2-MCX516AM3",null,1577]
["[TS2L2-MCX4121AM3] Mellanox ConnectX-4 Lx Dual Port 25GbE SFP28 Network Adapter, Full Height with 2x SFP28 to SFP28, 25GbE, Passive Copper Twinax DAC, 3 Meter A20",1,null,"406-BBLF 470-ACEU 470-ACEU","TS2L2-MCX4121AM3",null,748]
["[TS2L2-MCX4SP] Mellanox ConnectX-4 Single Port, EDR, VPI QSFP28 Full Height Adapter with QSFP passive copper cable, LSZH, 2m",1,null,"540-BBQJ - 470-ACBR","TS2L2-MCX4SP",null,718]
["[TS2L2-Q2692] QLogic 2692 Dual Port 16Gb Fibre Channel HBA, Full Height A20",1,null,"403-BBMU","TS2L2-Q2692",null,780]
["[TS2L2-Q41164T] QLogic FastLinQ 41164 Quad Port 10G Base-T Adapter, Full Height A20",1,null,null,"TS2L2-Q41164T",null,687]
["[TS2L2-Q41262] QLogic FastLinQ 41262 Dual Port 25 Gb SFP28 Adapter, Full Height A20",1,null,null,"TS2L2-Q41262",null,411]
["[TS2L2-Q41262OT] QLogic FastLinQ 41262 Dual Port 25 Gb SFP28 Adapter, Full Height with 2 x Transceiver, SFP28, 25GbE, SR, MMF Duplex, LC A20",1,null,null,"TS2L2-Q41262OT",null,1075]
["[TS2L2-MCX4121AM3] Mellanox ConnectX-4 Lx Dual Port 25GbE SFP28 Network Adapter, Low Profile with 2 x 100GbE QSFP28 to QSFP28, Passive Copper DAC,3 Meter A20",1,null,"406-BBLC 470-ABQE 470-ABQE","TS2L2-MCX4121AM3",null,748]
[]
[]
["TS2L2PCIGPU","2CPU"]
["PCIe Slot-GPU"]
["None",{"$f":"\"\"","v":""},{"$f":"\"\"","v":""},{"$f":"\"\"","v":""},{"$f":"\"\"","v":""},0]
["------------------------ 20% GPU -------------------------"]
["[TS2L2-GPUV10032] NVIDIA Tesla V100 32G Passive GPU, A20",1,"[490-BENY]",null,"TS2L2-GPUV10032",null,9999]
["[TS2L2-GPUV10016] NVIDIA Tesla™ V100 16G Passive GPU, A20",1,"[490-BEDZ]",null,"TS2L2-GPUV10016",null,16366.99]
["[TS2L2-GPUP4024] NVIDIA Tesla P40 24GB GPU, Passive, A20",1,"[489-BBCN]",null,"TS2L2-GPUP4024",null,9999]
["[TS2L2-GPUM10] NVIDIA Tesla M10 GPU, Requires GRID 2.0 SW for VDI Function, A20",1,"[489-BBCG]",null,"TS2L2-GPUM10",null,4237.99]
["--------------------------------------------------------------"]
["[TS2L2-LAN1] Broadcom 5720 DP 1Gb Network Interface Card, Full Height",1,"[540-BBCX]","540-BBGY","TS2L2-LAN1",22]
["[TS2L2-LAN10] Broadcom 57412 Dual Port 10Gb, SFP+, PCIe Adapter, Full Height",1,"[540-BBUH]","540-BBUN","TS2L2-LAN10",114,null,"Kit - Dell EMC PowerEdge SFP+ SR Optic, 10GbE, 850nm",null,"407-BCBN",2]
["[TS2L2-CNA10] QLogic 41112 Dual Port 10Gb SFP+ Adapter, Full Height",1,"[540-BBYK]","540-BBYH","TS2L2-CNA10",110,null,"Kit - Dell EMC PowerEdge SFP+ SR Optic, 10GbE, 850nm",null,"407-BCBN",2]
["[TS2L2-FC8] QLogic 2562, Dual Port 8Gb Optical Fibre Channel HBA, Full Height",1,"[540-BBEC]","406-BBEK","TS2L2-FC8",245]
["------------------------ 20% -------------------------"]
["[TS2L2-57416] Broadcom 57416 Dual Port 10Gb, Base-T, PCIe Adapter, Full Height, A20",1,"[540-BBUI]","540-BBUO","TS2L2-57416"]
["[TS2L2-41162] QLogic FastLinQ 41162 Dual Port 10Gb Base-T Adapter, Full Height, A20",1,"[540-BBYJ]","540-BBYG","TS2L2-41162"]
["[TS2L2-MCX416A] Mellanox ConnectX-5 Single Port EDR VPI QSFP28 PCIe Adapter, Full Height, A20",1,"[540-BCDK]","540-BCIV","TS2L2-MCX416A"]
["[TS2L2-MCX516A] Mellanox ConnectX-4 Dual Port 100GbE QSFP28 PCIe Adapter, Full Height, A20",1,"[540-BBUT]","540-BBUU","TS2L2-MCX516A"]
["[TS2L2-2692] QLogic 2692 Dual Port 16Gb Fibre Channel HBA, A20",1,"[403-BBMQ]","403-BBMU","TS2L2-2692"]
[]
[]
[]
["DW"]
["GPU","1A+2A+3A"]
["SW"]
["GPU","1E+2D+3B"]
["Low Profile"]
["Intel X520 Dual Port 10Gb, SFP+, Low Profile",null,"[540-BBDG]",null,null,null,null,null,null,null,null,null,null,null," [Option Id: G8P4069] [SKU: 540-BBDG]"]
["Broadcom 57414 Dual Port 25Gb, SFP28, PCIe Adapter, Low Profile",null,"[540-BBVK]",null,null,null,null,null,null,null,null,null,null,null," [Option Id: 5100637] [SKU: 540-BBVK]"]
["Broadcom 57416 Dual Port 10Gb, Base-T, PCIe Adapter, Low Profile",null,"[540-BBVJ]",null,null,null,null,null,null,null,null,null,null,null," [Option Id: 5100636] [SKU: 540-BBVJ]"]
["Broadcom 57412 Dual Port 10Gb, SFP+, PCIe Adapter, Low Profile",null,"[540-BBVI]",null,null,null,null,null,null,null,null,null,null,null," [Option Id: 5100635] [SKU: 540-BBVI]"]
["Broadcom 5719 QP 1Gb Network Interface Card, Low Profile",null,"[540-BBDF]",null,null,null,null,null,null,null,null,null,null,null," [Option Id: 5101877] [SKU: 540-BBDF]"]
["Broadcom 5720 DP 1Gb Network Interface Card, Low Profile",null,"[540-BBDE]",null,null,null,null,null,null,null,null,null,null,null," [Option Id: 5101876] [SKU: 540-BBDE]"]
["Intel X710 Quad Port 10GbE, Base-T, PCIe Adapter, Low Profile",null,"[540-BBVO]",null,null,null,null,null,null,null,null,null,null,null," [Option Id: 5100641] [SKU: 540-BBVO]"]
["Intel X710 Dual Port 10Gb Direct Attach, SFP+, Converged Network Adapter, Low Profile",null,"[555-BCKN]",null,null,null,null,null,null,null,null,null,null,null," [Option Id: X710FP] [SKU: 555-BCKN]"]
["Intel X710 Dual Port 10Gb, SFP+, Converged Network Adapter, Low Profile, With SR Optics",null,"[555-BCKN]",null,null,null,null,"SFP+ SR Optic, 10GbE, for Intel X520 only",2," [407-BBVK]",null,null,null,null," [Option Id: X710LP] [SKU: 407-BBVK, 407-BBVK, 555-BCKN]"]
["Intel X550 Dual Port 10G Base-T Adapter, Low Profile",null,"[540-BBRL]",null,null,null,null,null,null,null,null,null,null,null," [Option Id: 10CNDP] [SKU: 540-BBRL]"]
["Intel Ethernet i350v2 QP 1Gb Server Adapter, Low Profile",null,"[540-BBCZ]",null,null,null,null,null,null,null,null,null,null,null," [Option Id: PD351G] [SKU: 540-BBCZ]"]
["Intel Ethernet i350 DP 1Gb Server Adapter, Low Profile",null,"[540-BBDB]",null,null,null,null,null,null,null,null,null,null,null," [Option Id: SV35LP] [SKU: 540-BBDB]"]
["Mellanox ConnectX-4 Lx Dual Port 25GbE SFP28 Network Adapter, Low Profile",null,"[406-BBLD]",null,null,null,null,null,null,null,null,null,null,null," [Option Id: M25GBL] [SKU: 406-BBLD]"]
["Mellanox ConnectX-3 Pro Dual Port 10 GbE SFP+ PCIE Adapter Low Profile",null,"[540-BBOD]",null,null,null,null,null,null,null,null,null,null,null," [Option Id: MCX331] [SKU: 540-BBOD]"]
["QLogic FastLinQ 41262 Dual Port 25Gb SFP28 Adapter, Low Profile",null,"[540-BBZJ]",null,null,null,null,null,null,null,null,null,null,null," [Option Id: 5106842] [SKU: 540-BBZJ]"]
["QLogic FastLinQ 41162 Dual Port 10Gb Base-T Adapter, Low Profile",null,"[540-BBZK]",null,null,null,null,null,null,null,null,null,null,null," [Option Id: 5106841] [SKU: 540-BBZK]"]
["QLogic FastLinQ 41112 Dual Port 10Gb SFP+ Adapter, Low Profile",null,"[540-BBZI]",null,null,null,null,null,null,null,null,null,null,null," [Option Id: 5106840] [SKU: 540-BBZI]"]
["Intel XXV710 Dual Port 25GbE SFP28 PCIe Adapter, Low Profile",null,"[540-BCCM]",null,null,null,null,null,null,null,null,null,null,null," [Option Id: GBR16FU] [SKU: 540-BCCM]"]
["QLogic FastLinQ 41164 Quad Port 10GBASE-T PCIe Adapter, Low Profile",null,"[540-BCHC]",null,null,null,null,null,null,null,null,null,null,null," [Option Id: GWNLYB0] [SKU: 540-BCHC]"]
["QLogic 2742 Dual Port 32Gb Fibre Channel HBA, Low Profile",null,"[403-BBMM]"]
["QLogic 2692 Dual Port 16Gb Fibre Channel HBA, Low Profile",null,"[403-BBMS]"]
["QLogic 2690 Single Port 16Gb Fibre Channel HBA, Low Profile",null,"[403-BBMW]"]
["QLogic 2562, Dual Port 8Gb Optical Fibre Channel HBA, Low Profile",null,"[540-BBEC]"]
[]
["Full Height"]
["Broadcom 57414 Dual Port 25Gb, SFP28, PCIe Adapter, Full Height",null,"[540-BBUJ]",null,null,null,null,null,null,null,null,null,null,null," [Option Id: 5100004] [SKU: 540-BBUJ]"]
["Broadcom 57416 Dual Port 10Gb, Base-T, PCIe Adapter, Full Height ",null,"[540-BBUI]",null,null,null,null,null,null,null,null,null,null,null,"[Option Id: 5100003] [SKU: 540-BBUI]"]
["Broadcom 57412 Dual Port 10Gb, SFP+, PCIe Adapter, Full Height",null,"[540-BBUH]",null,null,null,null,null,null,null,null,null,null,null," [Option Id: 5100000] [SKU: 540-BBUH]"]
["Broadcom 5720 DP 1Gb Network Interface Card",null,"[540-BBCX]",null,null,null,null,null,null,null,null,null,null,null," [Option Id: 5720DP] [SKU: 540-BBCX]"]
["Intel X710 Quad Port 10GbE, Base-T, PCIe Adapter, Full Height",null,"[540-BBUX]",null,null,null,null,null,null,null,null,null,null,null," [Option Id: 5100585] [SKU: 540-BBUX]"]
["Intel X710 Quad Port 10Gb Direct Attach, SFP+, Converged Network Adapter",null,"[540-BBHQ]",null,null,null,null,null,null,null,null,null,null,null," [Option Id: X710QP] [SKU: 540-BBHQ]"]
["Intel X710 Quad Port 10Gb, SFP+, Converged Network Adapter, with SR Optics",null,"[540-BBHQ]",null,null,null,null,"SFP+ SR Optic, 10GbE, for Intel X520 only",4," [407-BBVK]",null,null,null,null," [Option Id: X710CV] [SKU: 407-BBVK, 407-BBVK, 407-BBVK, 407-BBVK, 540-BBHQ]"]
["Intel X710 Dual Port 10Gb Direct Attach, SFP+, Converged Network Adapter",null,"[540-BBHP]",null,null,null,null,null,null,null,null,null,null,null," [Option Id: X710DA] [SKU: 540-BBHP]"]
["Intel X710 Dual Port 10Gb, SFP+, Converged Network Adapter, with SR Optics",null,"[540-BBHP]",null,null,null,null,"SFP+ SR Optic, 10GbE, for Intel X520 only",2," [407-BBVK]",null,null,null,null," [Option Id: X710SF] [SKU: 407-BBVK, 407-BBVK, 540-BBHP]"]
["Intel X550 Dual Port 10G Base-T Adapter, Full Height",null,"[540-BBRO]",null,null,null,null,null,null,null,null,null,null,null," [Option Id: 10G2NN] [SKU: 540-BBRO]"]
["Intel Ethernet I350 QP 1Gb Server Adapter",null,"[540-BBDD]",null,null,null,null,null,null,null,null,null,null,null," [Option Id: I350QP] [SKU: 540-BBDD]"]
["Intel Ethernet I350 DP 1Gb Server Adapter",null,"[540-BBDH]",null,null,null,null,null,null,null,null,null,null,null," [Option Id: I350DP] [SKU: 540-BBDH]"]
["Mellanox ConnectX-4 Lx Dual Port 25GbE SFP28 Network Adapter",null,"[406-BBLE]",null,null,null,null,null,null,null,null,null,null,null," [Option Id: M25GBP] [SKU: 406-BBLE]"]
["Intel X520 DP 10Gb DA/SFP+ Server Adapter",null,"[540-BBCT]",null,null,null,null,null,null,null,null,null,null,null," [Option Id: X520D] [SKU: 540-BBCT]"]
["Mellanox ConnectX-3 Pro Dual Port 10 GbE SFP+ PCIE Adapter Full Height",null,"[540-BBOW]",null,null,null,null,null,null,null,null,null,null,null," [Option Id: MCX33P] [SKU: 540-BBOW]"]
["QLogic FastLinQ 41162 Dual Port 10Gb Base-T Adapter, Full Height",null,"[540-BBYJ]",null,null,null,null,null,null,null,null,null,null,null," [Option Id: 5103454] [SKU: 540-BBYJ]"]
["QLogic FastLinQ 41112 Dual Port 10Gb SFP+ Adapter, Full Height",null,"[540-BBYK]",null,null,null,null,null,null,null,null,null,null,null," [Option Id: 5103455] [SKU: 540-BBYK]"]
["Intel XXV710 Dual Port 25GbE SFP28 PCIe Adapter, Full Height",null,"[540-BCDH]",null,null,null,null,null,null,null,null,null,null,null," [Option Id: G2WY1IJ] [SKU: 540-BCDH]"]
["QLogic FastLinQ 41164 Quad Port 10GbE SFP+ PCIe Adapter, Full Height",null,"[540-BCHE]",null,null,null,null,null,null,null,null,null,null,null," [Option Id: GOUBFL4] [SKU: 540-BCHE]"]
["QLogic FastLinQ 41164 Quad Port 10GBASE-T PCIe Adapter, Full Height",null,"[540-BCHG]",null,null,null,null,null,null,null,null,null,null,null," [Option Id: GSCHVG2] [SKU: 540-BCHG]"]
["Mellanox ConnectX-5 Single Port EDR VPI QSFP28 PCIe Adapter, Full Height",null,"[540-BCDK]",null,null,null,null,null,null,null,null,null,null,null," [Option Id: GDSNXO7] [SKU: 540-BCDK]"]
["Mellanox ConnectX-4 Dual Port 100GbE QSFP28 PCIe Adapter, Full Height",null,"[540-BBUT]",null,null,null,null,null,null,null,null,null,null,null," [Option Id: GB8GMIC] [SKU: 540-BBUT]"]
["Mellanox ConnectX-5 EX Dual Port 100GbE QSFP28 PCIe Adapter, Full Height",null,"[540-BCIU]",null,null,null,null,null,null,null,null,null,null,null," [Option Id: G90UBJW] [SKU: 540-BCIU]"]
["QLogic 2742 Dual Port 32Gb Fibre Channel HBA",null,"[403-BBML]"]
["QLogic 2692 Dual Port 16Gb Fibre Channel HBA",null,"[403-BBMQ]"]
["QLogic 2690 Single Port 16Gb Fibre Channel HBA",null,"[403-BBMP]"]
["QLogic 2562, Dual Port 8Gb Optical Fibre Channel HBA, Low Profile",null,"[540-BBEC]"]
[]
["Alimentatore"]
["Dual, Hot-plug, Redundant Power Supply (1+1), 1100W",1,"[450-ADWM]"]
["Single, Hot-plug Power Supply (1+0), 1600W, 250 Volt Power Cord Recommended",2,"[450-AFMR]","450-AEPB","TS2L2-PSU1600"]
["Single, Hot-plug, Power Supply, 2000W, C19/C20 Power Cord Required",2,"[450-AGFT]","450-AENT","TS2L2-PSU2000"]
[]
["Network Daughter Card"]
["Intel X520 DP 10Gb DA/SFP+, + I350 DP 1Gb Ethernet, Network Daughter Card",null,"[540-BBBB]"]
["QLogic FastLinQ 41162 Dual Port 10GBASE-T, Dual Port 1GbE, rNDC ",null,"[555-BDYF]"]
["QLogic FastLinQ 41262 Dual Port 25GbE SFP28, rNDC ",null,"[555-BDYC]"]
["QLogic FastLinQ 41164 Quad Port 10GBASE-T, rNDC ",null,"[555-BDYB]"]
["QLogic FastLinQ 41164 Quad Port 10GbE SFP+, rNDC",null,"[555-BDXY]"]
["Broadcom 57414 Dual Port 25Gb, SFP28, rNDC",null,"[540-BBUM]"]
["Broadcom 57416 2 Port 10Gb Base-T + 5720 2 Port 1Gb Base-T, rNDC",null,"[540-BBUK]"]
["Broadcom 57412 2 Port 10Gb SFP+ + 5720 2 Port 1Gb Base-T, rNDC",null,"[540-BBUL]"]
["Broadcom 5720 QP 1Gb Network Daughter Card",null,"[540-BBBW]"]
["Intel X710 Quad Port 10Gb DA/SFP+ Ethernet, Network Daughter Card",null,"[555-BCKP]"]
["Intel X710 Quad Port 10Gb DA/SFP+ Ethernet, Network Daughter Card, with SR Optics",null,"[555-BCKP]",null,null,null,null,"SFP+ SR Optic, 10GbE, for Intel X520 only",4," [407-BBVK]"]
["Intel X710 DP 10Gb DA/SFP+, + I350 DP 1Gb Ethernet, Network Daughter Card",null,"[555-BCKO]"]
["Intel X710 DP 10Gb SR/SFP+, + I350 DP 1Gb Ethernet, Network Daughter Card, with SR Optics",null,"[55-BCKO]",null,null,null,null,"SFP+ SR Optic, 10GbE, for Intel X520 only",2," [407-BBVK]"]
["Intel X550 Quad Port 10GbE, Base-T, rNDC",null,"[540-BBUY]"]
["Intel X550 2 Port 10Gb Base-T + I350 2 Port 1Gb Base-T, rNDC",null,"[540-BBUZ]"]
["Intel Ethernet I350 QP 1Gb Network Daughter Card",null,"[540-BBCB]"]
["Mellanox ConnectX-4 Lx Dual Port 25GbE SFP28 rNDC",null,"[406-BBLG]"]
["QLogic FastLinQ 41264 Dual Port 10GbE SFP+, Dual Port 1GbE, rNDC",null,"[555-BDYH]"]
[]
["Bezel"]
["No Bezel",1,"[350-BBBW]"]
["PowerEdge 2U Standard Bezel",1,"[325-BCHU]"]
["PowerEdge 2U LCD Bezel",1,"[325-BCHV]"]
[]
["Rack Rails"]
["ReadyRails™ Sliding Rails Without Cable Management Arm",1,"[770-BBBQ]"]
["ReadyRails™ Sliding Rails With Cable Management Arm",1,"[770-BBBR]"]
[]
["Estenzione di Garanzia"]
["None",{"$f":"\"\"","v":""},{"$f":"\"\"","v":""},{"$f":"\"\"","v":""},{"$f":"\"\"","v":""},0]
["Estensione della manutenzione in garanzia per ulteriori 12 mesi",1,{"$f":"\"\"","v":""},"701-11494 732-79421","TS2L2-4Y",40]
["Estensione della manutenzione in garanzia per ulteriori 24 mesi",1,{"$f":"\"\"","v":""},"701-11494 701-11494 732-79422","TS2L2-5Y",81]
[]
[]
["_SavePDFon"]
["_SavePDFoff"]
[]
[]
["_NORISER"]
["_RISER"]
[]
[]
[]
[]
[]
[]
[]
["Bezel"]
["No Bezel",null,"[350-BBBW]",null,{"$f":"\"\"","v":""},null,null,"ReadyRails™ Sliding Rails Without Cable Management Arm",1,"[770-BBBQ]"]
["Dell PowerEdge 2U, LCD, 14G, 2U Cable Management Arm A20",1,"[325-BCHU]","325-BCHW","TS2L2-LCDBEZEL",null,135,"ReadyRails™ Sliding Rails With Cable Management Arm",1,"[770-BBBR]","770-BBIP"]
["Dell PowerEdge 2U, Standard, 14G,2 2U Cable Management Arm A20",1,"[325-BCHV]","325-BCHX","TS2L2-STDBEZEL",null,101,"ReadyRails™ Sliding Rails With Cable Management Arm",1,"[770-BBBR]","770-BBIP"]

{"sheet":"Codici&PrezzixRiepilogo","index":8,"n_rows":91,"n_cols":5,"rows_kept":91,"cut":false,"hidden":true,"merged":[[30,0,31,0],[30,1,31,1],[86,0,87,0],[86,1,87,1],[39,0,40,0],[39,1,40,1],[3,0,4,0],[3,1,4,1],[17,0,18,0],[17,1,18,1],[19,0,20,0],[19,1,20,1],[21,0,22,0],[21,1,22,1],[23,0,24,0],[23,1,24,1],[28,0,29,0],[28,1,29,1],[21,4,22,4],[23,4,24,4],[17,4,18,4],[19,4,20,4],[3,3,4,3],[3,4,4,4],[17,3,18,3],[19,3,20,3],[21,3,22,3],[23,3,24,3],[86,3,87,3],[39,4,40,4],[86,4,87,4],[28,3,29,3],[30,3,31,3],[28,4,29,4],[30,4,31,4],[39,3,40,3]]}
["CODICE CONVERGE","CODICE CONVENZIONE","Description","Prezzo vendita da Converge a CONSIP tot.","CODICE CONVERGE"]
["TS2L2-SRV","TS2L2-SRV","Server DELL EMC PowerEdge R7425, 2U, 1 x AMD EPYC 7281",1849,"TS2L2-SRV"]
[]
["TS2L2-CPU","TS2L2-CPU","Processore AMD EPYC 7281",491,"TS2L2-CPU"]
[null,null,"Standard Heatsink, 180W CPU, R7425"]
[]
["TS2D-RAM16","TS2L2-RAM16","Upgrade KIT RAM 16GB",103,"TS2D-RAM16"]
["TS2D-RAM32","TS2L2-RAM32","Upgrade KIT RAM 32GB",347,"TS2D-RAM32"]
["TS2D-RAM64","TS2L2-RAM64","Upgrade KIT RAM 64GB",697,"TS2D-RAM64"]
[]
["TS2D-10K600","TS2L2-10K600","HDD 600GB 10K SAS 12Gbps  2.5in Hot-plug",68,"TS2D-10K600"]
["TS2D-10K1200","TS2L2-10K1200","HDD 1200GB 10K SAS 12Gbps  2.5in Hot-plug",136,"TS2D-10K1200"]
["TS2D-SSDM480","TS2L2-SSDM480","SSD 480GB SAS MU 12Gbps 2.5in Hot-Plug",399,"TS2D-SSDM480"]
["TS2D-SSDR960","TS2L2-SSDR960","SSD 960GB SAS RI 12Gbps 2.5in Hot-plug",664,"TS2D-SSDR960"]
[]
["TS2D-LAN1","TS2L2-LAN1","Scheda LAN 5720 Dual Port 1Gb,Full Height",22,"TS2D-LAN1"]
["TS2D-LAN1-L","TS2L2-LAN1-L","Scheda LAN 5720 Dual Port 1Gb,Low Profile",22,"TS2D-LAN1-L"]
["TS2D-LAN10","TS2L2-LAN10","Scheda LAN 57412 Dual Port 10Gb, SFP+, Full Height",114,"TS2D-LAN10"]
[null,null,"Transceiver SFP+ SR, 10GbE, 850nm"]
["TS2D-LAN10-L","TS2L2-LAN10-L","Scheda LAN 57412 Dual Port 10Gb, SFP+, Low Profile",114,"TS2D-LAN10-L"]
[null,null,"Transceiver SFP+ SR, 10GbE, 850nm"]
["TS2DCNA10","TS2L2-CNA10","Scheda CNA 41112 Dual Port 10Gb SFP+, Full Height",110,"TS2DCNA10"]
[null,null,"Transceiver SFP+ SR, 10GbE, 850nm"]
["TS2D-CNA10-L","TS2L2-CNA10-L","Scheda CNA 41112 Dual Port 10Gb SFP+, Low Profile",110,"TS2D-CNA10-L"]
[null,null,"Transceiver SFP+ SR, 10GbE, 850nm"]
["TS2D-FC8","TS2L2-FC8","Scheda FC 2562, Dual Port 8Gb HBA, Full Height",245,"TS2D-FC8"]
["TS2D-FC8-L","TS2L2-FC8-L","Scheda FC 2562, Dual Port 8Gb HBA, Low Profile",245,"TS2D-FC8-L"]
[]
["TS2L2-4Y","TS2L2-4Y","Estensione della manutenzione in garanzia per ulteriori 12 mesi",40,"TS2L2-4Y"]
[null,null,"Onsite Labor CRU, 1Year"]
["TS2L2-5Y","TS2L2-5Y","Estensione della manutenzione in garanzia per ulteriori 24 mesi",81,"TS2L2-5Y"]
[null,null,"Onsite Labor CRU, 1Year"]
[]
["TS2D-WIN1","TS2L2-WIN1","Windows Server 2019 Standard Ed 16CORE",553,"TS2D-WIN1"]
["TS2D-CALDEV","TS2L2-CALDEV","Device CAL 1-pack Windows Server 2019",20,"TS2D-CALDEV"]
["TS2D-CALUSER","TS2L2-CALUSER","User CAL 1-pack Windows Server 2019",24,"TS2D-CALUSER"]
["TS2D-WIN2CORE","TS2L2-WIN2CORE","Windows Server 2019 Standard Ed Add License 2CORE",74,"TS2D-WIN2CORE"]
["TS2-LINUX","TS2L2-LINUX","CentOS 7.x",49,"TS2-LINUX"]
[]
["TS2-UPS","TS2L2-UPS","UPS MSR 3000VA + staffe",387,"TS2-UPS"]
[null,null,"Kit 2 Guide universali per UPS",0]
["TS2-GUI","TS2L2-GUI","Console KVM GUI da rack",448,"TS2-GUI"]
["TS2-RACK","TS2L2-RACK","Armadio Rack 42U",504,"TS2-RACK"]
["TS2-KVMIP","TS2L2-KVMIP","KVM Switch IP per GUI 16P con cavi",495,"TS2-KVMIP"]
[]
["TS2-3MRJ45","TS2L2-3MRJ45","Cavo Rete UTP cat. 5e 3 metri A20",2,"TS2-3MRJ45"]
["TS2D-10K1800","TS2L2-10K1800","HDD 1800GB 10K SAS 12Gbps  2.5in Hot-plug",169,"TS2D-10K1800"]
["TS2D-SSDR1920","TS2L2-SSDR1920","SSD 1920GB SAS RI 12Gbps 2.5in Hot-plug",1313,"TS2D-SSDR1920"]
["TS2D-BOSS240","TS2L2-BOSS240","BOSS controller card, full height, 2 x 240G M.2 Drive A20",429,"TS2D-BOSS240"]
["TS2D-ISDM32","TS2L2-ISDM32","ISDM and Combo Card Reader, 2x 32GB microSDHC/SDXC Card A20",134,"TS2D-ISDM32"]
["TS2D-LCDBEZEL","TS2L2-LCDBEZEL","Dell PowerEdge 2U, LCD, 14G, 2U Cable Management Arm A20",135,"TS2D-LCDBEZEL"]
["TS2D-STDBEZEL","TS2L2-STDBEZEL","Dell PowerEdge 2U, Standard, 14G,2 2U Cable Management Arm A20",101,"TS2D-STDBEZEL"]
["TS2D-MCX416AM3","TS2L2-MCX416AM3","Mellanox ConnectX-4 Dual Port 40/100GbE, QSFP28, PCIe Adapter, Full Height, with 2 x 100GbE QSFP28 to QSFP28, Passive Copper DAC,3 Meter A20",1331,"TS2D-MCX416AM3"]
["TS2D-MCX516AM3","TS2L2-MCX516AM3","Mellanox ConnectX-5 EX Dual Port 100GbE QSFP28 PCIe Adapter, Full Height, with 2 x 100GbE QSFP28 to QSFP28, Passive Copper DAC,3 Meter A20",1577,"TS2D-MCX516AM3"]
["TS2D-MCX4121AM3","TS2L2-MCX4121AM3","Mellanox ConnectX-4 Lx Dual Port 25GbE SFP28 Network Adapter, Full Height with 2x SFP28 to SFP28, 25GbE, Passive Copper Twinax DAC, 3 Meter A20",748,"TS2D-MCX4121AM3"]
["TS2D-MCX4121A3-L","TS2L2-MCX4121A3-L","Mellanox ConnectX-4 Lx Dual Port 25GbE SFP28 Network Adapter, Low Profile with 2x SFP28 to SFP28, 25GbE, Passive Copper Twinax DAC, 3 Meter A20",748,"TS2D-MCX4121A3-L"]
["TS2D-HBA330","TS2L2-HBA330","PERC HBA330 Adapter, 12Gbps Adapter, Low Profile A20",196,"TS2D-HBA330"]
["TS2D-HBASAS12","TS2L2-HBASAS12","Dell 12Gbps SAS Host Bus Adapter External Controller - Full Height A20",158,"TS2D-HBASAS12"]
["TS2D-H740P","TS2L2-H740P","Dell PERC H740P RAID Controller Adapter A20",777,"TS2D-H740P"]
["TS2D-Q41162T","TS2L2-Q41162T","QLogic FastLinQ 41162 Dual Port 10Gb Base-T Adapter, Full Height A20",349,"TS2D-Q41162T"]
["TS2D-Q41162T-L","TS2L2-Q41162T-L","QLogic FastLinQ 41162 Dual Port 10Gb Base-T Adapter, Low Profile A20",349,"TS2D-Q41162T-L"]
["TS2D-Q41164T-L","TS2L2-Q41164T-L","QLogic FastLinQ 41164 Quad Port 10G Base-T Adapter, Low Profile A20",687,"TS2D-Q41164T-L"]
["TS2D-Q2692","TS2L2-Q2692","QLogic 2692 Dual Port 16Gb Fibre Channel HBA, Full Height A20",780,"TS2D-Q2692"]
["TS2D-Q2692-L","TS2L2-Q2692-L","QLogic 2692 Dual Port 16Gb Fibre Channel HBA, Low Profile A20",780,"TS2D-Q2692-L"]
["TS2D-B57416T","TS2L2-B57416T","Broadcom 57416 Dual Port 10Gb, Base-T, PCIe Adapter, Full Height A20",389,"TS2D-B57416T"]
["TS2D-B57416T-L","TS2L2-B57416T-L","Broadcom 57416 Dual Port 10Gb, Base-T, PCIe Adapter, Low Profile A20",389,"TS2D-B57416T-L"]
["TS2D-5XDAC100M2","TS2L2-5XDAC100M2","5 x Dell Networking Cable, 100GbE QSFP28 to QSFP28,Passive Copper Direct Attach Cable,2 Meter A20",940,"TS2D-5XDAC100M2"]
["TS2D-5XDAC100M3","TS2L2-5XDAC100M3","5 x Dell Networking Cable,100GbE QSFP28 to QSFP28, Passive Copper Direct Attach Cable,3 Meter A20",1125,"TS2D-5XDAC100M3"]
["TS2D-5XDAC10M3","TS2L2-5XDAC10M3","5 x Dell Networking, Cable, SFP+ to SFP+, 10GbE, Copper Twinax Direct Attach Cable, 3 Meter A20",125,"TS2D-5XDAC10M3"]
["TS2D-SSDW400","TS2L2-SSDW400","400GB SSD SAS Write Intensive 12Gbps 512n 2.5in Hot-plug Drive, 10 DWPD A20",1155,"TS2D-SSDW400"]
["TS2D-10K2400","TS2L2-10K2400","2.4TB 10K RPM SAS 12Gbps 512e 2.5in Hot-plug Hard Drive NO VMWARE A20",389,"TS2D-10K2400"]
["TS2D-WINDC","TS2L2-WINDC","Windows Server 2019 Datacenter Ed 16CORE",3345,"TS2D-WINDC"]
["TS2D-WINDC2","TS2L2-WINDC2","Windows Server 2019 Datacenter Ed Add License 16CORE",3343,"TS2D-WINDC2"]
["TS2D-WINDC2COR","TS2L2-WINDC2COR","Windows Server 2019 Datacenter Ed Add License 2CORE",437,"TS2D-WINDC2COR"]
["TS2D-IXXV710M3","TS2L2-IXXV710M3","Intel XXV710 Dual Port 25GbE SFP28 PCIe Adapter, Full Height, with 2x SFP28 to SFP28, 25GbE, Passive Copper Twinax DAC, 3 Meter A20",761,"TS2D-IXXV710M3"]
["TS2D-IXXV710TRV","TS2L2-IXXV710TRV","Intel XXV710 Dual Port 25GbE SFP28 PCIe Adapter, Full Height, with 2 x Transceiver, SFP28, 25GbE, SR, MMF Duplex, LC A20",1380,"TS2D-IXXV710TRV"]
["TS2D-VMWKIT6P3Y","TS2L2-VMWKIT6P3Y","VMware vSphere Essentials Plus Kit OEM 6 Processor 3yr A20",5230,"TS2D-VMWKIT6P3Y"]
["TS2D-VMWSTD1P3Y","TS2L2-VMWSTD1P3Y","VMware vSphere Standard OEM 1 Processor 3yr Software A20",1743,"TS2D-VMWSTD1P3Y"]
["TS2D-VMWVCSTD3Y","TS2L2-VMWVCSTD3Y","VMw vCenter Server Standard for vSphere OEM 3yr Software A20",8909,"TS2D-VMWVCSTD3Y"]
["TS2D-VMWVCSTD5Y","TS2L2-VMWVCSTD5Y","VMw vCenter Server Standard for vSphere OEM 5yr Software A20",10549,"TS2D-VMWVCSTD5Y"]
["TS2D-VMWEP1P3Y","TS2L2-VMWEP1P3Y","VMware vSphere Enterprise Plus OEM 1 Processor 3yr Software A20",4905,"TS2D-VMWEP1P3Y"]
["TS2D-VMWEP1P5Y","TS2L2-VMWEP1P5Y","VMware vSphere Enterprise Plus OEM 1 Processor 5yr Software A20",6367,"TS2D-VMWEP1P5Y"]
["TS2D-VSANSTD3Y","TS2L2-VSANSTD3Y","VMware vSAN Standard OEM  1 Processor 3yr Software A20",3177,"TS2D-VSANSTD3Y"]
["TS2D-VSANSTD5Y","TS2L2-VSANSTD5Y","VMware vSAN Standard OEM  1 Processor 5yr Software A20",4107,"TS2D-VSANSTD5Y"]
["TS2D-VSANADV3Y","TS2L2-VSANADV3Y","VMware vSAN Advanced OEM  1 Processor 3yr Software A20",5010,"TS2D-VSANADV3Y"]
["TS2D-VSANADV5Y","TS2L2-VSANADV5Y","VMware vSAN Advanced OEM  1 Processor 5yr Software A20",6475,"TS2D-VSANADV5Y"]
["TS2D-RISER","TS2L2-RISER","Riser Card 2A,R7425",152,"TS2D-RISER"]
[null,null,"Riser Card 3A,R7425"]
["TS2D-MCX4SP","TS2L2-MCX4SP","Mellanox ConnectX-4 Single Port, EDR, VPI QSFP28 Full Height Adapter with QSFP passive copper cable, LSZH, 2m",718,"TS2D-MCX4SP"]
["TS2D-MCX4SP-L","TS2L2-MCX4SP-L","Mellanox ConnectX-4 Single Port, EDR, VPI QSFP28 Low Profile Adapter with QSFP passive copper cable, LSZH, 2m",718,"TS2D-MCX4SP-L"]
["TS2D-PDU32A","TS2L2-PDU32A","Coppia di PDU Vertical  1Ph-32A-18xC13-6xC19 - 0U Base + Kit di montaggio",436,"TS2D-PDU32A"]